Effective Date,Department,Supplier Name,Payment Date,Amount **,Purpose of Spend,Merchant Category,Card Transaction
Statement 19/02/2016 - 31/03/2016,Adults and Communities,365 BARGAINS,22/03/2016,2.00,Materials - General,Pet Shops-Pet Food and Supplies,GPC
Statement 19/02/2016 - 31/03/2016,Adults and Communities,AA STATIONERS LEICESTER,15/03/2016,20.23,Materials - General,"Stationery, Office, and School Supply Stores",GPC
Statement 19/02/2016 - 31/03/2016,Adults and Communities,Amazon Prime,12/03/2016,79.00,Other Expenditure - General,Continuity/Subscription Merchants,GPC
Statement 19/02/2016 - 31/03/2016,Adults and Communities,Amazon Svcs Europe SAR,25/02/2016,53.85,Books - General,Book Stores,GPC
Statement 19/02/2016 - 31/03/2016,Adults and Communities,Amazon Svcs Europe SAR,25/02/2016,24.95,Books - General,Book Stores,GPC
Statement 19/02/2016 - 31/03/2016,Adults and Communities,Amazon Svcs Europe SAR,08/03/2016,19.48,Books - General,Book Stores,GPC
Statement 19/02/2016 - 31/03/2016,Adults and Communities,Amazon Svcs Europe SAR,02/03/2016,4.20,Display/Conservn/Exhibitions - General,Book Stores,GPC
Statement 19/02/2016 - 31/03/2016,Adults and Communities,Amazon Svcs Europe SAR,10/03/2016,36.50,General Equipment - General,Book Stores,GPC
Statement 19/02/2016 - 31/03/2016,Adults and Communities,Amazon UK Marketplace,23/02/2016,3.25,Books - General,Book Stores,GPC
Statement 19/02/2016 - 31/03/2016,Adults and Communities,Amazon UK Marketplace,24/02/2016,1.98,Books - General,Book Stores,GPC
Statement 19/02/2016 - 31/03/2016,Adults and Communities,Amazon UK Marketplace,24/02/2016,3.30,Books - General,Book Stores,GPC
Statement 19/02/2016 - 31/03/2016,Adults and Communities,Amazon UK Marketplace,24/02/2016,29.98,Books - General,Book Stores,GPC
Statement 19/02/2016 - 31/03/2016,Adults and Communities,Amazon UK Marketplace,25/02/2016,6.99,Books - General,Book Stores,GPC
Statement 19/02/2016 - 31/03/2016,Adults and Communities,Amazon UK Marketplace,03/03/2016,13.74,Books - General,Miscellaneous and Specialty Retail Stores,GPC
Statement 19/02/2016 - 31/03/2016,Adults and Communities,Amazon UK Marketplace,04/03/2016,1.95,Books - General,Book Stores,GPC
Statement 19/02/2016 - 31/03/2016,Adults and Communities,Amazon UK Marketplace,04/03/2016,21.26,Books - General,Miscellaneous and Specialty Retail Stores,GPC
Statement 19/02/2016 - 31/03/2016,Adults and Communities,Amazon UK Marketplace,09/03/2016,12.79,Books - General,Book Stores,GPC
Statement 19/02/2016 - 31/03/2016,Adults and Communities,Amazon UK Marketplace,18/03/2016,5.07,Display/Conservn/Exhibitions - Exhibitions,Miscellaneous and Specialty Retail Stores,GPC
Statement 19/02/2016 - 31/03/2016,Adults and Communities,Amazon UK Marketplace,28/02/2016,15.99,Display/Conservn/Exhibitions - General,Miscellaneous and Specialty Retail Stores,GPC
Statement 19/02/2016 - 31/03/2016,Adults and Communities,Amazon UK Marketplace,28/02/2016,4.69,Display/Conservn/Exhibitions - General,Miscellaneous and Specialty Retail Stores,GPC
Statement 19/02/2016 - 31/03/2016,Adults and Communities,Amazon UK Marketplace,29/02/2016,2.29,Display/Conservn/Exhibitions - General,Book Stores,GPC
Statement 19/02/2016 - 31/03/2016,Adults and Communities,Amazon UK Marketplace,29/02/2016,32.87,Display/Conservn/Exhibitions - General,Miscellaneous and Specialty Retail Stores,GPC
Statement 19/02/2016 - 31/03/2016,Adults and Communities,Amazon UK Marketplace,29/02/2016,16.49,Display/Conservn/Exhibitions - General,Miscellaneous and Specialty Retail Stores,GPC
Statement 19/02/2016 - 31/03/2016,Adults and Communities,Amazon UK Marketplace,29/02/2016,5.60,Display/Conservn/Exhibitions - General,Miscellaneous and Specialty Retail Stores,GPC
Statement 19/02/2016 - 31/03/2016,Adults and Communities,Amazon UK Marketplace,03/03/2016,6.92,Display/Conservn/Exhibitions - General,Book Stores,GPC
Statement 19/02/2016 - 31/03/2016,Adults and Communities,Amazon UK Marketplace,10/03/2016,13.39,Display/Conservn/Exhibitions - General,Book Stores,GPC
Statement 19/02/2016 - 31/03/2016,Adults and Communities,Amazon UK Marketplace,17/02/2016,1.65,General Equipment - General,Miscellaneous and Specialty Retail Stores,GPC
Statement 19/02/2016 - 31/03/2016,Adults and Communities,Amazon UK Marketplace,17/02/2016,4.79,General Equipment - General,Miscellaneous and Specialty Retail Stores,GPC
Statement 19/02/2016 - 31/03/2016,Adults and Communities,Amazon UK Marketplace,18/02/2016,7.50,General Equipment - General,Miscellaneous and Specialty Retail Stores,GPC
Statement 19/02/2016 - 31/03/2016,Adults and Communities,Amazon UK Marketplace,19/02/2016,11.56,General Equipment - General,Miscellaneous and Specialty Retail Stores,GPC
Statement 19/02/2016 - 31/03/2016,Adults and Communities,Amazon UK Marketplace,24/02/2016,7.93,General Equipment - General,Miscellaneous and Specialty Retail Stores,GPC
Statement 19/02/2016 - 31/03/2016,Adults and Communities,Amazon UK Marketplace,24/02/2016,14.36,General Equipment - General,Miscellaneous and Specialty Retail Stores,GPC
Statement 19/02/2016 - 31/03/2016,Adults and Communities,Amazon UK Marketplace,24/02/2016,28.63,General Equipment - General,Miscellaneous and Specialty Retail Stores,GPC
Statement 19/02/2016 - 31/03/2016,Adults and Communities,Amazon UK Marketplace,25/02/2016,13.71,General Equipment - General,Book Stores,GPC
Statement 19/02/2016 - 31/03/2016,Adults and Communities,Amazon UK Marketplace,25/02/2016,2.49,General Equipment - General,Miscellaneous and Specialty Retail Stores,GPC
Statement 19/02/2016 - 31/03/2016,Adults and Communities,Amazon UK Marketplace,26/02/2016,25.39,General Equipment - General,Miscellaneous and Specialty Retail Stores,GPC
Statement 19/02/2016 - 31/03/2016,Adults and Communities,Amazon UK Marketplace,01/03/2016,7.00,General Equipment - General,Book Stores,GPC
Statement 19/02/2016 - 31/03/2016,Adults and Communities,Amazon UK Marketplace,01/03/2016,11.04,General Equipment - General,Book Stores,GPC
Statement 19/02/2016 - 31/03/2016,Adults and Communities,Amazon UK Marketplace,01/03/2016,49.83,General Equipment - General,Miscellaneous and Specialty Retail Stores,GPC
Statement 19/02/2016 - 31/03/2016,Adults and Communities,Amazon UK Marketplace,03/03/2016,19.90,General Equipment - General,Miscellaneous and Specialty Retail Stores,GPC
Statement 19/02/2016 - 31/03/2016,Adults and Communities,Amazon UK Marketplace,08/03/2016,9.98,General Equipment - General,Book Stores,GPC
Statement 19/02/2016 - 31/03/2016,Adults and Communities,Amazon UK Marketplace,08/03/2016,1.27,General Equipment - General,Miscellaneous and Specialty Retail Stores,GPC
Statement 19/02/2016 - 31/03/2016,Adults and Communities,Amazon UK Marketplace,09/03/2016,1.51,General Equipment - General,Book Stores,GPC
Statement 19/02/2016 - 31/03/2016,Adults and Communities,Amazon UK Marketplace,09/03/2016,12.98,General Equipment - General,Miscellaneous and Specialty Retail Stores,GPC
Statement 19/02/2016 - 31/03/2016,Adults and Communities,Amazon UK Marketplace,09/03/2016,3.28,General Equipment - General,Miscellaneous and Specialty Retail Stores,GPC
Statement 19/02/2016 - 31/03/2016,Adults and Communities,Amazon UK Marketplace,10/03/2016,3.85,General Equipment - General,Book Stores,GPC
Statement 19/02/2016 - 31/03/2016,Adults and Communities,Amazon UK Marketplace,11/03/2016,27.46,General Equipment - General,Miscellaneous and Specialty Retail Stores,GPC
Statement 19/02/2016 - 31/03/2016,Adults and Communities,Amazon UK Marketplace,15/03/2016,10.50,General Equipment - General,Book Stores,GPC
Statement 19/02/2016 - 31/03/2016,Adults and Communities,Amazon UK Marketplace,25/02/2016,68.98,IT Equipment - General,Miscellaneous and Specialty Retail Stores,GPC
Statement 19/02/2016 - 31/03/2016,Adults and Communities,Amazon UK Marketplace,18/02/2016,9.52,Materials - General,Miscellaneous and Specialty Retail Stores,GPC
Statement 19/02/2016 - 31/03/2016,Adults and Communities,Amazon UK Marketplace,23/02/2016,4.99,Materials - General,Miscellaneous and Specialty Retail Stores,GPC
Statement 19/02/2016 - 31/03/2016,Adults and Communities,Amazon UK Marketplace,23/02/2016,101.89,Materials - General,Miscellaneous and Specialty Retail Stores,GPC
Statement 19/02/2016 - 31/03/2016,Adults and Communities,Amazon UK Marketplace,24/02/2016,4.34,Materials - General,Miscellaneous and Specialty Retail Stores,GPC
Statement 19/02/2016 - 31/03/2016,Adults and Communities,Amazon UK Marketplace,24/02/2016,35.06,Materials - General,Miscellaneous and Specialty Retail Stores,GPC
Statement 19/02/2016 - 31/03/2016,Adults and Communities,Amazon UK Marketplace,24/02/2016,2.49,Materials - General,Miscellaneous and Specialty Retail Stores,GPC
Statement 19/02/2016 - 31/03/2016,Adults and Communities,Amazon UK Marketplace,25/02/2016,12.58,Materials - General,Miscellaneous and Specialty Retail Stores,GPC
Statement 19/02/2016 - 31/03/2016,Adults and Communities,Amazon UK Marketplace,25/02/2016,3.99,Materials - General,Miscellaneous and Specialty Retail Stores,GPC
Statement 19/02/2016 - 31/03/2016,Adults and Communities,Amazon UK Marketplace,29/02/2016,20.68,Materials - General,Miscellaneous and Specialty Retail Stores,GPC
Statement 19/02/2016 - 31/03/2016,Adults and Communities,Amazon UK Marketplace,08/03/2016,22.69,Materials - General,Miscellaneous and Specialty Retail Stores,GPC
Statement 19/02/2016 - 31/03/2016,Adults and Communities,Amazon UK Marketplace,15/03/2016,16.60,Materials - General,Miscellaneous and Specialty Retail Stores,GPC
Statement 19/02/2016 - 31/03/2016,Adults and Communities,Amazon UK Marketplace,16/03/2016,17.24,Materials - General,Miscellaneous and Specialty Retail Stores,GPC
Statement 19/02/2016 - 31/03/2016,Adults and Communities,Amazon UK Marketplace,17/03/2016,12.96,Materials - General,Miscellaneous and Specialty Retail Stores,GPC
Statement 19/02/2016 - 31/03/2016,Adults and Communities,Amazon UK Marketplace,18/03/2016,11.95,Materials - General,Miscellaneous and Specialty Retail Stores,GPC
Statement 19/02/2016 - 31/03/2016,Adults and Communities,Amazon UK Marketplace,22/03/2016,24.19,Materials - General,Miscellaneous and Specialty Retail Stores,GPC
Statement 19/02/2016 - 31/03/2016,Adults and Communities,Amazon UK Marketplace,24/03/2016,7.44,Materials - General,Miscellaneous and Specialty Retail Stores,GPC
Statement 19/02/2016 - 31/03/2016,Adults and Communities,Amazon UK Marketplace,31/03/2016,16.49,Materials - General,Miscellaneous and Specialty Retail Stores,GPC
Statement 19/02/2016 - 31/03/2016,Adults and Communities,Amazon UK Marketplace,31/03/2016,7.49,Materials - General,Miscellaneous and Specialty Retail Stores,GPC
Statement 19/02/2016 - 31/03/2016,Adults and Communities,Amazon UK Marketplace,31/03/2016,13.57,Materials - General,Miscellaneous and Specialty Retail Stores,GPC
Statement 19/02/2016 - 31/03/2016,Adults and Communities,Amazon UK Marketplace,25/02/2016,34.99,Operational Equipment - DDA,Miscellaneous and Specialty Retail Stores,GPC
Statement 19/02/2016 - 31/03/2016,Adults and Communities,Amazon UK Marketplace,01/03/2016,119.98,Operational Equipment - DDA,Miscellaneous and Specialty Retail Stores,GPC
Statement 19/02/2016 - 31/03/2016,Adults and Communities,Amazon UK Marketplace,09/03/2016,3.55,Operational Equipment - General,Book Stores,GPC
Statement 19/02/2016 - 31/03/2016,Adults and Communities,Amazon UK Marketplace,17/02/2016,21.98,Other Equipment & Materials - General,Miscellaneous and Specialty Retail Stores,GPC
Statement 19/02/2016 - 31/03/2016,Adults and Communities,Amazon UK Marketplace,19/02/2016,1.99,Other Equipment & Materials - General,Miscellaneous and Specialty Retail Stores,GPC
Statement 19/02/2016 - 31/03/2016,Adults and Communities,Amazon UK Marketplace,22/02/2016,17.93,Other Equipment & Materials - General,Book Stores,GPC
Statement 19/02/2016 - 31/03/2016,Adults and Communities,Amazon UK Marketplace,26/02/2016,1.27,Other Equipment & Materials - General,Book Stores,GPC
Statement 19/02/2016 - 31/03/2016,Adults and Communities,Amazon UK Marketplace,26/02/2016,20.18,Other Equipment & Materials - General,Book Stores,GPC
Statement 19/02/2016 - 31/03/2016,Adults and Communities,Amazon UK Marketplace,29/02/2016,1.27,Other Equipment & Materials - General,Book Stores,GPC
Statement 19/02/2016 - 31/03/2016,Adults and Communities,Amazon UK Marketplace,10/03/2016,12.96,Other Equipment & Materials - General,Book Stores,GPC
Statement 19/02/2016 - 31/03/2016,Adults and Communities,Amazon UK Marketplace,14/03/2016,10.28,Other Equipment & Materials - General,Miscellaneous and Specialty Retail Stores,GPC
Statement 19/02/2016 - 31/03/2016,Adults and Communities,Amazon UK Marketplace,17/03/2016,10.24,Other Equipment & Materials - General,Miscellaneous and Specialty Retail Stores,GPC
Statement 19/02/2016 - 31/03/2016,Adults and Communities,Amazon UK Marketplace,07/03/2016,5.19,Other Expenditure - General,Miscellaneous and Specialty Retail Stores,GPC
Statement 19/02/2016 - 31/03/2016,Adults and Communities,Amazon UK Marketplace,18/02/2016,26.63,Other Services - General,Book Stores,GPC
Statement 19/02/2016 - 31/03/2016,Adults and Communities,Amazon UK Marketplace,24/02/2016,63.75,Other Services - General,Book Stores,GPC
Statement 19/02/2016 - 31/03/2016,Adults and Communities,Amazon UK Marketplace,18/02/2016,4.75,Postal Services - General,Book Stores,GPC
Statement 19/02/2016 - 31/03/2016,Adults and Communities,Amazon UK Marketplace,24/02/2016,4.75,Postal Services - General,Miscellaneous and Specialty Retail Stores,GPC
Statement 19/02/2016 - 31/03/2016,Adults and Communities,Amazon UK Marketplace,25/02/2016,6.65,Postal Services - General,Book Stores,GPC
Statement 19/02/2016 - 31/03/2016,Adults and Communities,Amazon UK Marketplace,25/02/2016,1.99,Postal Services - General,Miscellaneous and Specialty Retail Stores,GPC
Statement 19/02/2016 - 31/03/2016,Adults and Communities,Amazon UK Marketplace,01/03/2016,3.15,Postal Services - General,Book Stores,GPC
Statement 19/02/2016 - 31/03/2016,Adults and Communities,Amazon UK Marketplace,01/03/2016,3.95,Postal Services - General,Miscellaneous and Specialty Retail Stores,GPC
Statement 19/02/2016 - 31/03/2016,Adults and Communities,Amazon UK Marketplace,09/03/2016,1.20,Postal Services - General,Miscellaneous and Specialty Retail Stores,GPC
Statement 19/02/2016 - 31/03/2016,Adults and Communities,Amazon UK Marketplace,26/03/2016,48.72,Publicity/Marketing - General,Miscellaneous and Specialty Retail Stores,GPC
Statement 19/02/2016 - 31/03/2016,Adults and Communities,Amazon UK Marketplace,26/03/2016,40.54,Publicity/Marketing - General,Miscellaneous and Specialty Retail Stores,GPC
Statement 19/02/2016 - 31/03/2016,Adults and Communities,Amazon UK Marketplace,18/03/2016,35.97,Sales-Trading - General,Book Stores,GPC
Statement 19/02/2016 - 31/03/2016,Adults and Communities,Amazon UK Marketplace,02/03/2016,31.45,Stationery - General,Miscellaneous and Specialty Retail Stores,GPC
Statement 19/02/2016 - 31/03/2016,Adults and Communities,Amazon UK Marketplace,17/03/2016,3.93,Stationery - General,Miscellaneous and Specialty Retail Stores,GPC
Statement 19/02/2016 - 31/03/2016,Adults and Communities,Amazon UK Retail,18/03/2016,22.42,Display/Conservn/Exhibitions - Exhibitions,Direct Marketers - Other,GPC
Statement 19/02/2016 - 31/03/2016,Adults and Communities,Amazon UK Retail,25/02/2016,12.49,General Equipment - General,Direct Marketers - Other,GPC
Statement 19/02/2016 - 31/03/2016,Adults and Communities,Amazon UK Retail,25/02/2016,12.49,General Equipment - General,Direct Marketers - Other,GPC
Statement 19/02/2016 - 31/03/2016,Adults and Communities,Amazon UK Retail,25/02/2016,12.49,General Equipment - General,Direct Marketers - Other,GPC
Statement 19/02/2016 - 31/03/2016,Adults and Communities,Amazon UK Retail,25/02/2016,12.49,General Equipment - General,Direct Marketers - Other,GPC
Statement 19/02/2016 - 31/03/2016,Adults and Communities,Amazon UK Retail,25/02/2016,12.49,General Equipment - General,Direct Marketers - Other,GPC
Statement 19/02/2016 - 31/03/2016,Adults and Communities,Amazon UK Retail,01/03/2016,38.95,General Equipment - General,Direct Marketers - Other,GPC
Statement 19/02/2016 - 31/03/2016,Adults and Communities,Amazon UK Retail,03/03/2016,4.99,General Equipment - General,Direct Marketers - Other,GPC
Statement 19/02/2016 - 31/03/2016,Adults and Communities,Amazon UK Retail,04/03/2016,32.03,General Equipment - General,Direct Marketers - Other,GPC
Statement 19/02/2016 - 31/03/2016,Adults and Communities,Amazon UK Retail,08/03/2016,7.00,General Equipment - General,Direct Marketers - Other,GPC
Statement 19/02/2016 - 31/03/2016,Adults and Communities,Amazon UK Retail,21/02/2016,12.49,Materials - General,Direct Marketers - Other,GPC
Statement 19/02/2016 - 31/03/2016,Adults and Communities,Amazon UK Retail,28/02/2016,8.33,Materials - General,Direct Marketers - Other,GPC
Statement 19/02/2016 - 31/03/2016,Adults and Communities,Amazon UK Retail,06/03/2016,8.33,Materials - General,Direct Marketers - Other,GPC
Statement 19/02/2016 - 31/03/2016,Adults and Communities,Amazon UK Retail,20/03/2016,16.66,Materials - General,Direct Marketers - Other,GPC
Statement 19/02/2016 - 31/03/2016,Adults and Communities,Amazon UK Retail,31/03/2016,14.16,Materials - General,Direct Marketers - Other,GPC
Statement 19/02/2016 - 31/03/2016,Adults and Communities,Amazon UK Retail,25/02/2016,49.99,Operational Equipment - DDA,Direct Marketers - Other,GPC
Statement 19/02/2016 - 31/03/2016,Adults and Communities,Amazon UK Retail,08/03/2016,13.82,Operational Equipment - General,Direct Marketers - Other,GPC
Statement 19/02/2016 - 31/03/2016,Adults and Communities,Amazon UK Retail,23/02/2016,144.51,Other Expenditure - General,Direct Marketers - Other,GPC
Statement 19/02/2016 - 31/03/2016,Adults and Communities,Amazon UK Retail,23/02/2016,32.66,Other Expenditure - General,Direct Marketers - Other,GPC
Statement 19/02/2016 - 31/03/2016,Adults and Communities,Amazon UK Retail,23/02/2016,91.29,Other Expenditure - General,Direct Marketers - Other,GPC
Statement 19/02/2016 - 31/03/2016,Adults and Communities,Amazon UK Retail,24/02/2016,83.37,Other Expenditure - General,Direct Marketers - Other,GPC
Statement 19/02/2016 - 31/03/2016,Adults and Communities,Amazon UK Retail,26/02/2016,4.15,Other Expenditure - General,Direct Marketers - Other,GPC
Statement 19/02/2016 - 31/03/2016,Adults and Communities,Amazon UK Retail,26/02/2016,60.82,Other Expenditure - General,Direct Marketers - Other,GPC
Statement 19/02/2016 - 31/03/2016,Adults and Communities,Amazon UK Retail,26/02/2016,25.92,Other Expenditure - General,Direct Marketers - Other,GPC
Statement 19/02/2016 - 31/03/2016,Adults and Communities,Amazon UK Retail,07/03/2016,21.73,Other Expenditure - General,Direct Marketers - Other,GPC
Statement 19/02/2016 - 31/03/2016,Adults and Communities,Amazon UK Retail,09/03/2016,17.67,Other Expenditure - General,Direct Marketers - Other,GPC
Statement 19/02/2016 - 31/03/2016,Adults and Communities,Amazon UK Retail,09/03/2016,63.12,Other Expenditure - General,Direct Marketers - Other,GPC
Statement 19/02/2016 - 31/03/2016,Adults and Communities,Amazon UK Retail,09/03/2016,58.40,Other Expenditure - General,Direct Marketers - Other,GPC
Statement 19/02/2016 - 31/03/2016,Adults and Communities,Amazon UK Retail,09/03/2016,9.98,Other Expenditure - General,Direct Marketers - Other,GPC
Statement 19/02/2016 - 31/03/2016,Adults and Communities,Amazon UK Retail,15/03/2016,90.22,Other Expenditure - General,Direct Marketers - Other,GPC
Statement 19/02/2016 - 31/03/2016,Adults and Communities,Amazon UK Retail,16/03/2016,21.57,Other Expenditure - General,Direct Marketers - Other,GPC
Statement 19/02/2016 - 31/03/2016,Adults and Communities,Amazon UK Retail,16/03/2016,99.05,Other Expenditure - General,Direct Marketers - Other,GPC
Statement 19/02/2016 - 31/03/2016,Adults and Communities,Amazon UK Retail,16/03/2016,16.23,Other Expenditure - General,Direct Marketers - Other,GPC
Statement 19/02/2016 - 31/03/2016,Adults and Communities,Amazon UK Retail,16/03/2016,19.06,Other Expenditure - General,Direct Marketers - Other,GPC
Statement 19/02/2016 - 31/03/2016,Adults and Communities,Amazon UK Retail,16/03/2016,81.17,Other Expenditure - General,Direct Marketers - Other,GPC
Statement 19/02/2016 - 31/03/2016,Adults and Communities,Amazon UK Retail,17/03/2016,13.23,Other Expenditure - General,Direct Marketers - Other,GPC
Statement 19/02/2016 - 31/03/2016,Adults and Communities,Amazon UK Retail,17/03/2016,9.04,Other Expenditure - General,Direct Marketers - Other,GPC
Statement 19/02/2016 - 31/03/2016,Adults and Communities,Amazon UK Retail,17/03/2016,57.78,Other Expenditure - General,Direct Marketers - Other,GPC
Statement 19/02/2016 - 31/03/2016,Adults and Communities,Amazon UK Retail,17/03/2016,22.80,Other Expenditure - General,Direct Marketers - Other,GPC
Statement 19/02/2016 - 31/03/2016,Adults and Communities,Amazon UK Retail,17/03/2016,29.17,Other Expenditure - General,Direct Marketers - Other,GPC
Statement 19/02/2016 - 31/03/2016,Adults and Communities,Amazon UK Retail,17/03/2016,107.68,Other Expenditure - General,Direct Marketers - Other,GPC
Statement 19/02/2016 - 31/03/2016,Adults and Communities,Amazon UK Retail,17/03/2016,12.08,Other Expenditure - General,Direct Marketers - Other,GPC
Statement 19/02/2016 - 31/03/2016,Adults and Communities,Amazon UK Retail,17/03/2016,13.23,Other Expenditure - General,Direct Marketers - Other,GPC
Statement 19/02/2016 - 31/03/2016,Adults and Communities,Amazon UK Retail,17/03/2016,25.91,Other Expenditure - General,Direct Marketers - Other,GPC
Statement 19/02/2016 - 31/03/2016,Adults and Communities,Amazon UK Retail,18/03/2016,227.88,Other Expenditure - General,Direct Marketers - Other,GPC
Statement 19/02/2016 - 31/03/2016,Adults and Communities,Amazon UK Retail,18/03/2016,127.96,Other Expenditure - General,Direct Marketers - Other,GPC
Statement 19/02/2016 - 31/03/2016,Adults and Communities,Amazon UK Retail,18/03/2016,19.07,Other Expenditure - General,Direct Marketers - Other,GPC
Statement 19/02/2016 - 31/03/2016,Adults and Communities,Amazon UK Retail,22/03/2016,66.57,Other Expenditure - General,Direct Marketers - Other,GPC
Statement 19/02/2016 - 31/03/2016,Adults and Communities,Amazon UK Retail,22/03/2016,103.10,Other Expenditure - General,Direct Marketers - Other,GPC
Statement 19/02/2016 - 31/03/2016,Adults and Communities,Amazon UK Retail,22/03/2016,16.59,Other Expenditure - General,Direct Marketers - Other,GPC
Statement 19/02/2016 - 31/03/2016,Adults and Communities,Amazon UK Retail,23/03/2016,24.14,Other Expenditure - General,Direct Marketers - Other,GPC
Statement 19/02/2016 - 31/03/2016,Adults and Communities,Amazon UK Retail,23/03/2016,5.66,Other Expenditure - General,Direct Marketers - Other,GPC
Statement 19/02/2016 - 31/03/2016,Adults and Communities,Amazon UK Retail,29/03/2016,250.00,Other Expenditure - General,Direct Marketers - Other,GPC
Statement 19/02/2016 - 31/03/2016,Adults and Communities,Amazon UK Retail,30/03/2016,39.71,Other Expenditure - General,Direct Marketers - Other,GPC
Statement 19/02/2016 - 31/03/2016,Adults and Communities,Amazon UK Retail,30/03/2016,250.00,Other Expenditure - General,Direct Marketers - Other,GPC
Statement 19/02/2016 - 31/03/2016,Adults and Communities,Amazon UK Retail,31/03/2016,250.00,Other Expenditure - General,Direct Marketers - Other,GPC
Statement 19/02/2016 - 31/03/2016,Adults and Communities,Amazon UK Retail,31/03/2016,61.57,Other Expenditure - General,Direct Marketers - Other,GPC
Statement 19/02/2016 - 31/03/2016,Adults and Communities,Amazon UK Retail,25/02/2016,0.79,Postal Services - General,Direct Marketers - Other,GPC
Statement 19/02/2016 - 31/03/2016,Adults and Communities,Amazon UK Retail,25/02/2016,0.79,Postal Services - General,Direct Marketers - Other,GPC
Statement 19/02/2016 - 31/03/2016,Adults and Communities,Amazon UK Retail,25/02/2016,0.79,Postal Services - General,Direct Marketers - Other,GPC
Statement 19/02/2016 - 31/03/2016,Adults and Communities,Amazon UK Retail,25/02/2016,0.79,Postal Services - General,Direct Marketers - Other,GPC
Statement 19/02/2016 - 31/03/2016,Adults and Communities,Amazon UK Retail,25/02/2016,0.79,Postal Services - General,Direct Marketers - Other,GPC
Statement 19/02/2016 - 31/03/2016,Adults and Communities,Amazon UK Retail,03/03/2016,3.33,Postal Services - General,Direct Marketers - Other,GPC
Statement 19/02/2016 - 31/03/2016,Adults and Communities,Amazon UK Retail,09/03/2016,48.30,Sales-Trading - General,Direct Marketers - Other,GPC
Statement 19/02/2016 - 31/03/2016,Adults and Communities,Amazon UK Retail,25/02/2016,9.99,Stationery - General,Direct Marketers - Other,GPC
Statement 19/02/2016 - 31/03/2016,Adults and Communities,Amazon UK Retail,06/03/2016,54.99,Stationery - General,Direct Marketers - Other,GPC
Statement 19/02/2016 - 31/03/2016,Adults and Communities,ANDY BURKE HISTORICAL SH,11/03/2016,220.00,Materials - General,"Shoe Repair Shops, Shoe Shine Parlors, Hat Cleanin",GPC
Statement 19/02/2016 - 31/03/2016,Adults and Communities,ARCO LTD,15/03/2016,121.14,Display/Conservn/Exhibitions - Displays/Field Research,"Mens, Womens, and Childerens Uniforms and Commerci",GPC
Statement 19/02/2016 - 31/03/2016,Adults and Communities,ARCO LTD,15/03/2016,119.90,Display/Conservn/Exhibitions - Displays/Field Research,"Mens, Womens, and Childerens Uniforms and Commerci",GPC
Statement 19/02/2016 - 31/03/2016,Adults and Communities,ARGOS LEICESTER,09/03/2016,63.98,Aids & Adaptations - Minor Adaptations,Discount Stores,GPC
Statement 19/02/2016 - 31/03/2016,Adults and Communities,ARGOS LEICESTER,09/03/2016,63.98,Aids & Adaptations - Minor Adaptations,Discount Stores,GPC
Statement 19/02/2016 - 31/03/2016,Adults and Communities,ARGOS LTD,04/03/2016,199.99,General Equipment - General,Discount Stores,GPC
Statement 19/02/2016 - 31/03/2016,Adults and Communities,ARGOS LTD,09/03/2016,62.49,General Equipment - General,Discount Stores,GPC
Statement 19/02/2016 - 31/03/2016,Adults and Communities,ARGOS LTD,22/03/2016,24.99,Materials - General,Discount Stores,GPC
Statement 19/02/2016 - 31/03/2016,Adults and Communities,ARGOS LTD,31/03/2016,26.23,Materials - General,Discount Stores,GPC
Statement 19/02/2016 - 31/03/2016,Adults and Communities,ARGOS RETAIL GROUP,17/03/2016,58.32,General Equipment - General,Discount Stores,GPC
Statement 19/02/2016 - 31/03/2016,Adults and Communities,ARGOS RETAIL GROUP,02/03/2016,48.94,Materials - General,Discount Stores,GPC
Statement 19/02/2016 - 31/03/2016,Adults and Communities,ARGOS RETAIL GROUP,07/03/2016,47.93,Materials - General,Discount Stores,GPC
Statement 19/02/2016 - 31/03/2016,Adults and Communities,ARGOS RETAIL GROUP,22/03/2016,237.94,Materials - General,Discount Stores,GPC
Statement 19/02/2016 - 31/03/2016,Adults and Communities,ASDA HOME SHOPPING,01/03/2016,-5.40,Display/Conservn/Exhibitions - General,"Grocery Stores, Supermarkets",GPC
Statement 19/02/2016 - 31/03/2016,Adults and Communities,ASDA HOME SHOPPING,01/03/2016,25.44,Display/Conservn/Exhibitions - General,"Grocery Stores, Supermarkets",GPC
Statement 19/02/2016 - 31/03/2016,Adults and Communities,ASDA STORES,24/02/2016,66.45,Display/Conservn/Exhibitions - General,"Grocery Stores, Supermarkets",GPC
Statement 19/02/2016 - 31/03/2016,Adults and Communities,ASDA STORES,24/03/2016,9.00,Materials - General,"Grocery Stores, Supermarkets",GPC
Statement 19/02/2016 - 31/03/2016,Adults and Communities,ASDA STORES,09/03/2016,20.00,Provisions - General,"Grocery Stores, Supermarkets",GPC
Statement 19/02/2016 - 31/03/2016,Adults and Communities,ASDA SUPERSTORE,24/02/2016,25.93,Provisions - General,"Grocery Stores, Supermarkets",GPC
Statement 19/02/2016 - 31/03/2016,Adults and Communities,ASDA SUPERSTORE,16/03/2016,11.66,Provisions - General,"Grocery Stores, Supermarkets",GPC
Statement 19/02/2016 - 31/03/2016,Adults and Communities,ASTRA ANTIQUES,26/02/2016,65.00,Materials - General,Antique Shops,GPC
Statement 19/02/2016 - 31/03/2016,Adults and Communities,B AND Q 1012,11/03/2016,106.20,R & M of Buildings - General,"Building Materials, Lumber Stores",GPC
Statement 19/02/2016 - 31/03/2016,Adults and Communities,B AND Q 1012,18/03/2016,16.22,R & M of Buildings - General,"Building Materials, Lumber Stores",GPC
Statement 19/02/2016 - 31/03/2016,Adults and Communities,B AND Q 1299,10/03/2016,36.84,Aids & Adaptations - Minor Adaptations,"Building Materials, Lumber Stores",GPC
Statement 19/02/2016 - 31/03/2016,Adults and Communities,B AND Q 1299,16/03/2016,40.84,Aids & Adaptations - Minor Adaptations,"Building Materials, Lumber Stores",GPC
Statement 19/02/2016 - 31/03/2016,Adults and Communities,B&M RETAIL,02/03/2016,32.00,Display/Conservn/Exhibitions - General,Discount Stores,GPC
Statement 19/02/2016 - 31/03/2016,Adults and Communities,B&M RETAIL LTD,11/03/2016,2.98,Display/Conservn/Exhibitions - General,Discount Stores,GPC
Statement 19/02/2016 - 31/03/2016,Adults and Communities,B&M RETAIL LTD,24/03/2016,29.95,Display/Conservn/Exhibitions - General,Discount Stores,GPC
Statement 19/02/2016 - 31/03/2016,Adults and Communities,B&M RETAIL LTD,23/03/2016,4.96,Materials - General,Discount Stores,GPC
Statement 19/02/2016 - 31/03/2016,Adults and Communities,B&M RETAIL LTD,31/03/2016,8.00,Materials - General,Discount Stores,GPC
Statement 19/02/2016 - 31/03/2016,Adults and Communities,B&M RETAIL LTD,14/03/2016,26.99,Provisions - General,Discount Stores,GPC
Statement 19/02/2016 - 31/03/2016,Adults and Communities,BC.BASECAMP 2997305,01/03/2016,14.43,Stationery - General,Membership Organizations-Not Elsewhere Classified,GPC
Statement 19/02/2016 - 31/03/2016,Adults and Communities,BCC REGISTER OFFIC,24/03/2016,12.00,Other Expenditure - General,Government Services-Not Elsewhere Classified,GPC
Statement 19/02/2016 - 31/03/2016,Adults and Communities,BOC TEL ORDER,19/02/2016,6.76,Operational Equipment - General,Chemicals and Allied Products Not Elsewhere Classi,GPC
Statement 19/02/2016 - 31/03/2016,Adults and Communities,BOC TEL ORDER,22/03/2016,6.76,Operational Equipment - General,Chemicals and Allied Products Not Elsewhere Classi,GPC
Statement 19/02/2016 - 31/03/2016,Adults and Communities,BOOTS 0020,15/03/2016,4.98,Other Equipment & Materials - General,"Drug Stores, Pharmacies",GPC
Statement 19/02/2016 - 31/03/2016,Adults and Communities,CARD FACTORY,04/03/2016,1.98,Display/Conservn/Exhibitions - General,"Gift, Card, Novelty, and Souvenir Shops",GPC
Statement 19/02/2016 - 31/03/2016,Adults and Communities,CARECO.CO.UK,26/02/2016,299.00,Furniture - General,Motorcycle Dealers,GPC
Statement 19/02/2016 - 31/03/2016,Adults and Communities,CENTRAL ENG COOP,17/03/2016,69.69,Materials - General,Department Stores,GPC
Statement 19/02/2016 - 31/03/2016,Adults and Communities,CENTRAL ENG COOP,18/03/2016,25.93,Materials - General,Department Stores,GPC
Statement 19/02/2016 - 31/03/2016,Adults and Communities,CENTRAL ENG COOP,19/03/2016,5.92,Materials - General,Department Stores,GPC
Statement 19/02/2016 - 31/03/2016,Adults and Communities,CENTRAL ENG COOP,19/03/2016,36.33,Materials - General,Department Stores,GPC
Statement 19/02/2016 - 31/03/2016,Adults and Communities,CENTRAL ENG COOP,26/03/2016,114.38,Materials - General,Department Stores,GPC
Statement 19/02/2016 - 31/03/2016,Adults and Communities,CENTRAL ENG COOP,28/03/2016,3.00,Materials - General,Department Stores,GPC
Statement 19/02/2016 - 31/03/2016,Adults and Communities,CENTRAL ENG COOP,31/03/2016,92.98,Materials - General,Department Stores,GPC
Statement 19/02/2016 - 31/03/2016,Adults and Communities,CENTRAL ENG COOP,17/02/2016,36.17,Provisions - General,Department Stores,GPC
Statement 19/02/2016 - 31/03/2016,Adults and Communities,CENTRAL ENG COOP,18/02/2016,67.92,Provisions - General,Department Stores,GPC
Statement 19/02/2016 - 31/03/2016,Adults and Communities,CENTRAL ENG COOP,21/02/2016,28.11,Provisions - General,Department Stores,GPC
Statement 19/02/2016 - 31/03/2016,Adults and Communities,CENTRAL ENG COOP,21/02/2016,10.08,Provisions - General,Department Stores,GPC
Statement 19/02/2016 - 31/03/2016,Adults and Communities,CENTRAL ENG COOP,04/03/2016,75.62,Provisions - General,Department Stores,GPC
Statement 19/02/2016 - 31/03/2016,Adults and Communities,CENTRAL ENG COOP,05/03/2016,8.89,Provisions - General,Department Stores,GPC
Statement 19/02/2016 - 31/03/2016,Adults and Communities,CENTRAL ENG COOP,05/03/2016,23.13,Provisions - General,Department Stores,GPC
Statement 19/02/2016 - 31/03/2016,Adults and Communities,CENTRAL ENG COOP,09/03/2016,9.18,Provisions - General,Department Stores,GPC
Statement 19/02/2016 - 31/03/2016,Adults and Communities,CENTRAL ENG COOP,14/03/2016,15.03,Provisions - General,Department Stores,GPC
Statement 19/02/2016 - 31/03/2016,Adults and Communities,CENTRAL ENG COOP,16/03/2016,6.82,Provisions - General,Department Stores,GPC
Statement 19/02/2016 - 31/03/2016,Adults and Communities,CHILD POVERTY,14/03/2016,1847.54,Other Expenditure - General,Charitable and Social Service Organizations,GPC
Statement 19/02/2016 - 31/03/2016,Adults and Communities,CHURCHILL CATERING LTD,23/03/2016,147.42,Operational Equipment - General,Fast-Food Restaurants (Quick Payment Service Pilot,GPC
Statement 19/02/2016 - 31/03/2016,Adults and Communities,CIVIL WAR / PALACE,22/02/2016,91.67,Display/Conservn/Exhibitions - Conservation,Government Services-Not Elsewhere Classified,GPC
Statement 19/02/2016 - 31/03/2016,Adults and Communities,CIVIL WAR / PALACE,05/03/2016,44.10,Other Expenditure - General,Government Services-Not Elsewhere Classified,GPC
Statement 19/02/2016 - 31/03/2016,Adults and Communities,CLARKS SHOES LTD LOUGH,18/02/2016,41.67,Materials - General,Shoe Stores,GPC
Statement 19/02/2016 - 31/03/2016,Adults and Communities,CMPCARESHOP,23/03/2016,10.90,General Equipment - General,Variety Stores,GPC
Statement 19/02/2016 - 31/03/2016,Adults and Communities,CMPCARESHOP,23/03/2016,3.95,Provisions - General,Variety Stores,GPC
Statement 19/02/2016 - 31/03/2016,Adults and Communities,COBBLERS CORNER,02/03/2016,17.97,Provisions - General,"Shoe Repair Shops, Shoe Shine Parlors, Hat Cleanin",GPC
Statement 19/02/2016 - 31/03/2016,Adults and Communities,COMPUTIME DIRECT,14/03/2016,33.54,Operational Equipment - General,Business Services-Not Elsewhere Classified,GPC
Statement 19/02/2016 - 31/03/2016,Adults and Communities,CURRYS ONLINE,23/02/2016,116.66,General Equipment - General,"RADIO, TELEVISION, AND STEREO STORES (ELECTRONIC STORES)",GPC
Statement 19/02/2016 - 31/03/2016,Adults and Communities,CURRYS ONLINE,25/02/2016,319.99,General Equipment - General,"RADIO, TELEVISION, AND STEREO STORES (ELECTRONIC STORES)",GPC
Statement 19/02/2016 - 31/03/2016,Adults and Communities,CURRYS ONLINE,25/02/2016,319.99,General Equipment - General,"RADIO, TELEVISION, AND STEREO STORES (ELECTRONIC STORES)",GPC
Statement 19/02/2016 - 31/03/2016,Adults and Communities,CURRYS ONLINE,02/03/2016,161.64,General Equipment - General,"RADIO, TELEVISION, AND STEREO STORES (ELECTRONIC STORES)",GPC
Statement 19/02/2016 - 31/03/2016,Adults and Communities,CURRYS ONLINE,31/03/2016,27.00,Materials - General,"RADIO, TELEVISION, AND STEREO STORES (ELECTRONIC STORES)",GPC
Statement 19/02/2016 - 31/03/2016,Adults and Communities,CURRYS ONLINE,11/03/2016,82.50,Other Services - General,"RADIO, TELEVISION, AND STEREO STORES (ELECTRONIC STORES)",GPC
Statement 19/02/2016 - 31/03/2016,Adults and Communities,CURRYS SUPERSTORE,28/03/2016,-199.98,Materials - General,"RADIO, TELEVISION, AND STEREO STORES (ELECTRONIC STORES)",GPC
Statement 19/02/2016 - 31/03/2016,Adults and Communities,CURRYS SUPERSTORE,23/03/2016,166.66,Operational Equipment - General,"RADIO, TELEVISION, AND STEREO STORES (ELECTRONIC STORES)",GPC
Statement 19/02/2016 - 31/03/2016,Adults and Communities,CURRYS SUPERSTORE,23/03/2016,16.66,Operational Equipment - General,"RADIO, TELEVISION, AND STEREO STORES (ELECTRONIC STORES)",GPC
Statement 19/02/2016 - 31/03/2016,Adults and Communities,DISPLAYKIT LONG BUCKBY,10/03/2016,140.76,Training Expenses - General,"Stationery, Office, and School Supply Stores",GPC
Statement 19/02/2016 - 31/03/2016,Adults and Communities,DISRIGHTSUK,14/03/2016,252.00,Other Expenditure - General,Charitable and Social Service Organizations,GPC
Statement 19/02/2016 - 31/03/2016,Adults and Communities,DLT MEDIA (UK) LTD,25/02/2016,37.95,Books - General,Miscellaneous Publishing and  Printing,GPC
Statement 19/02/2016 - 31/03/2016,Adults and Communities,DROPBOX GM39M3Z3W8D8,01/03/2016,573.51,IT Equipment - Maintenance,Computer Network/Information Services,GPC
Statement 19/02/2016 - 31/03/2016,Adults and Communities,DUNELM (SOFT FURNISHIN,24/02/2016,38.93,Display/Conservn/Exhibitions - General,"Drapery, Window Coverings, and Upholstery Stores",GPC
Statement 19/02/2016 - 31/03/2016,Adults and Communities,EAST MIDLANDS TRAI,29/02/2016,68.30,Other Equipment & Materials - General,Passenger Railways,GPC
Statement 19/02/2016 - 31/03/2016,Adults and Communities,EAST MIDLANDS TRAI,08/03/2016,28.90,Public Transport -  Staff - General,Passenger Railways,GPC
Statement 19/02/2016 - 31/03/2016,Adults and Communities,EASTMIDLANDSTRAINS,15/03/2016,19.00,Casual/Essential - General,Passenger Railways,GPC
Statement 19/02/2016 - 31/03/2016,Adults and Communities,EASTMIDLANDSTRAINS,22/03/2016,168.80,Casual/Essential - General,Passenger Railways,GPC
Statement 19/02/2016 - 31/03/2016,Adults and Communities,EASTMIDLANDSTRAINS,22/02/2016,75.10,Public Transport -  Staff - General,Passenger Railways,GPC
Statement 19/02/2016 - 31/03/2016,Adults and Communities,EASTMIDLANDSTRAINS,16/03/2016,27.70,Public Transport -  Staff - General,Passenger Railways,GPC
Statement 19/02/2016 - 31/03/2016,Adults and Communities,EDGINGTON ENTERPRI,23/02/2016,11.95,Client/Volunteers - General,"Eating Places, Restaurants",GPC
Statement 19/02/2016 - 31/03/2016,Adults and Communities,ESPO,25/02/2016,90.00,Other Expenditure - General,Government Services-Not Elsewhere Classified,GPC
Statement 19/02/2016 - 31/03/2016,Adults and Communities,ESPO,03/03/2016,3714.20,Other Expenditure - General,Government Services-Not Elsewhere Classified,GPC
Statement 19/02/2016 - 31/03/2016,Adults and Communities,ESPO,23/03/2016,360.00,Other Expenditure - General,Government Services-Not Elsewhere Classified,GPC
Statement 19/02/2016 - 31/03/2016,Adults and Communities,ESPO,08/03/2016,30.83,Stationery - General,Government Services-Not Elsewhere Classified,GPC
Statement 19/02/2016 - 31/03/2016,Adults and Communities,FACEBOOK G58759J7R2,29/02/2016,2.05,Publicity/Marketing - General,Advertising Services,GPC
Statement 19/02/2016 - 31/03/2016,Adults and Communities,FACEBOOK JVPAL9S7R2,31/03/2016,15.00,Publicity/Marketing - Information Provision,Advertising Services,GPC
Statement 19/02/2016 - 31/03/2016,Adults and Communities,FAST KEY SERVICES,26/02/2016,29.74,Other Equipment & Materials - General,Business Services-Not Elsewhere Classified,GPC
Statement 19/02/2016 - 31/03/2016,Adults and Communities,FAST KEY SERVICES,21/03/2016,9.53,Other Services - General,Business Services-Not Elsewhere Classified,GPC
Statement 19/02/2016 - 31/03/2016,Adults and Communities,FIREPROTECT,19/02/2016,34.88,R & M of Buildings - General,Hardware Stores,GPC
Statement 19/02/2016 - 31/03/2016,Adults and Communities,FOREIGN EXCHANGE FEE,02/03/2016,15.77,IT Equipment - Maintenance,Misc-Unknown,GPC
Statement 19/02/2016 - 31/03/2016,Adults and Communities,FOREIGN EXCHANGE FEE,02/03/2016,0.40,Stationery - General,Misc-Unknown,GPC
Statement 19/02/2016 - 31/03/2016,Adults and Communities,GRAYS KITCHEN,16/03/2016,11.50,Display/Conservn/Exhibitions - Conservation,"Eating Places, Restaurants",GPC
Statement 19/02/2016 - 31/03/2016,Adults and Communities,HALFORDS 0428,22/03/2016,20.83,Materials - General,Bicycle Shops-Sales and Service,GPC
Statement 19/02/2016 - 31/03/2016,Adults and Communities,HEMSWELL ANTIQUE CENTRE,26/02/2016,18.00,Materials - General,Antique Shops,GPC
Statement 19/02/2016 - 31/03/2016,Adults and Communities,HEMSWELL ANTIQUE CENTRE,26/02/2016,78.15,Materials - General,Antique Shops,GPC
Statement 19/02/2016 - 31/03/2016,Adults and Communities,HEMSWELL ANTIQUE CENTRE,26/02/2016,22.50,Materials - General,Antique Shops,GPC
Statement 19/02/2016 - 31/03/2016,Adults and Communities,HOBBYCRAFT (INTERNET),25/02/2016,57.95,General Equipment - General,"Artist Supply Stores, Craft Shops",GPC
Statement 19/02/2016 - 31/03/2016,Adults and Communities,HOBBYCRAFT (INTERNET),01/03/2016,8.00,General Equipment - General,"Artist Supply Stores, Craft Shops",GPC
Statement 19/02/2016 - 31/03/2016,Adults and Communities,ICELAND,28/03/2016,9.20,Materials - General,"Grocery Stores, Supermarkets",GPC
Statement 19/02/2016 - 31/03/2016,Adults and Communities,ICELAND,17/02/2016,56.55,Provisions - General,"Grocery Stores, Supermarkets",GPC
Statement 19/02/2016 - 31/03/2016,Adults and Communities,ICELAND,18/02/2016,35.68,Provisions - General,"Grocery Stores, Supermarkets",GPC
Statement 19/02/2016 - 31/03/2016,Adults and Communities,ICELAND,02/03/2016,6.90,Provisions - General,"Grocery Stores, Supermarkets",GPC
Statement 19/02/2016 - 31/03/2016,Adults and Communities,ICELAND,04/03/2016,11.50,Provisions - General,"Grocery Stores, Supermarkets",GPC
Statement 19/02/2016 - 31/03/2016,Adults and Communities,ICELAND,05/03/2016,13.80,Provisions - General,"Grocery Stores, Supermarkets",GPC
Statement 19/02/2016 - 31/03/2016,Adults and Communities,ICELAND,09/03/2016,10.38,Provisions - General,"Grocery Stores, Supermarkets",GPC
Statement 19/02/2016 - 31/03/2016,Adults and Communities,ICELAND,16/03/2016,86.00,Provisions - General,"Grocery Stores, Supermarkets",GPC
Statement 19/02/2016 - 31/03/2016,Adults and Communities,IKEA SACAT,11/03/2016,15.80,Materials - General,Miscellaneous House Furnishing Specialty Shops,GPC
Statement 19/02/2016 - 31/03/2016,Adults and Communities,KFC - COALVILLE,02/03/2016,8.78,Provisions - General,Fast-Food Restaurants (Quick Payment Service Pilot,GPC
Statement 19/02/2016 - 31/03/2016,Adults and Communities,LAKELAND LIMITED,23/03/2016,13.65,Other Equipment & Materials - General,Miscellaneous General Merchandise Stores,GPC
Statement 19/02/2016 - 31/03/2016,Adults and Communities,LEIC CITY COUNCIL,17/02/2016,13.00,Other Expenditure - General,Government Services-Not Elsewhere Classified,GPC
Statement 19/02/2016 - 31/03/2016,Adults and Communities,LEIC CITY COUNCIL,17/02/2016,13.00,Other Expenditure - General,Government Services-Not Elsewhere Classified,GPC
Statement 19/02/2016 - 31/03/2016,Adults and Communities,LEIC CITY COUNCIL,18/02/2016,13.00,Other Expenditure - General,Government Services-Not Elsewhere Classified,GPC
Statement 19/02/2016 - 31/03/2016,Adults and Communities,LEIC CITY COUNCIL,26/02/2016,13.00,Other Expenditure - General,Government Services-Not Elsewhere Classified,GPC
Statement 19/02/2016 - 31/03/2016,Adults and Communities,LEIC CITY COUNCIL,26/02/2016,13.00,Other Expenditure - General,Government Services-Not Elsewhere Classified,GPC
Statement 19/02/2016 - 31/03/2016,Adults and Communities,LEIC CITY COUNCIL,02/03/2016,-10.00,Other Expenditure - General,Government Services-Not Elsewhere Classified,GPC
Statement 19/02/2016 - 31/03/2016,Adults and Communities,LEIC CITY COUNCIL,08/03/2016,13.00,Other Expenditure - General,Government Services-Not Elsewhere Classified,GPC
Statement 19/02/2016 - 31/03/2016,Adults and Communities,LEIC CITY COUNCIL,08/03/2016,13.00,Other Expenditure - General,Government Services-Not Elsewhere Classified,GPC
Statement 19/02/2016 - 31/03/2016,Adults and Communities,LEIC CITY COUNCIL,14/03/2016,-10.00,Other Expenditure - General,Government Services-Not Elsewhere Classified,GPC
Statement 19/02/2016 - 31/03/2016,Adults and Communities,LEIC CITY COUNCIL,17/03/2016,13.00,Other Expenditure - General,Government Services-Not Elsewhere Classified,GPC
Statement 19/02/2016 - 31/03/2016,Adults and Communities,LEICESTER THURMAS,16/03/2016,26.66,Aids & Adaptations - Minor Adaptations,"Building Materials, Lumber Stores",GPC
Statement 19/02/2016 - 31/03/2016,Adults and Communities,LIDL UK,17/02/2016,46.41,Materials - General,"Grocery Stores, Supermarkets",GPC
Statement 19/02/2016 - 31/03/2016,Adults and Communities,LIDL UK,19/02/2016,51.90,Materials - General,"Grocery Stores, Supermarkets",GPC
Statement 19/02/2016 - 31/03/2016,Adults and Communities,LIDL UK,22/02/2016,43.45,Materials - General,"Grocery Stores, Supermarkets",GPC
Statement 19/02/2016 - 31/03/2016,Adults and Communities,LIDL UK,24/02/2016,105.30,Materials - General,"Grocery Stores, Supermarkets",GPC
Statement 19/02/2016 - 31/03/2016,Adults and Communities,LIDL UK,29/02/2016,68.43,Materials - General,"Grocery Stores, Supermarkets",GPC
Statement 19/02/2016 - 31/03/2016,Adults and Communities,LIDL UK,04/03/2016,28.18,Provisions - General,"Grocery Stores, Supermarkets",GPC
Statement 19/02/2016 - 31/03/2016,Adults and Communities,M&S E COMMERCE,02/03/2016,74.50,Display/Conservn/Exhibitions - Exhibitions,"Grocery Stores, Supermarkets",GPC
Statement 19/02/2016 - 31/03/2016,Adults and Communities,MARKS & SPENCER,05/03/2016,11.00,General Equipment - General,"Grocery Stores, Supermarkets",GPC
Statement 19/02/2016 - 31/03/2016,Adults and Communities,MBFG,23/02/2016,15.99,Display/Conservn/Exhibitions - General,Chemicals and Allied Products Not Elsewhere Classi,GPC
Statement 19/02/2016 - 31/03/2016,Adults and Communities,MBFG,31/03/2016,-8.00,Other Equipment & Materials - General,Chemicals and Allied Products Not Elsewhere Classi,GPC
Statement 19/02/2016 - 31/03/2016,Adults and Communities,MCDONALDS,03/03/2016,6.13,Other Expenditure - General,Fast-Food Restaurants (Quick Payment Service Pilot,GPC
Statement 19/02/2016 - 31/03/2016,Adults and Communities,MCDONALDS,22/02/2016,9.97,Provisions - General,"Eating Places, Restaurants",GPC
Statement 19/02/2016 - 31/03/2016,Adults and Communities,MERCURY NEWS 63917/453,19/02/2016,236.83,Newspapers & Periodicals - General,"Grocery Stores, Supermarkets",GPC
Statement 19/02/2016 - 31/03/2016,Adults and Communities,MERCURY NEWS 63933,25/02/2016,33.55,Newspapers & Periodicals - General,"Grocery Stores, Supermarkets",GPC
Statement 19/02/2016 - 31/03/2016,Adults and Communities,NCP LIMITED,05/03/2016,4.00,Public Transport -  Staff - General,Automobile Parking Lots and Garages,GPC
Statement 19/02/2016 - 31/03/2016,Adults and Communities,NCP LIMITED,14/03/2016,14.17,Public Transport -  Staff - General,Automobile Parking Lots and Garages,GPC
Statement 19/02/2016 - 31/03/2016,Adults and Communities,NCP LIMITED,16/03/2016,4.60,Public Transport -  Staff - General,Automobile Parking Lots and Garages,GPC
Statement 19/02/2016 - 31/03/2016,Adults and Communities,NTTNGHM CSTLE CAFE,24/02/2016,114.58,Display/Conservn/Exhibitions - Exhibitions,Government Services-Not Elsewhere Classified,GPC
Statement 19/02/2016 - 31/03/2016,Adults and Communities,OAKWOOD PHARMACY,10/03/2016,5.00,Display/Conservn/Exhibitions - General,"Drug Stores, Pharmacies",GPC
Statement 19/02/2016 - 31/03/2016,Adults and Communities,OCADO RETAIL LIMIT,19/02/2016,66.84,Provisions - General,"Miscellaneous Food Stores-Convenience Stores, Mark",GPC
Statement 19/02/2016 - 31/03/2016,Adults and Communities,OCADO RETAIL LIMIT,22/02/2016,90.11,Provisions - General,"Miscellaneous Food Stores-Convenience Stores, Mark",GPC
Statement 19/02/2016 - 31/03/2016,Adults and Communities,OCADO RETAIL LIMIT,27/02/2016,72.53,Provisions - General,"Miscellaneous Food Stores-Convenience Stores, Mark",GPC
Statement 19/02/2016 - 31/03/2016,Adults and Communities,OCADO RETAIL LIMIT,01/03/2016,75.57,Provisions - General,"Miscellaneous Food Stores-Convenience Stores, Mark",GPC
Statement 19/02/2016 - 31/03/2016,Adults and Communities,OCADO RETAIL LIMIT,05/03/2016,83.65,Provisions - General,"Miscellaneous Food Stores-Convenience Stores, Mark",GPC
Statement 19/02/2016 - 31/03/2016,Adults and Communities,OCADO RETAIL LIMIT,07/03/2016,76.69,Provisions - General,"Miscellaneous Food Stores-Convenience Stores, Mark",GPC
Statement 19/02/2016 - 31/03/2016,Adults and Communities,OCADO RETAIL LIMIT,11/03/2016,81.19,Provisions - General,"Miscellaneous Food Stores-Convenience Stores, Mark",GPC
Statement 19/02/2016 - 31/03/2016,Adults and Communities,OCADO RETAIL LIMIT,14/03/2016,97.91,Provisions - General,"Miscellaneous Food Stores-Convenience Stores, Mark",GPC
Statement 19/02/2016 - 31/03/2016,Adults and Communities,OCADO RETAIL LIMIT,18/03/2016,83.61,Provisions - General,"Miscellaneous Food Stores-Convenience Stores, Mark",GPC
Statement 19/02/2016 - 31/03/2016,Adults and Communities,OCADO RETAIL LIMIT,21/03/2016,95.90,Provisions - General,"Miscellaneous Food Stores-Convenience Stores, Mark",GPC
Statement 19/02/2016 - 31/03/2016,Adults and Communities,OCADO RETAIL LIMIT,26/03/2016,121.02,Provisions - General,"Miscellaneous Food Stores-Convenience Stores, Mark",GPC
Statement 19/02/2016 - 31/03/2016,Adults and Communities,OCADO RETAIL LIMIT,28/03/2016,94.20,Provisions - General,"Miscellaneous Food Stores-Convenience Stores, Mark",GPC
Statement 19/02/2016 - 31/03/2016,Adults and Communities,PARKER MOTOR SERVICES,11/03/2016,10.23,R&M of Vehicles-Non Contract - General,Service Stations (with or without Ancillary Servic,GPC
Statement 19/02/2016 - 31/03/2016,Adults and Communities,PAYPAL  AMSDIGITALP,23/02/2016,19.50,Books - General,Book Stores,GPC
Statement 19/02/2016 - 31/03/2016,Adults and Communities,PAYPAL  BEAUTYDESIR,03/03/2016,3.99,Other Equipment & Materials - General,Cosmetic Stores,GPC
Statement 19/02/2016 - 31/03/2016,Adults and Communities,PAYPAL  BOB1999,09/03/2016,7.70,Other Equipment & Materials - General,Miscellaneous and Specialty Retail Stores,GPC
Statement 19/02/2016 - 31/03/2016,Adults and Communities,PAYPAL  CHENZHIKAI,08/03/2016,0.99,Materials - General,Variety Stores,GPC
Statement 19/02/2016 - 31/03/2016,Adults and Communities,PAYPAL  GRAHAMSPLAC,09/03/2016,4.79,Other Equipment & Materials - General,Professional Services-Not Elsewhere Classified,GPC
Statement 19/02/2016 - 31/03/2016,Adults and Communities,PAYPAL  HERONCOLLEC,09/03/2016,9.00,Other Equipment & Materials - General,Antique Shops,GPC
Statement 19/02/2016 - 31/03/2016,Adults and Communities,PAYPAL  ILLUSION,22/02/2016,12.98,Display/Conservn/Exhibitions - General,"Theatrical Products (Except Motion Pictures), Tick",GPC
Statement 19/02/2016 - 31/03/2016,Adults and Communities,PAYPAL  ILLUSION,22/02/2016,3.98,Display/Conservn/Exhibitions - General,"Theatrical Products (Except Motion Pictures), Tick",GPC
Statement 19/02/2016 - 31/03/2016,Adults and Communities,PAYPAL  INFO,24/02/2016,17.99,Materials - General,"Used Merchandise Stores, Second Hand Stores",GPC
Statement 19/02/2016 - 31/03/2016,Adults and Communities,PAYPAL  IOANAWIMSET,05/03/2016,27.98,Display/Conservn/Exhibitions - Conservation,Variety Stores,GPC
Statement 19/02/2016 - 31/03/2016,Adults and Communities,PAYPAL  JANESHEPPAR,03/03/2016,3.95,Other Equipment & Materials - General,Book Stores,GPC
Statement 19/02/2016 - 31/03/2016,Adults and Communities,PAYPAL  JBEAL1988,24/02/2016,5.26,Other Equipment & Materials - General,Women's Ready to Wear Shoes,GPC
Statement 19/02/2016 - 31/03/2016,Adults and Communities,PAYPAL  JONWINSTOC,16/03/2016,12.45,Other Equipment & Materials - General,Miscellaneous and Specialty Retail Stores,GPC
Statement 19/02/2016 - 31/03/2016,Adults and Communities,PAYPAL  MARTIN THOM,07/03/2016,7.70,Other Equipment & Materials - General,Record Shops,GPC
Statement 19/02/2016 - 31/03/2016,Adults and Communities,PAYPAL  MATRIXTRAIN,08/03/2016,11.40,General Equipment - General,"Management, Consulting and Public Relations Servic",GPC
Statement 19/02/2016 - 31/03/2016,Adults and Communities,PAYPAL  MBFG,25/02/2016,19.99,Display/Conservn/Exhibitions - General,Chemicals and Allied Products Not Elsewhere Classi,GPC
Statement 19/02/2016 - 31/03/2016,Adults and Communities,PAYPAL  MBFG,31/03/2016,-12.00,Other Equipment & Materials - General,Chemicals and Allied Products Not Elsewhere Classi,GPC
Statement 19/02/2016 - 31/03/2016,Adults and Communities,PAYPAL  MERCHANTMAG,22/02/2016,9.49,Display/Conservn/Exhibitions - General,"Hobby, Toy, and Game Shops",GPC
Statement 19/02/2016 - 31/03/2016,Adults and Communities,PAYPAL  MILLFIELDCO,16/03/2016,7.79,Other Equipment & Materials - General,Business Services-Not Elsewhere Classified,GPC
Statement 19/02/2016 - 31/03/2016,Adults and Communities,PAYPAL  NICKSMYTHTR,08/03/2016,121.40,Materials - General,"Lawn and Garden Supply Stores, Nurseries",GPC
Statement 19/02/2016 - 31/03/2016,Adults and Communities,PAYPAL  OFFICE 24 7,29/03/2016,23.99,Stationery - General,Antique Shops,GPC
Statement 19/02/2016 - 31/03/2016,Adults and Communities,PAYPAL  PATIENTHAND,30/03/2016,31.85,Operational Equipment - General,Laboratory/Medical/Dental/Ophthalmic Hospital Equi,GPC
Statement 19/02/2016 - 31/03/2016,Adults and Communities,PAYPAL  READREADING,17/03/2016,253.98,Other Services - General,Charitable and Social Service Organizations,GPC
Statement 19/02/2016 - 31/03/2016,Adults and Communities,PAYPAL  TOMBRADLEY3,03/03/2016,6.95,Other Equipment & Materials - General,"Hobby, Toy, and Game Shops",GPC
Statement 19/02/2016 - 31/03/2016,Adults and Communities,PC WORLD ONLINE,07/03/2016,95.91,IT Equipment - General,"RADIO, TELEVISION, AND STEREO STORES (ELECTRONIC STORES)",GPC
Statement 19/02/2016 - 31/03/2016,Adults and Communities,PC WORLD ONLINE,13/03/2016,254.91,Materials - General,"RADIO, TELEVISION, AND STEREO STORES (ELECTRONIC STORES)",GPC
Statement 19/02/2016 - 31/03/2016,Adults and Communities,PLANNING SOLUTIONS LTD,11/03/2016,11.95,Other Expenditure - General,Tourist Attractions and Exhibits,GPC
Statement 19/02/2016 - 31/03/2016,Adults and Communities,PLANNING SOLUTIONS LTD,11/03/2016,47.85,Public Transport -  Staff - General,Tourist Attractions and Exhibits,GPC
Statement 19/02/2016 - 31/03/2016,Adults and Communities,PONDEN HOME,08/03/2016,38.00,Furniture - General,Miscellaneous House Furnishing Specialty Shops,GPC
Statement 19/02/2016 - 31/03/2016,Adults and Communities,POST OFFICE COUNTER,30/03/2016,7.80,Fees & Charges (845) - Retail,Postage Stamps,GPC
Statement 19/02/2016 - 31/03/2016,Adults and Communities,POST OFFICE COUNTER,23/02/2016,15.12,Other Equipment & Materials - General,Postage Stamps,GPC
Statement 19/02/2016 - 31/03/2016,Adults and Communities,POST OFFICE COUNTER,23/02/2016,12.36,Other Equipment & Materials - General,Postage Stamps,GPC
Statement 19/02/2016 - 31/03/2016,Adults and Communities,POST OFFICE COUNTER,19/02/2016,2.80,Postal Services - General,Postage Stamps,GPC
Statement 19/02/2016 - 31/03/2016,Adults and Communities,POST OFFICE COUNTER,26/02/2016,65.88,Postal Services - General,Postage Stamps,GPC
Statement 19/02/2016 - 31/03/2016,Adults and Communities,POST OFFICE COUNTER,01/03/2016,108.00,Postal Services - General,Postage Stamps,GPC
Statement 19/02/2016 - 31/03/2016,Adults and Communities,POST OFFICE COUNTER,01/03/2016,3.90,Postal Services - General,Postage Stamps,GPC
Statement 19/02/2016 - 31/03/2016,Adults and Communities,POST OFFICE COUNTER,09/03/2016,8.55,Postal Services - General,Postage Stamps,GPC
Statement 19/02/2016 - 31/03/2016,Adults and Communities,POST OFFICE COUNTER,09/03/2016,63.00,Postal Services - General,Postage Stamps,GPC
Statement 19/02/2016 - 31/03/2016,Adults and Communities,POST OFFICE COUNTER,24/03/2016,240.00,Postal Services - General,Postage Stamps,GPC
Statement 19/02/2016 - 31/03/2016,Adults and Communities,POST OFFICE COUNTER,17/03/2016,146.62,Printing - General,Postage Stamps,GPC
Statement 19/02/2016 - 31/03/2016,Adults and Communities,POSTURITE (UK) LTD,24/02/2016,107.10,Operational Equipment - DDA,Commercial Furniture,GPC
Statement 19/02/2016 - 31/03/2016,Adults and Communities,POUNDLAND LTD 1589,24/02/2016,4.00,Display/Conservn/Exhibitions - General,Discount Stores,GPC
Statement 19/02/2016 - 31/03/2016,Adults and Communities,POUNDSTRETCHER 292,11/03/2016,3.99,Display/Conservn/Exhibitions - General,"Drapery, Window Coverings, and Upholstery Stores",GPC
Statement 19/02/2016 - 31/03/2016,Adults and Communities,POUNDSTRETCHER 292,02/03/2016,17.97,Furniture - General,"Drapery, Window Coverings, and Upholstery Stores",GPC
Statement 19/02/2016 - 31/03/2016,Adults and Communities,PREMIER INN44521260,11/03/2016,272.00,Other Expenditure - Public Enquiry fees,PREMIER TRAVEL,GPC
Statement 19/02/2016 - 31/03/2016,Adults and Communities,R J DUTTON LTD,25/02/2016,40.00,Other Expenditure - General,"Heating, Plumbing, Air Conditioning Contractors",GPC
Statement 19/02/2016 - 31/03/2016,Adults and Communities,RAL DISPLAY & MARKETIN,15/03/2016,57.20,Display/Conservn/Exhibitions - Conservation,Business Services-Not Elsewhere Classified,GPC
Statement 19/02/2016 - 31/03/2016,Adults and Communities,REPLICA LTD,09/03/2016,25.10,Other Equipment & Materials - General,"Building Materials, Lumber Stores",GPC
Statement 19/02/2016 - 31/03/2016,Adults and Communities,RICOH ARENA,29/02/2016,141.84,Advertising - General,"Drinking Places (Alcoholic Beverages)-Bars, Tavern",GPC
Statement 19/02/2016 - 31/03/2016,Adults and Communities,ROYAL MAIL,24/02/2016,315.00,Postal Services - General,Postage Stamps,GPC
Statement 19/02/2016 - 31/03/2016,Adults and Communities,RYMAN,09/03/2016,17.58,Stationery - General,"Stationery, Office, and School Supply Stores",GPC
Statement 19/02/2016 - 31/03/2016,Adults and Communities,RYMAN,09/03/2016,14.96,Stationery - General,"Stationery, Office, and School Supply Stores",GPC
Statement 19/02/2016 - 31/03/2016,Adults and Communities,RYMAN,16/03/2016,3.66,Stationery - General,"Stationery, Office, and School Supply Stores",GPC
Statement 19/02/2016 - 31/03/2016,Adults and Communities,RYMAN,30/03/2016,13.42,Stationery - General,"Stationery, Office, and School Supply Stores",GPC
Statement 19/02/2016 - 31/03/2016,Adults and Communities,SAFESTORE LIMITED,11/03/2016,169.48,Other Expenditure - General,Public Warehousing,GPC
Statement 19/02/2016 - 31/03/2016,Adults and Communities,SAINSBURYS LOCAL,27/02/2016,15.75,Provisions - General,"Grocery Stores, Supermarkets",GPC
Statement 19/02/2016 - 31/03/2016,Adults and Communities,SAINSBURYS LOCAL,25/03/2016,15.80,Provisions - General,"Grocery Stores, Supermarkets",GPC
Statement 19/02/2016 - 31/03/2016,Adults and Communities,SAINSBURY'S S/MKT,22/03/2016,8.00,Materials - General,"Grocery Stores, Supermarkets",GPC
Statement 19/02/2016 - 31/03/2016,Adults and Communities,SAINSBURYS S/MKTS,24/02/2016,29.85,Materials - General,"Grocery Stores, Supermarkets",GPC
Statement 19/02/2016 - 31/03/2016,Adults and Communities,Sainsburys S/mkts,11/03/2016,11.20,Materials - General,"Grocery Stores, Supermarkets",GPC
Statement 19/02/2016 - 31/03/2016,Adults and Communities,Sainsburys S/mkts,29/03/2016,14.08,Materials - General,"Grocery Stores, Supermarkets",GPC
Statement 19/02/2016 - 31/03/2016,Adults and Communities,Sainsburys S/mkts,14/03/2016,5.20,Other Expenditure - General,"Grocery Stores, Supermarkets",GPC
Statement 19/02/2016 - 31/03/2016,Adults and Communities,SAINSBURY'S S/MKTS,13/03/2016,10.50,Provisions - General,"Grocery Stores, Supermarkets",GPC
Statement 19/02/2016 - 31/03/2016,Adults and Communities,SCANNING PENS LTD,01/03/2016,206.30,Operational Equipment - DDA,"RADIO, TELEVISION, AND STEREO STORES (ELECTRONIC STORES)",GPC
Statement 19/02/2016 - 31/03/2016,Adults and Communities,SCREWFIX,08/03/2016,41.38,Display/Conservn/Exhibitions - Conservation,"Building Materials, Lumber Stores",GPC
Statement 19/02/2016 - 31/03/2016,Adults and Communities,SCREWFIX DIRECT,16/03/2016,15.83,General Equipment - General,"Building Materials, Lumber Stores",GPC
Statement 19/02/2016 - 31/03/2016,Adults and Communities,SCREWFIX DIRECT,16/03/2016,5.00,Postal Services - General,"Building Materials, Lumber Stores",GPC
Statement 19/02/2016 - 31/03/2016,Adults and Communities,SCREWFIX DIRECT,30/03/2016,32.93,R & M of Buildings - General,"Building Materials, Lumber Stores",GPC
Statement 19/02/2016 - 31/03/2016,Adults and Communities,SCREWFIX DIRECT,30/03/2016,19.95,R & M of Buildings - General,"Building Materials, Lumber Stores",GPC
Statement 19/02/2016 - 31/03/2016,Adults and Communities,SCREWFIX DIRECT,30/03/2016,-3.99,R & M of Buildings - General,"Building Materials, Lumber Stores",GPC
Statement 19/02/2016 - 31/03/2016,Adults and Communities,SHARED LIVES PLUS LIMI,18/03/2016,300.00,Other Expenditure - General,Charitable and Social Service Organizations,GPC
Statement 19/02/2016 - 31/03/2016,Adults and Communities,SHARED LIVES PLUS LIMI,18/03/2016,35.00,Other Expenditure - General,Charitable and Social Service Organizations,GPC
Statement 19/02/2016 - 31/03/2016,Adults and Communities,SKR jammydog.com,03/03/2016,17.61,Stationery - General,"Artist Supply Stores, Craft Shops",GPC
Statement 19/02/2016 - 31/03/2016,Adults and Communities,SPARES SUPPLY COMPANY,07/03/2016,20.83,Other Services - General,Electrical Parts and Equipment,GPC
Statement 19/02/2016 - 31/03/2016,Adults and Communities,STAFFORDSHIRE COUNTY C,18/02/2016,10.00,Other Expenditure - General,Government Services-Not Elsewhere Classified,GPC
Statement 19/02/2016 - 31/03/2016,Adults and Communities,STAPLES UK,31/03/2016,12.98,Stationery - General,"Stationery, Office, and School Supply Stores",GPC
Statement 19/02/2016 - 31/03/2016,Adults and Communities,STARBUCKS,31/03/2016,6.75,Subsistence - General,Fast-Food Restaurants (Quick Payment Service Pilot,GPC
Statement 19/02/2016 - 31/03/2016,Adults and Communities,SURVEYMONKEY.COM,12/03/2016,21.67,Publicity/Marketing - General,Computer Network/Information Services,GPC
Statement 19/02/2016 - 31/03/2016,Adults and Communities,TALKTALK BUSINESS,23/02/2016,56.52,Telephones - General,Telecommunication Service Including Local and Long,GPC
Statement 19/02/2016 - 31/03/2016,Adults and Communities,TALKTALK BUSINESS,21/03/2016,40.86,Telephones - General,Telecommunication Service Including Local and Long,GPC
Statement 19/02/2016 - 31/03/2016,Adults and Communities,TESCO STORE 2849,26/02/2016,11.55,Display/Conservn/Exhibitions - General,"Grocery Stores, Supermarkets",GPC
Statement 19/02/2016 - 31/03/2016,Adults and Communities,TESCO STORE 2849,04/03/2016,10.49,Display/Conservn/Exhibitions - General,"Grocery Stores, Supermarkets",GPC
Statement 19/02/2016 - 31/03/2016,Adults and Communities,TESCO STORES 5182,10/03/2016,20.00,Consultants & Specialists - General,"Grocery Stores, Supermarkets",GPC
Statement 19/02/2016 - 31/03/2016,Adults and Communities,TESCO STORES 5182,17/02/2016,4.17,General Equipment - General,"Grocery Stores, Supermarkets",GPC
Statement 19/02/2016 - 31/03/2016,Adults and Communities,TESCO STORES 5182,17/02/2016,49.10,Provisions - General,"Grocery Stores, Supermarkets",GPC
Statement 19/02/2016 - 31/03/2016,Adults and Communities,TESCO STORES 5182,19/02/2016,88.89,Provisions - General,"Grocery Stores, Supermarkets",GPC
Statement 19/02/2016 - 31/03/2016,Adults and Communities,TESCO STORES 5182,22/02/2016,70.70,Provisions - General,"Grocery Stores, Supermarkets",GPC
Statement 19/02/2016 - 31/03/2016,Adults and Communities,TESCO STORES 5182,26/02/2016,117.72,Provisions - General,"Grocery Stores, Supermarkets",GPC
Statement 19/02/2016 - 31/03/2016,Adults and Communities,TESCO STORES 5182,03/03/2016,141.02,Provisions - General,"Grocery Stores, Supermarkets",GPC
Statement 19/02/2016 - 31/03/2016,Adults and Communities,TESCO STORES 5182,07/03/2016,101.24,Provisions - General,"Grocery Stores, Supermarkets",GPC
Statement 19/02/2016 - 31/03/2016,Adults and Communities,TESCO STORES 5182,11/03/2016,223.23,Provisions - General,"Grocery Stores, Supermarkets",GPC
Statement 19/02/2016 - 31/03/2016,Adults and Communities,TESCO STORES 5182,14/03/2016,81.08,Provisions - General,"Grocery Stores, Supermarkets",GPC
Statement 19/02/2016 - 31/03/2016,Adults and Communities,TESCO STORES 5182,18/03/2016,153.44,Provisions - General,"Grocery Stores, Supermarkets",GPC
Statement 19/02/2016 - 31/03/2016,Adults and Communities,TESCO STORES 5182,21/03/2016,184.46,Provisions - General,"Grocery Stores, Supermarkets",GPC
Statement 19/02/2016 - 31/03/2016,Adults and Communities,TESCO STORES 5182,25/03/2016,142.43,Provisions - General,"Grocery Stores, Supermarkets",GPC
Statement 19/02/2016 - 31/03/2016,Adults and Communities,TESCO STORES 5182,29/03/2016,140.37,Provisions - General,"Grocery Stores, Supermarkets",GPC
Statement 19/02/2016 - 31/03/2016,Adults and Communities,TESCO-STORES 2846,19/02/2016,4.00,Other Expenditure - General,"Grocery Stores, Supermarkets",GPC
Statement 19/02/2016 - 31/03/2016,Adults and Communities,THE CONSORTIUM/WMS,23/03/2016,18.34,Other Expenditure - General,Continuity/Subscription Merchants,GPC
Statement 19/02/2016 - 31/03/2016,Adults and Communities,THE MERCHANT VENTURERS,11/03/2016,105.00,Display/Conservn/Exhibitions - Conservation,Antique Shops,GPC
Statement 19/02/2016 - 31/03/2016,Adults and Communities,THE POST OFFICE,22/03/2016,9.78,Display/Conservn/Exhibitions - General,Postage Stamps,GPC
Statement 19/02/2016 - 31/03/2016,Adults and Communities,THE RANGE,02/03/2016,2.99,Display/Conservn/Exhibitions - General,Department Stores,GPC
Statement 19/02/2016 - 31/03/2016,Adults and Communities,THE ROSE COTTAGE,08/03/2016,45.79,Display/Conservn/Exhibitions - Exhibitions,"Eating Places, Restaurants",GPC
Statement 19/02/2016 - 31/03/2016,Adults and Communities,THREE-BILLPAY(CC),07/03/2016,19.99,Other Expenditure - General,Telecommunication Service Including Local and Long,GPC
Statement 19/02/2016 - 31/03/2016,Adults and Communities,THREE-BILLPAY(CC),07/03/2016,9.99,Schools Agency staff - Support Staff,Telecommunication Service Including Local and Long,GPC
Statement 19/02/2016 - 31/03/2016,Adults and Communities,TIMPSON LTD,16/03/2016,8.33,General Equipment - General,"Shoe Repair Shops, Shoe Shine Parlors, Hat Cleanin",GPC
Statement 19/02/2016 - 31/03/2016,Adults and Communities,TIMPSON LTD,09/03/2016,30.00,Other Services - General,"Shoe Repair Shops, Shoe Shine Parlors, Hat Cleanin",GPC
Statement 19/02/2016 - 31/03/2016,Adults and Communities,TOMLINSONS,18/03/2016,100.20,Stationery - General,Book Stores,GPC
Statement 19/02/2016 - 31/03/2016,Adults and Communities,TRAINLINE,22/02/2016,75.99,Casual/Essential - General,Passenger Railways,GPC
Statement 19/02/2016 - 31/03/2016,Adults and Communities,TRAINLINE,01/03/2016,111.28,Casual/Essential - General,Passenger Railways,GPC
Statement 19/02/2016 - 31/03/2016,Adults and Communities,TRAINLINE,01/03/2016,41.31,Public Transport -  Staff - General,Passenger Railways,GPC
Statement 19/02/2016 - 31/03/2016,Adults and Communities,TRAINLINE,01/03/2016,137.80,Public Transport -  Staff - General,Passenger Railways,GPC
Statement 19/02/2016 - 31/03/2016,Adults and Communities,TRAINLINE,04/03/2016,93.94,Public Transport -  Staff - General,Passenger Railways,GPC
Statement 19/02/2016 - 31/03/2016,Adults and Communities,TRAINLINE,07/03/2016,82.21,Public Transport -  Staff - General,Passenger Railways,GPC
Statement 19/02/2016 - 31/03/2016,Adults and Communities,TRAINLINE,14/03/2016,168.81,Public Transport -  Staff - General,Passenger Railways,GPC
Statement 19/02/2016 - 31/03/2016,Adults and Communities,TRAINLINE,21/03/2016,53.55,Public Transport -  Staff - General,Passenger Railways,GPC
Statement 19/02/2016 - 31/03/2016,Adults and Communities,TRINITY COURT POTTERIE,11/03/2016,173.00,Display/Conservn/Exhibitions - Conservation,"Artist Supply Stores, Craft Shops",GPC
Statement 19/02/2016 - 31/03/2016,Adults and Communities,TRINITY COURT POTTERIE,21/03/2016,42.00,Materials - General,"Artist Supply Stores, Craft Shops",GPC
Statement 19/02/2016 - 31/03/2016,Adults and Communities,TV LICENSING,04/03/2016,145.50,Operational Equipment - General,"Management, Consulting and Public Relations Servic",GPC
Statement 19/02/2016 - 31/03/2016,Adults and Communities,TVLICENSING.CO.UK,24/02/2016,145.50,Schools Agency staff - Teaching Staff,"Management, Consulting and Public Relations Servic",GPC
Statement 19/02/2016 - 31/03/2016,Adults and Communities,UPS LTD SHIPPING FEES,29/02/2016,20.07,Private Contractors - General,"Courier Services-Air and Ground, and Freight Forw",GPC
Statement 19/02/2016 - 31/03/2016,Adults and Communities,UPT-EAST MIDLANDS TRN-LB,02/03/2016,11.50,Other Equipment & Materials - General,Professional Services-Not Elsewhere Classified,GPC
Statement 19/02/2016 - 31/03/2016,Adults and Communities,VIRGINTRAINSEC SERVCS,23/02/2016,101.00,Public Transport -  Staff - General,Passenger Railways,GPC
Statement 19/02/2016 - 31/03/2016,Adults and Communities,W M MORRISONS CAFE,23/03/2016,6.50,Subsistence - General,"Eating Places, Restaurants",GPC
Statement 19/02/2016 - 31/03/2016,Adults and Communities,WEBBERLEY,14/03/2016,900.00,Display/Conservn/Exhibitions - Conservation,Antique Shops,GPC
Statement 19/02/2016 - 31/03/2016,Adults and Communities,WELCO,15/03/2016,199.95,Operational Equipment - General,Durable Goods Not Elsewhere Classified,GPC
Statement 19/02/2016 - 31/03/2016,Adults and Communities,WH SMITH,04/03/2016,20.00,Display/Conservn/Exhibitions - General,News Dealers and Newsstands,GPC
Statement 19/02/2016 - 31/03/2016,Adults and Communities,WILKO RETAIL LIMIT,24/02/2016,17.50,General Equipment - General,Household Appliance Stores,GPC
Statement 19/02/2016 - 31/03/2016,Adults and Communities,WILKO RETAIL LIMIT,24/02/2016,25.17,Materials - General,Household Appliance Stores,GPC
Statement 19/02/2016 - 31/03/2016,Adults and Communities,WILKO RETAIL LIMIT,02/03/2016,-3.99,Materials - General,Household Appliance Stores,GPC
Statement 19/02/2016 - 31/03/2016,Adults and Communities,WILKO RETAIL LIMIT,09/03/2016,6.80,Materials - General,Household Appliance Stores,GPC
Statement 19/02/2016 - 31/03/2016,Adults and Communities,WILKO RETAIL LIMIT,15/03/2016,9.83,Materials - General,Household Appliance Stores,GPC
Statement 19/02/2016 - 31/03/2016,Adults and Communities,WILKO RETAIL LIMIT,16/03/2016,7.00,Materials - General,Household Appliance Stores,GPC
Statement 19/02/2016 - 31/03/2016,Adults and Communities,WILKO RETAIL LIMIT,18/03/2016,22.05,Materials - General,Household Appliance Stores,GPC
Statement 19/02/2016 - 31/03/2016,Adults and Communities,WILKO RETAIL LIMIT,23/03/2016,8.35,Materials - General,Household Appliance Stores,GPC
Statement 19/02/2016 - 31/03/2016,Adults and Communities,WILKO RETAIL LIMIT,11/03/2016,6.00,Operational Equipment - General,Household Appliance Stores,GPC
Statement 19/02/2016 - 31/03/2016,Adults and Communities,WILKO RETAIL LIMIT,14/03/2016,3.75,Other Equipment & Materials - General,Household Appliance Stores,GPC
Statement 19/02/2016 - 31/03/2016,Adults and Communities,WILKO RETAIL LIMIT,03/03/2016,42.02,Other Services - General,Household Appliance Stores,GPC
Statement 19/02/2016 - 31/03/2016,Adults and Communities,WITHYCOMBE FAIR,08/03/2016,7.63,Other Equipment & Materials - General,Caterers,GPC
Statement 19/02/2016 - 31/03/2016,Adults and Communities,WM MORRISON 054,20/03/2016,85.37,Materials - General,"Grocery Stores, Supermarkets",GPC
Statement 19/02/2016 - 31/03/2016,Adults and Communities,WM MORRISON 054,23/03/2016,18.73,Materials - General,"Grocery Stores, Supermarkets",GPC
Statement 19/02/2016 - 31/03/2016,Adults and Communities,WM MORRISON 054,24/03/2016,11.10,Materials - General,"Grocery Stores, Supermarkets",GPC
Statement 19/02/2016 - 31/03/2016,Adults and Communities,WM MORRISON 054,24/03/2016,114.75,Materials - General,"Grocery Stores, Supermarkets",GPC
Statement 19/02/2016 - 31/03/2016,Adults and Communities,WM MORRISON 054,31/03/2016,43.32,Materials - General,"Grocery Stores, Supermarkets",GPC
Statement 19/02/2016 - 31/03/2016,Adults and Communities,WM MORRISON 054,18/02/2016,90.40,Provisions - General,"Grocery Stores, Supermarkets",GPC
Statement 19/02/2016 - 31/03/2016,Adults and Communities,WM MORRISON 054,22/02/2016,28.25,Provisions - General,"Grocery Stores, Supermarkets",GPC
Statement 19/02/2016 - 31/03/2016,Adults and Communities,WM MORRISON 054,27/02/2016,164.83,Provisions - General,"Grocery Stores, Supermarkets",GPC
Statement 19/02/2016 - 31/03/2016,Adults and Communities,WM MORRISON 054,02/03/2016,107.51,Provisions - General,"Grocery Stores, Supermarkets",GPC
Statement 19/02/2016 - 31/03/2016,Adults and Communities,WM MORRISON 054,11/03/2016,107.57,Provisions - General,"Grocery Stores, Supermarkets",GPC
Statement 19/02/2016 - 31/03/2016,Adults and Communities,WM MORRISON 054,13/03/2016,94.12,Provisions - General,"Grocery Stores, Supermarkets",GPC
Statement 19/02/2016 - 31/03/2016,Adults and Communities,WM MORRISONS,19/02/2016,8.32,Provisions - General,"Grocery Stores, Supermarkets",GPC
Statement 19/02/2016 - 31/03/2016,Adults and Communities,WM MORRISONS,07/03/2016,18.00,Provisions - General,"Grocery Stores, Supermarkets",GPC
Statement 19/02/2016 - 31/03/2016,Adults and Communities,WM MORRISONS,19/03/2016,20.95,Provisions - General,"Grocery Stores, Supermarkets",GPC
Statement 19/02/2016 - 31/03/2016,Adults and Communities,WM MORRISONS,23/03/2016,59.67,Provisions - General,"Grocery Stores, Supermarkets",GPC
Statement 19/02/2016 - 31/03/2016,Adults and Communities,WM MORRISONS,26/03/2016,26.72,Provisions - General,"Grocery Stores, Supermarkets",GPC
Statement 19/02/2016 - 31/03/2016,Adults and Communities,WORLDSTORES LTD,25/03/2016,1774.49,Other Expenditure - General,Miscellaneous House Furnishing Specialty Shops,GPC
Statement 19/02/2016 - 31/03/2016,Adults and Communities,WP-WARWICKSHIRE CO,02/03/2016,10.63,Other Expenditure - General,Government Services-Not Elsewhere Classified,GPC
Statement 19/02/2016 - 31/03/2016,Adults and Communities,WWW.BUNZLCATERING.CO.U,31/03/2016,66.26,Catering Equipment - General,Business Services-Not Elsewhere Classified,GPC
Statement 19/02/2016 - 31/03/2016,Adults and Communities,WWW.CHEESEMAKINGSHOP.C,08/03/2016,6.39,Other Equipment & Materials - General,"Miscellaneous Food Stores-Convenience Stores, Mark",GPC
Statement 19/02/2016 - 31/03/2016,Adults and Communities,WWW.FILMBANK.CO.UK,22/02/2016,170.19,Materials - General,Motion Picture and Video Tape Production,GPC
Statement 19/02/2016 - 31/03/2016,Adults and Communities,WWW.FUSSFREESALES.CO.U,02/03/2016,185.67,Stationery - General,"Stationery, Office, and School Supply Stores",GPC
Statement 19/02/2016 - 31/03/2016,Adults and Communities,WWW.GOV.UK,14/03/2016,227.50,Road Licences - General,Government Services-Not Elsewhere Classified,GPC
Statement 19/02/2016 - 31/03/2016,Adults and Communities,WWW.HEWITONLINE.COM,01/03/2016,154.40,Display/Conservn/Exhibitions - Conservation,Luggage and Leather Goods Stores,GPC
Statement 19/02/2016 - 31/03/2016,Adults and Communities,WWW.ILXGROUP.COM,15/03/2016,59.99,Training Expenses - General,"Colleges, Universities, Professional Schools, and",GPC
Statement 19/02/2016 - 31/03/2016,Adults and Communities,WWW.IRONMONGERYDIRECT.,11/03/2016,66.30,General Equipment - General,"Glass, Paint, Wallpaper Stores",GPC
Statement 19/02/2016 - 31/03/2016,Adults and Communities,WWW.MAPLIN.CO.UK,17/02/2016,249.98,General Equipment - General,"RADIO, TELEVISION, AND STEREO STORES (ELECTRONIC STORES)",GPC
Statement 19/02/2016 - 31/03/2016,Adults and Communities,WWW.MIND.ORG.UK,05/03/2016,231.00,Other Services - General,Charitable and Social Service Organizations,GPC
Statement 19/02/2016 - 31/03/2016,Adults and Communities,WWW.MYGREENLIGHTING.CO,31/03/2016,27.51,Materials - General,Household Appliance Stores,GPC
Statement 19/02/2016 - 31/03/2016,Adults and Communities,WWW.OFCOM.ORG.UK,31/03/2016,75.00,Operational Equipment - General,Professional Services-Not Elsewhere Classified,GPC
Statement 19/02/2016 - 31/03/2016,Adults and Communities,WWW.ONLINEREALITY.CO.UK,24/03/2016,1651.32,Other Expenditure - General,"Furniture, Home Furnishings and Equipment Stores,",GPC
Statement 19/02/2016 - 31/03/2016,Adults and Communities,WWW.PARTMASTER.CO.UK,15/03/2016,31.34,R & M of Buildings - General,Electrical Parts and Equipment,GPC
Statement 19/02/2016 - 31/03/2016,Adults and Communities,WWW.PEWTERREPLICAS.COM,08/03/2016,16.00,Other Equipment & Materials - General,"Jewelry-Watches, Clocks, and Silverware Stores",GPC
Statement 19/02/2016 - 31/03/2016,Adults and Communities,WWW.POSTURITE.CO.UK,17/03/2016,20.34,Stationery - General,Commercial Furniture,GPC
Statement 19/02/2016 - 31/03/2016,Adults and Communities,WWW.PROP4SHOWS.O.UK,07/03/2016,29.30,Materials - General,Miscellaneous Apparel and Accessory Stores,GPC
Statement 19/02/2016 - 31/03/2016,Adults and Communities,WWW.PROP4SHOWS.O.UK,30/03/2016,350.60,Materials - General,Miscellaneous Apparel and Accessory Stores,GPC
Statement 19/02/2016 - 31/03/2016,Adults and Communities,WWW.PROP4SHOWS.O.UK,08/03/2016,44.42,Other Equipment & Materials - General,Miscellaneous Apparel and Accessory Stores,GPC
Statement 19/02/2016 - 31/03/2016,Adults and Communities,WWW.PROP4SHOWS.O.UK,11/03/2016,10.75,Other Equipment & Materials - General,Miscellaneous Apparel and Accessory Stores,GPC
Statement 19/02/2016 - 31/03/2016,Adults and Communities,WWW.PROP4SHOWS.O.UK,14/03/2016,17.85,Other Equipment & Materials - General,Miscellaneous Apparel and Accessory Stores,GPC
Statement 19/02/2016 - 31/03/2016,Adults and Communities,WWW.PROP4SHOWS.O.UK,14/03/2016,5.90,Other Equipment & Materials - General,Miscellaneous Apparel and Accessory Stores,GPC
Statement 19/02/2016 - 31/03/2016,Adults and Communities,WWW.PROP4SHOWS.O.UK,16/03/2016,9.53,Other Equipment & Materials - General,Miscellaneous Apparel and Accessory Stores,GPC
Statement 19/02/2016 - 31/03/2016,Adults and Communities,WWW.ROYALMAIL.COM,17/02/2016,484.75,Postal Services - General,Postage Stamps,GPC
Statement 19/02/2016 - 31/03/2016,Adults and Communities,WWW.THEDUVETSTORE.CO.U,07/03/2016,100.95,Materials - General,Miscellaneous and Specialty Retail Stores,GPC
Statement 19/02/2016 - 31/03/2016,Adults and Communities,WWW.THEMETALSTORE.CO.U,01/03/2016,24.99,Operational Equipment - General,Industrial Supplies Not Elsewhere Classified,GPC
Statement 19/02/2016 - 31/03/2016,Adults and Communities,WWW.YHA.ORG.UK,09/03/2016,113.75,Subsistence - General,"Lodging-Hotels, Motels, Resorts",GPC
Statement 19/02/2016 - 31/03/2016,Adults and Communities,WWW.ZEN.CO.UK,29/02/2016,34.76,Telephones - General,Computer Network/Information Services,GPC
Statement 19/02/2016 - 31/03/2016,Adults and Communities,WWW.ZEN.CO.UK,30/03/2016,34.76,Telephones - General,Computer Network/Information Services,GPC
Statement 19/02/2016 - 31/03/2016,C&YPS-Non Delegated,43034775 COSTA COFFEE,19/02/2016,4.90,Other Expenditure - General,Fast-Food Restaurants (Quick Payment Service Pilot,GPC
Statement 19/02/2016 - 31/03/2016,C&YPS-Non Delegated,ALDI,21/03/2016,9.00,Cleaning Materials - General,"Grocery Stores, Supermarkets",GPC
Statement 19/02/2016 - 31/03/2016,C&YPS-Non Delegated,ALDI,07/03/2016,35.03,Other Expenditure - General,"Grocery Stores, Supermarkets",GPC
Statement 19/02/2016 - 31/03/2016,C&YPS-Non Delegated,ALDI,14/03/2016,19.43,Other Expenditure - General,"Grocery Stores, Supermarkets",GPC
Statement 19/02/2016 - 31/03/2016,C&YPS-Non Delegated,ALDI,21/03/2016,25.85,Other Expenditure - General,"Grocery Stores, Supermarkets",GPC
Statement 19/02/2016 - 31/03/2016,C&YPS-Non Delegated,ALDI,24/03/2016,89.89,Other Expenditure - General,"Grocery Stores, Supermarkets",GPC
Statement 19/02/2016 - 31/03/2016,C&YPS-Non Delegated,ALDI,23/02/2016,73.61,Provisions - General,"Grocery Stores, Supermarkets",GPC
Statement 19/02/2016 - 31/03/2016,C&YPS-Non Delegated,ALDI,29/02/2016,117.91,Provisions - General,"Grocery Stores, Supermarkets",GPC
Statement 19/02/2016 - 31/03/2016,C&YPS-Non Delegated,ALDI,06/03/2016,93.35,Provisions - General,"Grocery Stores, Supermarkets",GPC
Statement 19/02/2016 - 31/03/2016,C&YPS-Non Delegated,ALDI,18/03/2016,105.21,Provisions - General,"Grocery Stores, Supermarkets",GPC
Statement 19/02/2016 - 31/03/2016,C&YPS-Non Delegated,ALDI,21/03/2016,90.26,Provisions - General,"Grocery Stores, Supermarkets",GPC
Statement 19/02/2016 - 31/03/2016,C&YPS-Non Delegated,Amazon Svcs Europe SAR,25/02/2016,44.60,Books - General,Book Stores,GPC
Statement 19/02/2016 - 31/03/2016,C&YPS-Non Delegated,Amazon Svcs Europe SAR,27/02/2016,49.11,Books - General,Book Stores,GPC
Statement 19/02/2016 - 31/03/2016,C&YPS-Non Delegated,Amazon Svcs Europe SAR,12/03/2016,72.88,Books - General,Book Stores,GPC
Statement 19/02/2016 - 31/03/2016,C&YPS-Non Delegated,Amazon Svcs Europe SAR,22/03/2016,33.15,Books - General,Book Stores,GPC
Statement 19/02/2016 - 31/03/2016,C&YPS-Non Delegated,Amazon UK Marketplace,25/02/2016,95.85,Books - General,Book Stores,GPC
Statement 19/02/2016 - 31/03/2016,C&YPS-Non Delegated,Amazon UK Marketplace,26/02/2016,49.10,Books - General,Miscellaneous and Specialty Retail Stores,GPC
Statement 19/02/2016 - 31/03/2016,C&YPS-Non Delegated,Amazon UK Marketplace,09/03/2016,26.06,Books - General,Book Stores,GPC
Statement 19/02/2016 - 31/03/2016,C&YPS-Non Delegated,Amazon UK Marketplace,09/03/2016,23.75,Books - General,Miscellaneous and Specialty Retail Stores,GPC
Statement 19/02/2016 - 31/03/2016,C&YPS-Non Delegated,Amazon UK Marketplace,10/03/2016,11.43,Books - General,Miscellaneous and Specialty Retail Stores,GPC
Statement 19/02/2016 - 31/03/2016,C&YPS-Non Delegated,Amazon UK Marketplace,04/03/2016,164.93,General Equipment - General,Book Stores,GPC
Statement 19/02/2016 - 31/03/2016,C&YPS-Non Delegated,Amazon UK Marketplace,07/03/2016,9.99,General Equipment - General,Miscellaneous and Specialty Retail Stores,GPC
Statement 19/02/2016 - 31/03/2016,C&YPS-Non Delegated,Amazon UK Marketplace,21/02/2016,164.97,Materials - General,Book Stores,GPC
Statement 19/02/2016 - 31/03/2016,C&YPS-Non Delegated,Amazon UK Marketplace,22/02/2016,2.99,Materials - General,Miscellaneous and Specialty Retail Stores,GPC
Statement 19/02/2016 - 31/03/2016,C&YPS-Non Delegated,Amazon UK Marketplace,18/02/2016,14.81,Other Equipment & Materials - General,Miscellaneous and Specialty Retail Stores,GPC
Statement 19/02/2016 - 31/03/2016,C&YPS-Non Delegated,Amazon UK Marketplace,23/02/2016,199.99,Other Equipment & Materials - General,Book Stores,GPC
Statement 19/02/2016 - 31/03/2016,C&YPS-Non Delegated,Amazon UK Marketplace,23/02/2016,11.75,Other Equipment & Materials - General,Miscellaneous and Specialty Retail Stores,GPC
Statement 19/02/2016 - 31/03/2016,C&YPS-Non Delegated,Amazon UK Marketplace,23/02/2016,17.40,Other Equipment & Materials - General,Miscellaneous and Specialty Retail Stores,GPC
Statement 19/02/2016 - 31/03/2016,C&YPS-Non Delegated,Amazon UK Marketplace,01/03/2016,78.50,Other Equipment & Materials - General,Miscellaneous and Specialty Retail Stores,GPC
Statement 19/02/2016 - 31/03/2016,C&YPS-Non Delegated,Amazon UK Marketplace,10/03/2016,55.80,Other Equipment & Materials - General,Miscellaneous and Specialty Retail Stores,GPC
Statement 19/02/2016 - 31/03/2016,C&YPS-Non Delegated,Amazon UK Marketplace,14/03/2016,28.04,Other Equipment & Materials - General,Miscellaneous and Specialty Retail Stores,GPC
Statement 19/02/2016 - 31/03/2016,C&YPS-Non Delegated,Amazon UK Marketplace,14/03/2016,67.35,Other Equipment & Materials - General,Miscellaneous and Specialty Retail Stores,GPC
Statement 19/02/2016 - 31/03/2016,C&YPS-Non Delegated,Amazon UK Marketplace,15/03/2016,13.35,Other Equipment & Materials - General,Miscellaneous and Specialty Retail Stores,GPC
Statement 19/02/2016 - 31/03/2016,C&YPS-Non Delegated,Amazon UK Marketplace,15/03/2016,28.99,Other Equipment & Materials - General,Miscellaneous and Specialty Retail Stores,GPC
Statement 19/02/2016 - 31/03/2016,C&YPS-Non Delegated,Amazon UK Marketplace,16/03/2016,189.90,Other Equipment & Materials - General,Book Stores,GPC
Statement 19/02/2016 - 31/03/2016,C&YPS-Non Delegated,Amazon UK Marketplace,16/03/2016,13.80,Other Equipment & Materials - General,Miscellaneous and Specialty Retail Stores,GPC
Statement 19/02/2016 - 31/03/2016,C&YPS-Non Delegated,Amazon UK Marketplace,01/03/2016,30.40,Other Expenditure - General,Miscellaneous and Specialty Retail Stores,GPC
Statement 19/02/2016 - 31/03/2016,C&YPS-Non Delegated,Amazon UK Retail,07/03/2016,52.02,Books - General,Direct Marketers - Other,GPC
Statement 19/02/2016 - 31/03/2016,C&YPS-Non Delegated,Amazon UK Retail,08/03/2016,24.04,Books - General,Direct Marketers - Other,GPC
Statement 19/02/2016 - 31/03/2016,C&YPS-Non Delegated,Amazon UK Retail,22/03/2016,15.70,Books - General,Direct Marketers - Other,GPC
Statement 19/02/2016 - 31/03/2016,C&YPS-Non Delegated,Amazon UK Retail,23/03/2016,23.21,Books - General,Direct Marketers - Other,GPC
Statement 19/02/2016 - 31/03/2016,C&YPS-Non Delegated,Amazon UK Retail,17/02/2016,32.98,Materials - General,Direct Marketers - Other,GPC
Statement 19/02/2016 - 31/03/2016,C&YPS-Non Delegated,Amazon UK Retail,17/02/2016,32.98,Materials - General,Direct Marketers - Other,GPC
Statement 19/02/2016 - 31/03/2016,C&YPS-Non Delegated,Amazon UK Retail,22/02/2016,20.83,Materials - General,Direct Marketers - Other,GPC
Statement 19/02/2016 - 31/03/2016,C&YPS-Non Delegated,Amazon UK Retail,07/03/2016,30.12,Materials - General,Direct Marketers - Other,GPC
Statement 19/02/2016 - 31/03/2016,C&YPS-Non Delegated,Amazon UK Retail,23/03/2016,44.31,Materials - General,Direct Marketers - Other,GPC
Statement 19/02/2016 - 31/03/2016,C&YPS-Non Delegated,Amazon UK Retail,15/03/2016,269.22,Other Equipment & Materials - General,Direct Marketers - Other,GPC
Statement 19/02/2016 - 31/03/2016,C&YPS-Non Delegated,Amazon UK Retail,16/03/2016,61.76,Other Equipment & Materials - General,Direct Marketers - Other,GPC
Statement 19/02/2016 - 31/03/2016,C&YPS-Non Delegated,Amazon UK Retail,17/03/2016,13.03,Other Equipment & Materials - General,Direct Marketers - Other,GPC
Statement 19/02/2016 - 31/03/2016,C&YPS-Non Delegated,Amazon UK Retail,23/03/2016,138.98,Other Equipment & Materials - General,Direct Marketers - Other,GPC
Statement 19/02/2016 - 31/03/2016,C&YPS-Non Delegated,Amazon UK Retail,17/03/2016,47.60,Other Expenditure - General,Direct Marketers - Other,GPC
Statement 19/02/2016 - 31/03/2016,C&YPS-Non Delegated,Amazon UK Retail,22/03/2016,88.40,Other Expenditure - General,Direct Marketers - Other,GPC
Statement 19/02/2016 - 31/03/2016,C&YPS-Non Delegated,Amazon UK Retail,08/03/2016,33.37,Training Expenses - General,Direct Marketers - Other,GPC
Statement 19/02/2016 - 31/03/2016,C&YPS-Non Delegated,Amazon UK Retail,08/03/2016,24.49,Training Expenses - General,Direct Marketers - Other,GPC
Statement 19/02/2016 - 31/03/2016,C&YPS-Non Delegated,Amazon UK Retail,08/03/2016,25.21,Training Expenses - General,Direct Marketers - Other,GPC
Statement 19/02/2016 - 31/03/2016,C&YPS-Non Delegated,Amazon UK Retail,14/03/2016,26.99,Training Expenses - General,Direct Marketers - Other,GPC
Statement 19/02/2016 - 31/03/2016,C&YPS-Non Delegated,AMBE TOURS AND TRA,18/02/2016,3455.65,Other Transfer Payments - Sector 17- Other,Travel Agencies,GPC
Statement 19/02/2016 - 31/03/2016,C&YPS-Non Delegated,AMF BOWLING,22/02/2016,20.66,Other Equipment & Materials - General,"Membership Clubs (Sports, Recreation, Athletic), C",GPC
Statement 19/02/2016 - 31/03/2016,C&YPS-Non Delegated,AMF BOWLING,17/03/2016,19.47,Other Equipment & Materials - General,"Membership Clubs (Sports, Recreation, Athletic), C",GPC
Statement 19/02/2016 - 31/03/2016,C&YPS-Non Delegated,AMF BOWLING,22/03/2016,69.88,Other Equipment & Materials - General,"Membership Clubs (Sports, Recreation, Athletic), C",GPC
Statement 19/02/2016 - 31/03/2016,C&YPS-Non Delegated,AMF BOWLING,17/02/2016,2.85,Public Transport -  Staff - General,"Membership Clubs (Sports, Recreation, Athletic), C",GPC
Statement 19/02/2016 - 31/03/2016,C&YPS-Non Delegated,AMF BOWLING,17/02/2016,8.40,Public Transport -  Staff - General,"Membership Clubs (Sports, Recreation, Athletic), C",GPC
Statement 19/02/2016 - 31/03/2016,C&YPS-Non Delegated,ANCESTRY SHOP,11/03/2016,22.99,Materials - General,Variety Stores,GPC
Statement 19/02/2016 - 31/03/2016,C&YPS-Non Delegated,ANTHONY PETERS MANUFACTU,14/03/2016,42.80,Materials - General,"Hobby, Toy, and Game Shops",GPC
Statement 19/02/2016 - 31/03/2016,C&YPS-Non Delegated,AO RETAIL LIMITED,31/03/2016,189.00,Materials - General,Household Appliance Stores,GPC
Statement 19/02/2016 - 31/03/2016,C&YPS-Non Delegated,ARGOS DIRECT,25/02/2016,-159.99,Other Transfer Payments - Leaving Care Grants,Discount Stores,GPC
Statement 19/02/2016 - 31/03/2016,C&YPS-Non Delegated,ARGOS LTD,20/02/2016,26.29,Materials - General,Discount Stores,GPC
Statement 19/02/2016 - 31/03/2016,C&YPS-Non Delegated,ARGOS LTD,01/03/2016,118.57,Materials - General,Discount Stores,GPC
Statement 19/02/2016 - 31/03/2016,C&YPS-Non Delegated,ARGOS LTD,01/03/2016,378.93,Materials - General,Discount Stores,GPC
Statement 19/02/2016 - 31/03/2016,C&YPS-Non Delegated,ARGOS LTD,15/03/2016,19.99,Materials - General,Discount Stores,GPC
Statement 19/02/2016 - 31/03/2016,C&YPS-Non Delegated,ARGOS LTD,26/02/2016,218.49,Operational Equipment - General,Discount Stores,GPC
Statement 19/02/2016 - 31/03/2016,C&YPS-Non Delegated,ARGOS LTD,01/03/2016,98.95,Other Equipment & Materials - General,Discount Stores,GPC
Statement 19/02/2016 - 31/03/2016,C&YPS-Non Delegated,ARGOS LTD,03/03/2016,58.98,Other Equipment & Materials - General,Discount Stores,GPC
Statement 19/02/2016 - 31/03/2016,C&YPS-Non Delegated,ARGOS LTD,09/03/2016,-3.00,Other Equipment & Materials - General,Discount Stores,GPC
Statement 19/02/2016 - 31/03/2016,C&YPS-Non Delegated,ARGOS RETAIL GROUP,01/03/2016,19.98,General Equipment - General,Discount Stores,GPC
Statement 19/02/2016 - 31/03/2016,C&YPS-Non Delegated,ARGOS RETAIL GROUP,10/03/2016,190.79,General Equipment - General,Discount Stores,GPC
Statement 19/02/2016 - 31/03/2016,C&YPS-Non Delegated,ARGOS RETAIL GROUP,21/03/2016,174.57,General Equipment - General,Discount Stores,GPC
Statement 19/02/2016 - 31/03/2016,C&YPS-Non Delegated,ARGOS RETAIL GROUP,09/03/2016,358.94,Materials - General,Discount Stores,GPC
Statement 19/02/2016 - 31/03/2016,C&YPS-Non Delegated,ARGOS RETAIL GROUP,09/03/2016,208.94,Materials - General,Discount Stores,GPC
Statement 19/02/2016 - 31/03/2016,C&YPS-Non Delegated,ARGOS RETAIL GROUP,09/03/2016,34.99,Materials - General,Discount Stores,GPC
Statement 19/02/2016 - 31/03/2016,C&YPS-Non Delegated,ARGOS RETAIL GROUP,09/03/2016,232.95,Materials - General,Discount Stores,GPC
Statement 19/02/2016 - 31/03/2016,C&YPS-Non Delegated,ARGOS RETAIL GROUP,24/03/2016,178.94,Materials - General,Discount Stores,GPC
Statement 19/02/2016 - 31/03/2016,C&YPS-Non Delegated,ARGOS RETAIL GROUP,15/03/2016,49.99,Provisions - General,Discount Stores,GPC
Statement 19/02/2016 - 31/03/2016,C&YPS-Non Delegated,ARRIVA PASSENGER S,23/03/2016,53.00,R&M of Vehicles-Non Contract - General,Automotive Repair Shops (non-dealer),GPC
Statement 19/02/2016 - 31/03/2016,C&YPS-Non Delegated,ASDA STORES,23/03/2016,1.50,Materials - General,"Grocery Stores, Supermarkets",GPC
Statement 19/02/2016 - 31/03/2016,C&YPS-Non Delegated,ASDA SUPERSTORE,10/03/2016,4.98,Materials - General,"Grocery Stores, Supermarkets",GPC
Statement 19/02/2016 - 31/03/2016,C&YPS-Non Delegated,ASDA SUPERSTORE,18/03/2016,7.06,Materials - General,"Grocery Stores, Supermarkets",GPC
Statement 19/02/2016 - 31/03/2016,C&YPS-Non Delegated,ASDA SUPERSTORE,22/03/2016,13.11,Materials - General,"Grocery Stores, Supermarkets",GPC
Statement 19/02/2016 - 31/03/2016,C&YPS-Non Delegated,ASDA SUPERSTORE,08/03/2016,115.49,Provisions - General,"Grocery Stores, Supermarkets",GPC
Statement 19/02/2016 - 31/03/2016,C&YPS-Non Delegated,ASDA SUPERSTORE,11/03/2016,132.47,Provisions - General,"Grocery Stores, Supermarkets",GPC
Statement 19/02/2016 - 31/03/2016,C&YPS-Non Delegated,ASDA SUPERSTORE,15/03/2016,161.40,Provisions - General,"Grocery Stores, Supermarkets",GPC
Statement 19/02/2016 - 31/03/2016,C&YPS-Non Delegated,ASDA SUPERSTORE,29/03/2016,154.18,Provisions - General,"Grocery Stores, Supermarkets",GPC
Statement 19/02/2016 - 31/03/2016,C&YPS-Non Delegated,B&M RETAIL LTD,14/03/2016,121.24,Operational Equipment - General,Discount Stores,GPC
Statement 19/02/2016 - 31/03/2016,C&YPS-Non Delegated,B&M RETAIL LTD,08/03/2016,128.79,Other Equipment & Materials - General,Discount Stores,GPC
Statement 19/02/2016 - 31/03/2016,C&YPS-Non Delegated,B&M RETAIL LTD,18/03/2016,29.20,Provisions - General,Discount Stores,GPC
Statement 19/02/2016 - 31/03/2016,C&YPS-Non Delegated,BEST WESTERN MONKBAR HTL,16/03/2016,-70.47,Subsistence - General,Best Western Hotels,GPC
Statement 19/02/2016 - 31/03/2016,C&YPS-Non Delegated,BLAKEMORE/TATES LIMITE,18/03/2016,20.00,Materials - General,"Grocery Stores, Supermarkets",GPC
Statement 19/02/2016 - 31/03/2016,C&YPS-Non Delegated,BLAKEMORE/TATES LIMITE,09/03/2016,2.94,Subsistence - General,"Grocery Stores, Supermarkets",GPC
Statement 19/02/2016 - 31/03/2016,C&YPS-Non Delegated,BOOTS 6512,02/03/2016,20.18,Other Transfer Payments - General,"Drug Stores, Pharmacies",GPC
Statement 19/02/2016 - 31/03/2016,C&YPS-Non Delegated,BRANTING HILL 384,25/02/2016,5.88,R&M of Vehicles-Non Contract - General,Service Stations (with or without Ancillary Servic,GPC
Statement 19/02/2016 - 31/03/2016,C&YPS-Non Delegated,BRITISH A   1258538784505,21/03/2016,439.66,Asylum Seekers - General,British Airways,GPC
Statement 19/02/2016 - 31/03/2016,C&YPS-Non Delegated,BRITISH A   1258538786216,21/03/2016,414.66,Asylum Seekers - General,British Airways,GPC
Statement 19/02/2016 - 31/03/2016,C&YPS-Non Delegated,BRITISH GAS TRADIN,16/03/2016,55.40,Other Transfer Payments - Section 24,"Utilities-Electric, Gas, Sanitary, Water",GPC
Statement 19/02/2016 - 31/03/2016,C&YPS-Non Delegated,BRITISH GAS TRADIN,16/03/2016,35.84,Other Transfer Payments - Section 24,"Utilities-Electric, Gas, Sanitary, Water",GPC
Statement 19/02/2016 - 31/03/2016,C&YPS-Non Delegated,BT BILL PAYMENT 1,18/02/2016,55.89,Telephones - General,Telecommunication Equipment Including Telephone Sa,GPC
Statement 19/02/2016 - 31/03/2016,C&YPS-Non Delegated,BT BILL PAYMENT 1,18/02/2016,100.50,Telephones - General,Telecommunication Equipment Including Telephone Sa,GPC
Statement 19/02/2016 - 31/03/2016,C&YPS-Non Delegated,BT BILL PAYMENT 1,01/03/2016,81.00,Telephones - General,Telecommunication Equipment Including Telephone Sa,GPC
Statement 19/02/2016 - 31/03/2016,C&YPS-Non Delegated,BT BILL PAYMENT 1,03/03/2016,78.75,Telephones - General,Telecommunication Equipment Including Telephone Sa,GPC
Statement 19/02/2016 - 31/03/2016,C&YPS-Non Delegated,BT BILL PAYMENT 1,17/03/2016,86.41,Telephones - General,Telecommunication Equipment Including Telephone Sa,GPC
Statement 19/02/2016 - 31/03/2016,C&YPS-Non Delegated,BT BILL PAYMENT 2,24/02/2016,44.13,R & M of Buildings - General,Telecommunication Equipment Including Telephone Sa,GPC
Statement 19/02/2016 - 31/03/2016,C&YPS-Non Delegated,BT BILL PAYMENT 2,24/02/2016,55.89,R & M of Buildings - General,Telecommunication Equipment Including Telephone Sa,GPC
Statement 19/02/2016 - 31/03/2016,C&YPS-Non Delegated,BT BILL PAYMENT 2,24/02/2016,202.83,Telephones - General,Telecommunication Equipment Including Telephone Sa,GPC
Statement 19/02/2016 - 31/03/2016,C&YPS-Non Delegated,BT BILL PAYMENT 2,24/02/2016,57.52,Telephones - General,Telecommunication Equipment Including Telephone Sa,GPC
Statement 19/02/2016 - 31/03/2016,C&YPS-Non Delegated,BT BILL PAYMENT 2,08/03/2016,106.50,Telephones - General,Telecommunication Equipment Including Telephone Sa,GPC
Statement 19/02/2016 - 31/03/2016,C&YPS-Non Delegated,BT PAY BY PHONE,24/02/2016,55.89,Telephones - General,Telecommunication Service Including Local and Long,GPC
Statement 19/02/2016 - 31/03/2016,C&YPS-Non Delegated,CAFFE MILAN,22/02/2016,4.70,Subsistence - General,"Eating Places, Restaurants",GPC
Statement 19/02/2016 - 31/03/2016,C&YPS-Non Delegated,CAFFE NERO,15/03/2016,7.30,Other Expenditure - General,"Eating Places, Restaurants",GPC
Statement 19/02/2016 - 31/03/2016,C&YPS-Non Delegated,CAFFE NERO,10/03/2016,4.30,Subsistence - General,"Eating Places, Restaurants",GPC
Statement 19/02/2016 - 31/03/2016,C&YPS-Non Delegated,CARPET CUTS,08/03/2016,43.00,Other Equipment & Materials - General,Floor Coverings   Stores,GPC
Statement 19/02/2016 - 31/03/2016,C&YPS-Non Delegated,CARPET CUTS,19/02/2016,280.00,Other Transfer Payments - Leaving Care Grants,Floor Coverings   Stores,GPC
Statement 19/02/2016 - 31/03/2016,C&YPS-Non Delegated,CENTRAL ENG COOP,25/02/2016,5.59,Materials - General,Department Stores,GPC
Statement 19/02/2016 - 31/03/2016,C&YPS-Non Delegated,CENTRAL ENG COOP,25/02/2016,3.99,Materials - General,Department Stores,GPC
Statement 19/02/2016 - 31/03/2016,C&YPS-Non Delegated,CENTRAL ENG COOP,02/03/2016,10.15,Materials - General,Department Stores,GPC
Statement 19/02/2016 - 31/03/2016,C&YPS-Non Delegated,CENTRAL ENG COOP,02/03/2016,11.54,Materials - General,Department Stores,GPC
Statement 19/02/2016 - 31/03/2016,C&YPS-Non Delegated,CENTRAL ENG COOP,04/03/2016,13.04,Materials - General,Department Stores,GPC
Statement 19/02/2016 - 31/03/2016,C&YPS-Non Delegated,CENTRAL ENG COOP,22/03/2016,19.12,Materials - General,Department Stores,GPC
Statement 19/02/2016 - 31/03/2016,C&YPS-Non Delegated,CENTRAL ENG COOP,23/03/2016,3.81,Materials - General,Department Stores,GPC
Statement 19/02/2016 - 31/03/2016,C&YPS-Non Delegated,CENTRAL ENG COOP,17/02/2016,1.83,Other Equipment & Materials - General,Department Stores,GPC
Statement 19/02/2016 - 31/03/2016,C&YPS-Non Delegated,CENTRAL ENG COOP,29/02/2016,18.33,Other Equipment & Materials - General,Department Stores,GPC
Statement 19/02/2016 - 31/03/2016,C&YPS-Non Delegated,CENTRAL ENG COOP,02/03/2016,5.53,Other Equipment & Materials - General,Department Stores,GPC
Statement 19/02/2016 - 31/03/2016,C&YPS-Non Delegated,CENTRAL ENG COOP,07/03/2016,13.97,Other Equipment & Materials - General,Department Stores,GPC
Statement 19/02/2016 - 31/03/2016,C&YPS-Non Delegated,CENTRAL ENG COOP,08/03/2016,21.56,Other Equipment & Materials - General,Department Stores,GPC
Statement 19/02/2016 - 31/03/2016,C&YPS-Non Delegated,CENTRAL ENG COOP,22/02/2016,10.00,Other Transfer Payments - Section 24,Service Stations (with or without Ancillary Servic,GPC
Statement 19/02/2016 - 31/03/2016,C&YPS-Non Delegated,CENTRAL ENG COOP,03/03/2016,8.65,Subsistence - General,Department Stores,GPC
Statement 19/02/2016 - 31/03/2016,C&YPS-Non Delegated,CENTRAL ENG COOP,21/03/2016,26.72,Subsistence - General,Department Stores,GPC
Statement 19/02/2016 - 31/03/2016,C&YPS-Non Delegated,CHILDRENS TRUST,03/03/2016,6.50,Books - General,Charitable and Social Service Organizations,GPC
Statement 19/02/2016 - 31/03/2016,C&YPS-Non Delegated,Cineworld SOL AT,29/02/2016,29.70,Public Transport -  Staff - General,"Theatrical Products (Except Motion Pictures), Tick",GPC
Statement 19/02/2016 - 31/03/2016,C&YPS-Non Delegated,Cineworld SOL AT,03/03/2016,39.60,Public Transport -  Staff - General,"Theatrical Products (Except Motion Pictures), Tick",GPC
Statement 19/02/2016 - 31/03/2016,C&YPS-Non Delegated,Cineworld SOL CP,24/02/2016,48.40,Other Transfer Payments - General,"Theatrical Products (Except Motion Pictures), Tick",GPC
Statement 19/02/2016 - 31/03/2016,C&YPS-Non Delegated,Cineworld SOL CP,28/02/2016,47.40,Other Transfer Payments - General,"Theatrical Products (Except Motion Pictures), Tick",GPC
Statement 19/02/2016 - 31/03/2016,C&YPS-Non Delegated,Cineworld SOL CP,29/02/2016,23.60,Public Transport -  Staff - General,"Theatrical Products (Except Motion Pictures), Tick",GPC
Statement 19/02/2016 - 31/03/2016,C&YPS-Non Delegated,CONKERS DISCOVERY,24/03/2016,500.00,Rent - General,RECREATION SERVICES--NOT ELSEWHERE CLASSIFIED,GPC
Statement 19/02/2016 - 31/03/2016,C&YPS-Non Delegated,COSTA COFFEE,23/02/2016,7.00,Other Expenditure - General,"Miscellaneous Food Stores-Convenience Stores, Mark",GPC
Statement 19/02/2016 - 31/03/2016,C&YPS-Non Delegated,COSTA COFFEE,07/03/2016,6.55,Other Expenditure - General,"Eating Places, Restaurants",GPC
Statement 19/02/2016 - 31/03/2016,C&YPS-Non Delegated,COSTA COFFEE,16/03/2016,6.60,Other Expenditure - General,Fast-Food Restaurants (Quick Payment Service Pilot,GPC
Statement 19/02/2016 - 31/03/2016,C&YPS-Non Delegated,COSTA COFFEE,25/02/2016,5.00,Subsistence - General,Fast-Food Restaurants (Quick Payment Service Pilot,GPC
Statement 19/02/2016 - 31/03/2016,C&YPS-Non Delegated,COSTA COFFEE,09/03/2016,12.50,Subsistence - General,Fast-Food Restaurants (Quick Payment Service Pilot,GPC
Statement 19/02/2016 - 31/03/2016,C&YPS-Non Delegated,COSTA COFFEE,23/03/2016,12.45,Subsistence - General,Fast-Food Restaurants (Quick Payment Service Pilot,GPC
Statement 19/02/2016 - 31/03/2016,C&YPS-Non Delegated,COSTCUTTER,03/03/2016,5.10,Provisions - General,"Miscellaneous Food Stores-Convenience Stores, Mark",GPC
Statement 19/02/2016 - 31/03/2016,C&YPS-Non Delegated,COTE RESTAURANTS,28/02/2016,166.11,Other Allowances/Expenses - Retirement gifts,"Eating Places, Restaurants",GPC
Statement 19/02/2016 - 31/03/2016,C&YPS-Non Delegated,CURRYS,08/03/2016,171.25,Materials - General,"RADIO, TELEVISION, AND STEREO STORES (ELECTRONIC STORES)",GPC
Statement 19/02/2016 - 31/03/2016,C&YPS-Non Delegated,CURRYS ONLINE,31/03/2016,219.99,Materials - General,"RADIO, TELEVISION, AND STEREO STORES (ELECTRONIC STORES)",GPC
Statement 19/02/2016 - 31/03/2016,C&YPS-Non Delegated,CURRYS ONLINE,31/03/2016,189.00,Materials - General,"RADIO, TELEVISION, AND STEREO STORES (ELECTRONIC STORES)",GPC
Statement 19/02/2016 - 31/03/2016,C&YPS-Non Delegated,CURRYS SUPERSTORE,21/02/2016,16.66,Materials - General,"RADIO, TELEVISION, AND STEREO STORES (ELECTRONIC STORES)",GPC
Statement 19/02/2016 - 31/03/2016,C&YPS-Non Delegated,DE MONTFORT EXPERTISE LTD,25/02/2016,416.67,Other Transfer Payments - Sector 17- Other,"Colleges, Universities, Professional Schools, and",GPC
Statement 19/02/2016 - 31/03/2016,C&YPS-Non Delegated,DE MONTFORT EXPERTISE LTD,25/02/2016,145.69,Other Transfer Payments - Sector 17- Other,"Colleges, Universities, Professional Schools, and",GPC
Statement 19/02/2016 - 31/03/2016,C&YPS-Non Delegated,DEBENHAMS,02/03/2016,44.05,Other Transfer Payments - General,Department Stores,GPC
Statement 19/02/2016 - 31/03/2016,C&YPS-Non Delegated,DOMINOS PIZZA WIGS,05/03/2016,28.32,Other Equipment & Materials - General,"Eating Places, Restaurants",GPC
Statement 19/02/2016 - 31/03/2016,C&YPS-Non Delegated,DVLA VEHICLE TAX,22/03/2016,167.50,Road Licences - General,Government Services-Not Elsewhere Classified,GPC
Statement 19/02/2016 - 31/03/2016,C&YPS-Non Delegated,EAST MIDLANDS MARKET HAR,02/03/2016,11.00,Casual/Essential - General,Automobile Parking Lots and Garages,GPC
Statement 19/02/2016 - 31/03/2016,C&YPS-Non Delegated,EAST MIDLANDS TRAI,02/03/2016,55.00,Casual/Essential - General,Passenger Railways,GPC
Statement 19/02/2016 - 31/03/2016,C&YPS-Non Delegated,EASTMIDLANDSTRAINS,26/02/2016,73.30,Other Expenditure - General,Passenger Railways,GPC
Statement 19/02/2016 - 31/03/2016,C&YPS-Non Delegated,EB TRANSFORMING FOSTE,24/02/2016,174.00,Other Equipment & Materials - General,Business Services-Not Elsewhere Classified,GPC
Statement 19/02/2016 - 31/03/2016,C&YPS-Non Delegated,ECL PLASTICS LTD,01/03/2016,38.50,Publicity/Marketing - General,"Gift, Card, Novelty, and Souvenir Shops",GPC
Statement 19/02/2016 - 31/03/2016,C&YPS-Non Delegated,ESPO,25/02/2016,120.39,Books - General,Government Services-Not Elsewhere Classified,GPC
Statement 19/02/2016 - 31/03/2016,C&YPS-Non Delegated,ESPO,25/02/2016,5.00,Books - General,Government Services-Not Elsewhere Classified,GPC
Statement 19/02/2016 - 31/03/2016,C&YPS-Non Delegated,ESPO,25/03/2016,196.93,Books - General,Government Services-Not Elsewhere Classified,GPC
Statement 19/02/2016 - 31/03/2016,C&YPS-Non Delegated,ESPO,17/03/2016,73.00,Display/Conservn/Exhibitions - General,Government Services-Not Elsewhere Classified,GPC
Statement 19/02/2016 - 31/03/2016,C&YPS-Non Delegated,ESPO,17/03/2016,260.30,Display/Conservn/Exhibitions - General,Government Services-Not Elsewhere Classified,GPC
Statement 19/02/2016 - 31/03/2016,C&YPS-Non Delegated,ESPO,18/03/2016,260.30,Display/Conservn/Exhibitions - General,Government Services-Not Elsewhere Classified,GPC
Statement 19/02/2016 - 31/03/2016,C&YPS-Non Delegated,ESPO,18/03/2016,260.30,Display/Conservn/Exhibitions - General,Government Services-Not Elsewhere Classified,GPC
Statement 19/02/2016 - 31/03/2016,C&YPS-Non Delegated,ESPO,18/03/2016,260.30,Display/Conservn/Exhibitions - General,Government Services-Not Elsewhere Classified,GPC
Statement 19/02/2016 - 31/03/2016,C&YPS-Non Delegated,ESPO,30/03/2016,260.30,Display/Conservn/Exhibitions - General,Government Services-Not Elsewhere Classified,GPC
Statement 19/02/2016 - 31/03/2016,C&YPS-Non Delegated,ESPO,30/03/2016,260.30,Display/Conservn/Exhibitions - General,Government Services-Not Elsewhere Classified,GPC
Statement 19/02/2016 - 31/03/2016,C&YPS-Non Delegated,ESPO,30/03/2016,260.30,Display/Conservn/Exhibitions - General,Government Services-Not Elsewhere Classified,GPC
Statement 19/02/2016 - 31/03/2016,C&YPS-Non Delegated,ESPO,30/03/2016,260.30,Display/Conservn/Exhibitions - General,Government Services-Not Elsewhere Classified,GPC
Statement 19/02/2016 - 31/03/2016,C&YPS-Non Delegated,ESPO,30/03/2016,260.30,Display/Conservn/Exhibitions - General,Government Services-Not Elsewhere Classified,GPC
Statement 19/02/2016 - 31/03/2016,C&YPS-Non Delegated,ESPO,11/03/2016,15.88,Other Equipment & Materials - General,Government Services-Not Elsewhere Classified,GPC
Statement 19/02/2016 - 31/03/2016,C&YPS-Non Delegated,ESPO,31/03/2016,11.20,Stationery - General,Government Services-Not Elsewhere Classified,GPC
Statement 19/02/2016 - 31/03/2016,C&YPS-Non Delegated,FRANKIE & BENNYS,02/03/2016,94.50,Subsistence - General,"Eating Places, Restaurants",GPC
Statement 19/02/2016 - 31/03/2016,C&YPS-Non Delegated,FUNDING SOLUTIONS FOR,15/03/2016,200.00,Publicity/Marketing - General,Business Services-Not Elsewhere Classified,GPC
Statement 19/02/2016 - 31/03/2016,C&YPS-Non Delegated,FUSION SOAR VALLEY LEI,09/03/2016,11.30,Other Equipment & Materials - General,"Membership Clubs (Sports, Recreation, Athletic), C",GPC
Statement 19/02/2016 - 31/03/2016,C&YPS-Non Delegated,GOOSEBERRY BUSH,01/03/2016,202.94,Other Transfer Payments - Section 23 Grants,Child Care Services,GPC
Statement 19/02/2016 - 31/03/2016,C&YPS-Non Delegated,GRO HM PASSPORT OFFICE,17/02/2016,23.40,Other Equipment & Materials - General,Government Services-Not Elsewhere Classified,GPC
Statement 19/02/2016 - 31/03/2016,C&YPS-Non Delegated,GRO HM PASSPORT OFFICE,17/02/2016,9.25,Other Transfer Payments - General,Government Services-Not Elsewhere Classified,GPC
Statement 19/02/2016 - 31/03/2016,C&YPS-Non Delegated,GRO HM PASSPORT OFFICE,17/02/2016,23.40,Other Transfer Payments - Section 23 Grants,Government Services-Not Elsewhere Classified,GPC
Statement 19/02/2016 - 31/03/2016,C&YPS-Non Delegated,GRO HM PASSPORT OFFICE,17/02/2016,27.75,Other Transfer Payments - Section 23 Grants,Government Services-Not Elsewhere Classified,GPC
Statement 19/02/2016 - 31/03/2016,C&YPS-Non Delegated,GUARDIAN NEWS AND MEDI,04/03/2016,699.65,Other Expenditure - General,Miscellaneous Publishing and  Printing,GPC
Statement 19/02/2016 - 31/03/2016,C&YPS-Non Delegated,HALFORDS ON LINE,01/03/2016,352.98,Other Transfer Payments - General,Bicycle Shops-Sales and Service,GPC
Statement 19/02/2016 - 31/03/2016,C&YPS-Non Delegated,HEFT-HEARTLANDS HOSPIT,08/03/2016,190.00,Other Equipment & Materials - General,Hospitals,GPC
Statement 19/02/2016 - 31/03/2016,C&YPS-Non Delegated,HIGH SPEED TRAINING LT,30/03/2016,252.00,Other Equipment & Materials - General,Business and Secretarial Schools,GPC
Statement 19/02/2016 - 31/03/2016,C&YPS-Non Delegated,HM PASSPORT OFFICE,03/03/2016,92.00,Other Transfer Payments - Section 24,Government Services-Not Elsewhere Classified,GPC
Statement 19/02/2016 - 31/03/2016,C&YPS-Non Delegated,HMCOURTS-SERVICE.G,22/02/2016,10.00,Other Transfer Payments - Section 24,Fines,GPC
Statement 19/02/2016 - 31/03/2016,C&YPS-Non Delegated,HMCOURTS-SERVICE.G,24/02/2016,-10.00,Other Transfer Payments - Section 24,Fines,GPC
Statement 19/02/2016 - 31/03/2016,C&YPS-Non Delegated,HOME BARGAINS COALVILL,29/02/2016,6.60,Provisions - General,Hardware Stores,GPC
Statement 19/02/2016 - 31/03/2016,C&YPS-Non Delegated,HOTEL PAID VIA EVIIVO,30/03/2016,111.00,Other Equipment & Materials - General,Business Services-Not Elsewhere Classified,GPC
Statement 19/02/2016 - 31/03/2016,C&YPS-Non Delegated,HTTP://WWW.DERBYSHIRE.,01/03/2016,20.00,Other Transfer Payments - Section 23 Grants,Government Services-Not Elsewhere Classified,GPC
Statement 19/02/2016 - 31/03/2016,C&YPS-Non Delegated,IKEA,17/02/2016,249.33,Other Equipment & Materials - General,Miscellaneous House Furnishing Specialty Shops,GPC
Statement 19/02/2016 - 31/03/2016,C&YPS-Non Delegated,ITUNES.COM/BILL,08/03/2016,33.33,IT Equipment - General,Record Shops,GPC
Statement 19/02/2016 - 31/03/2016,C&YPS-Non Delegated,ITUNES.COM/BILL,08/03/2016,33.33,IT Equipment - General,Record Shops,GPC
Statement 19/02/2016 - 31/03/2016,C&YPS-Non Delegated,JALPUR MILLERS CASH AND C,12/03/2016,98.13,Provisions - General,"Grocery Stores, Supermarkets",GPC
Statement 19/02/2016 - 31/03/2016,C&YPS-Non Delegated,KAYAL RESTAURANT,25/02/2016,95.20,Other Allowances/Expenses - Retirement gifts,"Eating Places, Restaurants",GPC
Statement 19/02/2016 - 31/03/2016,C&YPS-Non Delegated,KCJONESCONF,24/03/2016,815.00,Other Expenditure - General,"Theatrical Products (Except Motion Pictures), Tick",GPC
Statement 19/02/2016 - 31/03/2016,C&YPS-Non Delegated,KCJONESCONF,22/03/2016,200.00,Training Expenses - General,"Theatrical Products (Except Motion Pictures), Tick",GPC
Statement 19/02/2016 - 31/03/2016,C&YPS-Non Delegated,KFC - LOUGHBOROUGH,17/03/2016,3.37,Subsistence - General,Fast-Food Restaurants (Quick Payment Service Pilot,GPC
Statement 19/02/2016 - 31/03/2016,C&YPS-Non Delegated,LA COPPOLA RISTORANTE LTD,01/03/2016,101.65,Subsistence - General,"Eating Places, Restaurants",GPC
Statement 19/02/2016 - 31/03/2016,C&YPS-Non Delegated,LCC CATERING SERVICES,17/03/2016,17.00,Subsistence - General,Government Services-Not Elsewhere Classified,GPC
Statement 19/02/2016 - 31/03/2016,C&YPS-Non Delegated,LE FEVRES STORES,17/03/2016,9.00,Books - General,"Grocery Stores, Supermarkets",GPC
Statement 19/02/2016 - 31/03/2016,C&YPS-Non Delegated,LE PAIN QUOTIDIEN,02/03/2016,5.65,Subsistence - General,"Eating Places, Restaurants",GPC
Statement 19/02/2016 - 31/03/2016,C&YPS-Non Delegated,LEIC CITY COUNCIL,03/03/2016,13.00,Other Expenditure - General,Government Services-Not Elsewhere Classified,GPC
Statement 19/02/2016 - 31/03/2016,C&YPS-Non Delegated,LEIC CITY COUNCIL,24/03/2016,23.00,Other Expenditure - General,Government Services-Not Elsewhere Classified,GPC
Statement 19/02/2016 - 31/03/2016,C&YPS-Non Delegated,LEIC CITY COUNCIL,23/02/2016,-10.00,Other Transfer Payments - Section 23 Grants,Government Services-Not Elsewhere Classified,GPC
Statement 19/02/2016 - 31/03/2016,C&YPS-Non Delegated,LEIC CITY COUNCIL,25/02/2016,-10.00,Other Transfer Payments - Section 23 Grants,Government Services-Not Elsewhere Classified,GPC
Statement 19/02/2016 - 31/03/2016,C&YPS-Non Delegated,LEIC CITY COUNCIL,25/02/2016,33.00,Other Transfer Payments - Section 23 Grants,Government Services-Not Elsewhere Classified,GPC
Statement 19/02/2016 - 31/03/2016,C&YPS-Non Delegated,LEIC CITY COUNCIL,26/02/2016,13.00,Other Transfer Payments - Section 23 Grants,Government Services-Not Elsewhere Classified,GPC
Statement 19/02/2016 - 31/03/2016,C&YPS-Non Delegated,LEIC CITY COUNCIL,26/02/2016,13.00,Other Transfer Payments - Section 23 Grants,Government Services-Not Elsewhere Classified,GPC
Statement 19/02/2016 - 31/03/2016,C&YPS-Non Delegated,LEIC CITY COUNCIL,26/02/2016,13.00,Other Transfer Payments - Section 23 Grants,Government Services-Not Elsewhere Classified,GPC
Statement 19/02/2016 - 31/03/2016,C&YPS-Non Delegated,LEIC CITY COUNCIL,26/02/2016,13.00,Other Transfer Payments - Section 23 Grants,Government Services-Not Elsewhere Classified,GPC
Statement 19/02/2016 - 31/03/2016,C&YPS-Non Delegated,LEIC CITY COUNCIL,26/02/2016,13.00,Other Transfer Payments - Section 23 Grants,Government Services-Not Elsewhere Classified,GPC
Statement 19/02/2016 - 31/03/2016,C&YPS-Non Delegated,LEIC CITY COUNCIL,29/02/2016,23.00,Other Transfer Payments - Section 23 Grants,Government Services-Not Elsewhere Classified,GPC
Statement 19/02/2016 - 31/03/2016,C&YPS-Non Delegated,LEIC CITY COUNCIL,29/02/2016,13.00,Other Transfer Payments - Section 23 Grants,Government Services-Not Elsewhere Classified,GPC
Statement 19/02/2016 - 31/03/2016,C&YPS-Non Delegated,LEIC CITY COUNCIL,01/03/2016,13.00,Other Transfer Payments - Section 23 Grants,Government Services-Not Elsewhere Classified,GPC
Statement 19/02/2016 - 31/03/2016,C&YPS-Non Delegated,LEIC CITY COUNCIL,02/03/2016,13.00,Other Transfer Payments - Section 23 Grants,Government Services-Not Elsewhere Classified,GPC
Statement 19/02/2016 - 31/03/2016,C&YPS-Non Delegated,LEIC CITY COUNCIL,08/03/2016,13.00,Other Transfer Payments - Section 23 Grants,Government Services-Not Elsewhere Classified,GPC
Statement 19/02/2016 - 31/03/2016,C&YPS-Non Delegated,LEIC CITY COUNCIL,25/02/2016,33.00,Other Transfer Payments - Sector 17- Other,Government Services-Not Elsewhere Classified,GPC
Statement 19/02/2016 - 31/03/2016,C&YPS-Non Delegated,LEIC CITY COUNCIL,26/02/2016,-9.00,Other Transfer Payments - Sector 17- Other,Government Services-Not Elsewhere Classified,GPC
Statement 19/02/2016 - 31/03/2016,C&YPS-Non Delegated,LEIC CITY COUNCIL,17/03/2016,23.00,Other Transfer Payments - Sector 17- Other,Government Services-Not Elsewhere Classified,GPC
Statement 19/02/2016 - 31/03/2016,C&YPS-Non Delegated,LEIC CITY COUNCIL,17/03/2016,23.00,Other Transfer Payments - Sector 17- Other,Government Services-Not Elsewhere Classified,GPC
Statement 19/02/2016 - 31/03/2016,C&YPS-Non Delegated,LEIC CITY COUNCIL,17/03/2016,23.00,Other Transfer Payments - Sector 17- Other,Government Services-Not Elsewhere Classified,GPC
Statement 19/02/2016 - 31/03/2016,C&YPS-Non Delegated,LEIC CITY COUNCIL,17/03/2016,23.00,Other Transfer Payments - Sector 17- Other,Government Services-Not Elsewhere Classified,GPC
Statement 19/02/2016 - 31/03/2016,C&YPS-Non Delegated,LEIC CITY COUNCIL,18/03/2016,23.00,Other Transfer Payments - Sector 17- Other,Government Services-Not Elsewhere Classified,GPC
Statement 19/02/2016 - 31/03/2016,C&YPS-Non Delegated,LEIC CITY COUNCIL,18/03/2016,23.00,Other Transfer Payments - Sector 17- Other,Government Services-Not Elsewhere Classified,GPC
Statement 19/02/2016 - 31/03/2016,C&YPS-Non Delegated,LEIC CITY COUNCIL,18/03/2016,23.00,Other Transfer Payments - Sector 17- Other,Government Services-Not Elsewhere Classified,GPC
Statement 19/02/2016 - 31/03/2016,C&YPS-Non Delegated,LEICESTER ARMS,22/02/2016,20.36,Subsistence - General,"Drinking Places (Alcoholic Beverages)-Bars, Tavern",GPC
Statement 19/02/2016 - 31/03/2016,C&YPS-Non Delegated,LEICESTER OUTDOOR PURS,10/03/2016,341.00,Other Equipment & Materials - General,"Membership Clubs (Sports, Recreation, Athletic), C",GPC
Statement 19/02/2016 - 31/03/2016,C&YPS-Non Delegated,LEICESTER ROWENA G,19/02/2016,10.05,Other Expenditure - General,"Lawn and Garden Supply Stores, Nurseries",GPC
Statement 19/02/2016 - 31/03/2016,C&YPS-Non Delegated,LEICESTERSHIRE C COUNC,24/02/2016,11.00,Other Transfer Payments - Section 23 Grants,Government Services-Not Elsewhere Classified,GPC
Statement 19/02/2016 - 31/03/2016,C&YPS-Non Delegated,LEICESTERSHIRE C COUNC,26/02/2016,11.00,Other Transfer Payments - Section 23 Grants,Government Services-Not Elsewhere Classified,GPC
Statement 19/02/2016 - 31/03/2016,C&YPS-Non Delegated,LEICESTERSHIRE C COUNC,01/03/2016,11.00,Other Transfer Payments - Section 23 Grants,Government Services-Not Elsewhere Classified,GPC
Statement 19/02/2016 - 31/03/2016,C&YPS-Non Delegated,LEICESTERSHIRE C COUNC,17/03/2016,21.00,Other Transfer Payments - Sector 17- Other,Government Services-Not Elsewhere Classified,GPC
Statement 19/02/2016 - 31/03/2016,C&YPS-Non Delegated,LIDL UK,19/02/2016,24.58,Provisions - General,"Grocery Stores, Supermarkets",GPC
Statement 19/02/2016 - 31/03/2016,C&YPS-Non Delegated,LOVE2SHOP.CO.UK,22/03/2016,158.50,Other Expenditure - General,"Civic, Social, and Fraternal Associations",GPC
Statement 19/02/2016 - 31/03/2016,C&YPS-Non Delegated,LUL TICKET MACHINE,22/02/2016,9.80,Casual/Essential - General,Passenger Railways,GPC
Statement 19/02/2016 - 31/03/2016,C&YPS-Non Delegated,LUL TICKET MACHINE,02/03/2016,18.10,Other Expenditure - General,Passenger Railways,GPC
Statement 19/02/2016 - 31/03/2016,C&YPS-Non Delegated,M&S SIMPLY FOOD - SSP,02/03/2016,5.00,Provisions - General,"Miscellaneous Food Stores-Convenience Stores, Mark",GPC
Statement 19/02/2016 - 31/03/2016,C&YPS-Non Delegated,MCDONALDS,11/03/2016,1.16,Other Equipment & Materials - General,"Eating Places, Restaurants",GPC
Statement 19/02/2016 - 31/03/2016,C&YPS-Non Delegated,MCDONALDS,22/02/2016,6.26,Other Expenditure - General,Fast-Food Restaurants (Quick Payment Service Pilot,GPC
Statement 19/02/2016 - 31/03/2016,C&YPS-Non Delegated,MCDONALDS,25/02/2016,5.16,Other Expenditure - General,"Eating Places, Restaurants",GPC
Statement 19/02/2016 - 31/03/2016,C&YPS-Non Delegated,MCDONALDS,25/02/2016,4.76,Other Expenditure - General,"Eating Places, Restaurants",GPC
Statement 19/02/2016 - 31/03/2016,C&YPS-Non Delegated,MCDONALDS,02/03/2016,15.27,Other Expenditure - General,Fast-Food Restaurants (Quick Payment Service Pilot,GPC
Statement 19/02/2016 - 31/03/2016,C&YPS-Non Delegated,MCDONALDS,09/03/2016,11.55,Other Expenditure - General,"Eating Places, Restaurants",GPC
Statement 19/02/2016 - 31/03/2016,C&YPS-Non Delegated,MCDONALDS,23/03/2016,2.28,Other Expenditure - General,Fast-Food Restaurants (Quick Payment Service Pilot,GPC
Statement 19/02/2016 - 31/03/2016,C&YPS-Non Delegated,MCDONALDS,26/02/2016,16.77,Other Transfer Payments - General,"Eating Places, Restaurants",GPC
Statement 19/02/2016 - 31/03/2016,C&YPS-Non Delegated,MCDONALDS,02/03/2016,2.97,Subsistence - General,Fast-Food Restaurants (Quick Payment Service Pilot,GPC
Statement 19/02/2016 - 31/03/2016,C&YPS-Non Delegated,MCDONALDS,03/03/2016,20.73,Subsistence - General,Fast-Food Restaurants (Quick Payment Service Pilot,GPC
Statement 19/02/2016 - 31/03/2016,C&YPS-Non Delegated,MCDONALDS,03/03/2016,4.59,Subsistence - General,Fast-Food Restaurants (Quick Payment Service Pilot,GPC
Statement 19/02/2016 - 31/03/2016,C&YPS-Non Delegated,MCDONALDS,14/03/2016,1.33,Subsistence - General,"Eating Places, Restaurants",GPC
Statement 19/02/2016 - 31/03/2016,C&YPS-Non Delegated,MCDONALDS,23/03/2016,3.83,Subsistence - General,"Eating Places, Restaurants",GPC
Statement 19/02/2016 - 31/03/2016,C&YPS-Non Delegated,MID UK RECYCLING LTD,09/03/2016,180.00,Other Transfer Payments - Section 23 Grants,"Equipment Rental and Leasing Services, Tool Rental",GPC
Statement 19/02/2016 - 31/03/2016,C&YPS-Non Delegated,MORLEYS,04/03/2016,75.20,General Equipment - General,Floor Coverings   Stores,GPC
Statement 19/02/2016 - 31/03/2016,C&YPS-Non Delegated,MOTEL ONE MANCHESTER PICC,07/03/2016,69.00,Subsistence - General,"Lodging-Hotels, Motels, Resorts",GPC
Statement 19/02/2016 - 31/03/2016,C&YPS-Non Delegated,MRC COMMUNITY ACTI,18/03/2016,62.95,General Equipment - General,Charitable and Social Service Organizations,GPC
Statement 19/02/2016 - 31/03/2016,C&YPS-Non Delegated,MUFFIN BREAK (LOUGHBOR,04/03/2016,6.70,Other Expenditure - General,"Eating Places, Restaurants",GPC
Statement 19/02/2016 - 31/03/2016,C&YPS-Non Delegated,NCC INCOME,22/02/2016,31.80,Other Transfer Payments - Section 23 Grants,Government Services-Not Elsewhere Classified,GPC
Statement 19/02/2016 - 31/03/2016,C&YPS-Non Delegated,NCP LIMITED,10/03/2016,12.00,Public Transport -  Staff - General,Automobile Parking Lots and Garages,GPC
Statement 19/02/2016 - 31/03/2016,C&YPS-Non Delegated,NEXT 359,24/02/2016,44.05,Other Transfer Payments - General,Family Clothing Stores,GPC
Statement 19/02/2016 - 31/03/2016,C&YPS-Non Delegated,NOCHEX-SENSORY EDUCATI,01/03/2016,57.97,General Equipment - General,Miscellaneous General Merchandise Stores,GPC
Statement 19/02/2016 - 31/03/2016,C&YPS-Non Delegated,NOTTINGHAM CITY COUNCI,17/03/2016,5.00,Other Equipment & Materials - General,Government Services-Not Elsewhere Classified,GPC
Statement 19/02/2016 - 31/03/2016,C&YPS-Non Delegated,NOTTINGHAM CITY COUNCI,17/03/2016,10.20,Other Equipment & Materials - General,Government Services-Not Elsewhere Classified,GPC
Statement 19/02/2016 - 31/03/2016,C&YPS-Non Delegated,OFFICE LONDON INTE,21/03/2016,40.00,Personal Needs of Clients - Clothing,Shoe Stores,GPC
Statement 19/02/2016 - 31/03/2016,C&YPS-Non Delegated,OFFICIALRECORDCOUK,08/03/2016,15.98,Other Transfer Payments - Section 23 Grants,"Management, Consulting and Public Relations Servic",GPC
Statement 19/02/2016 - 31/03/2016,C&YPS-Non Delegated,PALMERS GARDEN CTR,14/03/2016,14.50,Materials - General,"Lawn and Garden Supply Stores, Nurseries",GPC
Statement 19/02/2016 - 31/03/2016,C&YPS-Non Delegated,PARTRIDGE & PRINT,15/03/2016,211.50,Training Expenses - General,Schools and Educational Services-Not Elsewhere Cla,GPC
Statement 19/02/2016 - 31/03/2016,C&YPS-Non Delegated,PAYPAL  BAL PHONES,10/03/2016,4.99,Other Equipment & Materials - General,Camera and Photographic Supply Stores,GPC
Statement 19/02/2016 - 31/03/2016,C&YPS-Non Delegated,PAYPAL  BAMBOOGLA,11/03/2016,433.81,General Equipment - General,Antique Shops,GPC
Statement 19/02/2016 - 31/03/2016,C&YPS-Non Delegated,PAYPAL  BAMBOOGLA,11/03/2016,290.88,General Equipment - General,Antique Shops,GPC
Statement 19/02/2016 - 31/03/2016,C&YPS-Non Delegated,PAYPAL  CJN UK LTD,07/03/2016,-19.99,Other Expenditure - General,Miscellaneous and Specialty Retail Stores,GPC
Statement 19/02/2016 - 31/03/2016,C&YPS-Non Delegated,PAYPAL  FOST NETWOR,14/03/2016,31.49,Other Services - General,Charitable and Social Service Organizations,GPC
Statement 19/02/2016 - 31/03/2016,C&YPS-Non Delegated,PAYPAL  POSITIVEEYE,14/03/2016,352.30,General Equipment - General,Elementary and Secondary Schools,GPC
Statement 19/02/2016 - 31/03/2016,C&YPS-Non Delegated,PAYPAL  VALIDATE UK,01/03/2016,26.00,Other Expenditure - General,Government Services-Not Elsewhere Classified,GPC
Statement 19/02/2016 - 31/03/2016,C&YPS-Non Delegated,PAYPAL  VTPLASTICS,22/02/2016,4.35,Materials - General,Miscellaneous and Specialty Retail Stores,GPC
Statement 19/02/2016 - 31/03/2016,C&YPS-Non Delegated,POST OFFICE COUNTER,15/03/2016,145.00,Postal Services - General,Postage Stamps,GPC
Statement 19/02/2016 - 31/03/2016,C&YPS-Non Delegated,POUNDLAND LTD 1182,15/03/2016,19.20,Other Equipment & Materials - General,Discount Stores,GPC
Statement 19/02/2016 - 31/03/2016,C&YPS-Non Delegated,POUNDLAND LTD 1219,14/03/2016,5.09,Provisions - General,Discount Stores,GPC
Statement 19/02/2016 - 31/03/2016,C&YPS-Non Delegated,POUNDSTRETCHER 175,19/02/2016,17.97,Operational Equipment - General,"Drapery, Window Coverings, and Upholstery Stores",GPC
Statement 19/02/2016 - 31/03/2016,C&YPS-Non Delegated,POUNDWORLD RETAIL,04/03/2016,30.87,Other Equipment & Materials - General,Discount Stores,GPC
Statement 19/02/2016 - 31/03/2016,C&YPS-Non Delegated,POUNDWORLD RETAIL,14/03/2016,22.48,Provisions - General,Discount Stores,GPC
Statement 19/02/2016 - 31/03/2016,C&YPS-Non Delegated,PREMIER INN 44533710,18/03/2016,45.99,Subsistence - General,PREMIER TRAVEL,GPC
Statement 19/02/2016 - 31/03/2016,C&YPS-Non Delegated,PREMIER INN 44533710,18/03/2016,55.99,Subsistence - General,PREMIER TRAVEL,GPC
Statement 19/02/2016 - 31/03/2016,C&YPS-Non Delegated,PREMIER INN44029490,28/02/2016,256.00,Other Allowances/Expenses - General,PREMIER TRAVEL,GPC
Statement 19/02/2016 - 31/03/2016,C&YPS-Non Delegated,PREMIER INN44029490,28/02/2016,61.50,Other Allowances/Expenses - General,PREMIER TRAVEL,GPC
Statement 19/02/2016 - 31/03/2016,C&YPS-Non Delegated,PREMIER INN44029490,29/02/2016,-111.00,Other Allowances/Expenses - General,PREMIER TRAVEL,GPC
Statement 19/02/2016 - 31/03/2016,C&YPS-Non Delegated,PREMIER INN44029490,23/02/2016,70.50,Other Allowances/Expenses - Retirement gifts,"Eating Places, Restaurants",GPC
Statement 19/02/2016 - 31/03/2016,C&YPS-Non Delegated,PREMIER INN44029490,24/02/2016,35.96,Other Allowances/Expenses - Retirement gifts,"Eating Places, Restaurants",GPC
Statement 19/02/2016 - 31/03/2016,C&YPS-Non Delegated,PREMIER INN44029490,25/02/2016,31.96,Other Allowances/Expenses - Retirement gifts,"Eating Places, Restaurants",GPC
Statement 19/02/2016 - 31/03/2016,C&YPS-Non Delegated,PREMIER INN44029490,26/02/2016,42.95,Other Allowances/Expenses - Retirement gifts,"Eating Places, Restaurants",GPC
Statement 19/02/2016 - 31/03/2016,C&YPS-Non Delegated,PREMIER INN44029490,02/03/2016,6.30,Other Transfer Payments - General,"Eating Places, Restaurants",GPC
Statement 19/02/2016 - 31/03/2016,C&YPS-Non Delegated,PREMIER INN44029490,29/02/2016,106.00,Subsistence - General,PREMIER TRAVEL,GPC
Statement 19/02/2016 - 31/03/2016,C&YPS-Non Delegated,PREMIER INN44029490,29/02/2016,106.00,Subsistence - General,PREMIER TRAVEL,GPC
Statement 19/02/2016 - 31/03/2016,C&YPS-Non Delegated,PREMIER INN44029490,29/02/2016,109.00,Subsistence - General,PREMIER TRAVEL,GPC
Statement 19/02/2016 - 31/03/2016,C&YPS-Non Delegated,PREMIER INN44029490,29/02/2016,5.00,Subsistence - General,"Eating Places, Restaurants",GPC
Statement 19/02/2016 - 31/03/2016,C&YPS-Non Delegated,PREMIER INN44029490,01/03/2016,8.99,Subsistence - General,PREMIER TRAVEL,GPC
Statement 19/02/2016 - 31/03/2016,C&YPS-Non Delegated,PREMIER INN44029490,01/03/2016,8.99,Subsistence - General,PREMIER TRAVEL,GPC
Statement 19/02/2016 - 31/03/2016,C&YPS-Non Delegated,PREMIER INN44029490,01/03/2016,8.99,Subsistence - General,PREMIER TRAVEL,GPC
Statement 19/02/2016 - 31/03/2016,C&YPS-Non Delegated,PREMIER INN44029490,02/03/2016,210.98,Subsistence - General,PREMIER TRAVEL,GPC
Statement 19/02/2016 - 31/03/2016,C&YPS-Non Delegated,PREMIER INN44029490,02/03/2016,92.99,Subsistence - General,PREMIER TRAVEL,GPC
Statement 19/02/2016 - 31/03/2016,C&YPS-Non Delegated,PREMIER INN44029490,02/03/2016,92.99,Subsistence - General,PREMIER TRAVEL,GPC
Statement 19/02/2016 - 31/03/2016,C&YPS-Non Delegated,PREMIER INN44029490,02/03/2016,92.99,Subsistence - General,PREMIER TRAVEL,GPC
Statement 19/02/2016 - 31/03/2016,C&YPS-Non Delegated,PREMIER INN44029490,03/03/2016,92.99,Subsistence - General,PREMIER TRAVEL,GPC
Statement 19/02/2016 - 31/03/2016,C&YPS-Non Delegated,PRIMARK 648,11/03/2016,28.34,Personal Needs of Clients - General,Family Clothing Stores,GPC
Statement 19/02/2016 - 31/03/2016,C&YPS-Non Delegated,RYMAN,07/03/2016,20.12,Other Equipment & Materials - General,"Stationery, Office, and School Supply Stores",GPC
Statement 19/02/2016 - 31/03/2016,C&YPS-Non Delegated,SAINSBURY'S S/MKT,22/02/2016,5.10,Materials - General,"Grocery Stores, Supermarkets",GPC
Statement 19/02/2016 - 31/03/2016,C&YPS-Non Delegated,SAINSBURY'S S/MKT,09/03/2016,7.50,Materials - General,"Grocery Stores, Supermarkets",GPC
Statement 19/02/2016 - 31/03/2016,C&YPS-Non Delegated,SAINSBURY'S S/MKT,26/02/2016,3.95,Other Expenditure - General,"Grocery Stores, Supermarkets",GPC
Statement 19/02/2016 - 31/03/2016,C&YPS-Non Delegated,SAINSBURY'S S/MKT,19/02/2016,3.80,Provisions - General,"Grocery Stores, Supermarkets",GPC
Statement 19/02/2016 - 31/03/2016,C&YPS-Non Delegated,SAINSBURY'S S/MKT,04/03/2016,3.65,Subsistence - General,"Grocery Stores, Supermarkets",GPC
Statement 19/02/2016 - 31/03/2016,C&YPS-Non Delegated,SAINSBURYS S/MKTS,22/02/2016,1.85,Materials - General,"Grocery Stores, Supermarkets",GPC
Statement 19/02/2016 - 31/03/2016,C&YPS-Non Delegated,SAINSBURYS S/MKTS,29/02/2016,15.95,Materials - General,"Grocery Stores, Supermarkets",GPC
Statement 19/02/2016 - 31/03/2016,C&YPS-Non Delegated,SAINSBURYS S/MKTS,17/03/2016,12.00,Materials - General,"Grocery Stores, Supermarkets",GPC
Statement 19/02/2016 - 31/03/2016,C&YPS-Non Delegated,SAINSBURYS S/MKTS,23/03/2016,4.80,Materials - General,"Grocery Stores, Supermarkets",GPC
Statement 19/02/2016 - 31/03/2016,C&YPS-Non Delegated,SAINSBURYS S/MKTS,24/03/2016,45.75,Provisions - General,"Grocery Stores, Supermarkets",GPC
Statement 19/02/2016 - 31/03/2016,C&YPS-Non Delegated,SAVERS HEALTH & BEAUTY,18/03/2016,18.33,Personal Needs of Clients - General,"Drug Stores, Pharmacies",GPC
Statement 19/02/2016 - 31/03/2016,C&YPS-Non Delegated,SPORTSDIRECT 710,17/03/2016,44.99,Provisions - General,Sporting Goods Stores,GPC
Statement 19/02/2016 - 31/03/2016,C&YPS-Non Delegated,STAPLES UK,15/03/2016,22.49,Other Equipment & Materials - General,"Stationery, Office, and School Supply Stores",GPC
Statement 19/02/2016 - 31/03/2016,C&YPS-Non Delegated,SUBWAY,23/02/2016,19.48,Other Transfer Payments - General,"Eating Places, Restaurants",GPC
Statement 19/02/2016 - 31/03/2016,C&YPS-Non Delegated,SUBWAY,28/02/2016,22.95,Other Transfer Payments - General,"Eating Places, Restaurants",GPC
Statement 19/02/2016 - 31/03/2016,C&YPS-Non Delegated,SUPERDRUG STORES PLC,02/03/2016,22.00,Personal Needs of Clients - General,"Drug Stores, Pharmacies",GPC
Statement 19/02/2016 - 31/03/2016,C&YPS-Non Delegated,SURVEYMONKEY.COM,13/03/2016,249.17,Subscriptions - General,Computer Network/Information Services,GPC
Statement 19/02/2016 - 31/03/2016,C&YPS-Non Delegated,TeamViewer 78,17/03/2016,571.32,IT Equipment - General,Computer Software Stores,GPC
Statement 19/02/2016 - 31/03/2016,C&YPS-Non Delegated,TESCO STORE 2846,16/03/2016,15.00,Materials - General,"Grocery Stores, Supermarkets",GPC
Statement 19/02/2016 - 31/03/2016,C&YPS-Non Delegated,TESCO STORE 2849,25/02/2016,10.00,Materials - General,"Grocery Stores, Supermarkets",GPC
Statement 19/02/2016 - 31/03/2016,C&YPS-Non Delegated,TESCO STORE 2849,09/03/2016,12.25,Materials - General,"Grocery Stores, Supermarkets",GPC
Statement 19/02/2016 - 31/03/2016,C&YPS-Non Delegated,TESCO STORE 2849,31/03/2016,20.59,Materials - General,"Grocery Stores, Supermarkets",GPC
Statement 19/02/2016 - 31/03/2016,C&YPS-Non Delegated,TESCO STORE 2849,18/02/2016,14.77,Other Equipment & Materials - General,"Grocery Stores, Supermarkets",GPC
Statement 19/02/2016 - 31/03/2016,C&YPS-Non Delegated,TESCO STORE 2849,25/02/2016,10.44,Other Equipment & Materials - General,"Grocery Stores, Supermarkets",GPC
Statement 19/02/2016 - 31/03/2016,C&YPS-Non Delegated,TESCO STORE 2849,23/03/2016,6.28,Other Equipment & Materials - General,"Grocery Stores, Supermarkets",GPC
Statement 19/02/2016 - 31/03/2016,C&YPS-Non Delegated,TESCO STORE 2849,16/03/2016,44.49,Other Expenditure - General,"Grocery Stores, Supermarkets",GPC
Statement 19/02/2016 - 31/03/2016,C&YPS-Non Delegated,TESCO STORE 2849,25/02/2016,10.13,Subsistence - General,"Grocery Stores, Supermarkets",GPC
Statement 19/02/2016 - 31/03/2016,C&YPS-Non Delegated,TESCO STORE 2849,10/03/2016,7.12,Subsistence - General,"Grocery Stores, Supermarkets",GPC
Statement 19/02/2016 - 31/03/2016,C&YPS-Non Delegated,TESCO STORE 2849,17/03/2016,4.91,Subsistence - General,"Grocery Stores, Supermarkets",GPC
Statement 19/02/2016 - 31/03/2016,C&YPS-Non Delegated,TESCO STORE 3115,31/03/2016,100.00,Materials - General,"Grocery Stores, Supermarkets",GPC
Statement 19/02/2016 - 31/03/2016,C&YPS-Non Delegated,TESCO STORE 3115,31/03/2016,108.50,Materials - General,"Grocery Stores, Supermarkets",GPC
Statement 19/02/2016 - 31/03/2016,C&YPS-Non Delegated,TESCO STORE 3115,31/03/2016,100.00,Materials - General,"Grocery Stores, Supermarkets",GPC
Statement 19/02/2016 - 31/03/2016,C&YPS-Non Delegated,TESCO STORES,02/03/2016,8.16,Other Expenditure - General,"Grocery Stores, Supermarkets",GPC
Statement 19/02/2016 - 31/03/2016,C&YPS-Non Delegated,TESCO STORES 2044,07/03/2016,8.26,Provisions - General,"Grocery Stores, Supermarkets",GPC
Statement 19/02/2016 - 31/03/2016,C&YPS-Non Delegated,TESCO STORES 2044,07/03/2016,8.34,Provisions - General,"Grocery Stores, Supermarkets",GPC
Statement 19/02/2016 - 31/03/2016,C&YPS-Non Delegated,TESCO STORES 2849,25/02/2016,17.50,Other Equipment & Materials - General,"Grocery Stores, Supermarkets",GPC
Statement 19/02/2016 - 31/03/2016,C&YPS-Non Delegated,TESCO STORES 2849,07/03/2016,13.42,Other Equipment & Materials - General,"Grocery Stores, Supermarkets",GPC
Statement 19/02/2016 - 31/03/2016,C&YPS-Non Delegated,TESCO STORES 5067,30/03/2016,1.52,Subsistence - General,"Grocery Stores, Supermarkets",GPC
Statement 19/02/2016 - 31/03/2016,C&YPS-Non Delegated,TESCO STORES 5182,05/03/2016,28.44,Other Equipment & Materials - General,"Grocery Stores, Supermarkets",GPC
Statement 19/02/2016 - 31/03/2016,C&YPS-Non Delegated,TESCO STORES 5182,18/02/2016,106.93,Provisions - General,"Grocery Stores, Supermarkets",GPC
Statement 19/02/2016 - 31/03/2016,C&YPS-Non Delegated,TESCO STORES 5182,01/03/2016,60.32,Provisions - General,"Grocery Stores, Supermarkets",GPC
Statement 19/02/2016 - 31/03/2016,C&YPS-Non Delegated,TESCO STORES 5902,08/03/2016,104.33,Provisions - General,"Grocery Stores, Supermarkets",GPC
Statement 19/02/2016 - 31/03/2016,C&YPS-Non Delegated,TESCO STORES 6781,23/02/2016,66.98,Provisions - General,"Grocery Stores, Supermarkets",GPC
Statement 19/02/2016 - 31/03/2016,C&YPS-Non Delegated,TESCO STORES-2044,17/03/2016,5.00,Materials - General,"Grocery Stores, Supermarkets",GPC
Statement 19/02/2016 - 31/03/2016,C&YPS-Non Delegated,TGI FRIDAY'S,24/02/2016,51.06,Other Allowances/Expenses - Retirement gifts,"Eating Places, Restaurants",GPC
Statement 19/02/2016 - 31/03/2016,C&YPS-Non Delegated,TGI FRIDAY'S,29/02/2016,98.34,Subsistence - General,"Eating Places, Restaurants",GPC
Statement 19/02/2016 - 31/03/2016,C&YPS-Non Delegated,THE BOOK PEOPLE,23/03/2016,97.89,Books - General,Book Stores,GPC
Statement 19/02/2016 - 31/03/2016,C&YPS-Non Delegated,THE FAMILY PLANNING AS,25/02/2016,66.75,Books - General,Miscellaneous Publishing and  Printing,GPC
Statement 19/02/2016 - 31/03/2016,C&YPS-Non Delegated,THE KETTLEBY CROSS,02/03/2016,8.04,Provisions - General,"Eating Places, Restaurants",GPC
Statement 19/02/2016 - 31/03/2016,C&YPS-Non Delegated,THE KETTLEBY CROSS,02/03/2016,33.28,Provisions - General,"Eating Places, Restaurants",GPC
Statement 19/02/2016 - 31/03/2016,C&YPS-Non Delegated,THE NATIONAL AUTIS,21/03/2016,100.00,Training Expenses - General,Charitable and Social Service Organizations,GPC
Statement 19/02/2016 - 31/03/2016,C&YPS-Non Delegated,THE RANGE,26/02/2016,97.82,Casual/Essential - General,Department Stores,GPC
Statement 19/02/2016 - 31/03/2016,C&YPS-Non Delegated,THE RANGE,31/03/2016,15.95,Materials - General,Department Stores,GPC
Statement 19/02/2016 - 31/03/2016,C&YPS-Non Delegated,THE RANGE,29/02/2016,9.05,Other Equipment & Materials - General,Department Stores,GPC
Statement 19/02/2016 - 31/03/2016,C&YPS-Non Delegated,THE WORKS,16/03/2016,17.00,Materials - General,Discount Stores,GPC
Statement 19/02/2016 - 31/03/2016,C&YPS-Non Delegated,TIMPSON LTD,22/03/2016,6.00,Materials - General,"Shoe Repair Shops, Shoe Shine Parlors, Hat Cleanin",GPC
Statement 19/02/2016 - 31/03/2016,C&YPS-Non Delegated,TOUCHWOOD SOLIHULL,19/02/2016,2.30,Casual/Essential - General,Automobile Parking Lots and Garages,GPC
Statement 19/02/2016 - 31/03/2016,C&YPS-Non Delegated,TOUCHWOOD SOLIHULL,29/02/2016,1.50,Casual/Essential - General,Automobile Parking Lots and Garages,GPC
Statement 19/02/2016 - 31/03/2016,C&YPS-Non Delegated,TOUCHWOOD SOLIHULL,28/02/2016,3.10,Other Transfer Payments - General,Automobile Parking Lots and Garages,GPC
Statement 19/02/2016 - 31/03/2016,C&YPS-Non Delegated,TRAINLINE,16/02/2016,34.68,Public Transport -  Staff - General,Passenger Railways,GPC
Statement 19/02/2016 - 31/03/2016,C&YPS-Non Delegated,TRAINLINE,23/02/2016,68.85,Public Transport -  Staff - General,Passenger Railways,GPC
Statement 19/02/2016 - 31/03/2016,C&YPS-Non Delegated,TRAINLINE,04/03/2016,29.07,Public Transport -  Staff - General,Passenger Railways,GPC
Statement 19/02/2016 - 31/03/2016,C&YPS-Non Delegated,TRAVEL INSURANCE,19/02/2016,38.72,Other Transfer Payments - Sector 17- Other,Insurance-Sales and Underwriting,GPC
Statement 19/02/2016 - 31/03/2016,C&YPS-Non Delegated,TROPICAL BIRD GARD,22/03/2016,20.75,Public Transport -  Staff - General,"Aquariums, Seaquariums, and Dolphinariums",GPC
Statement 19/02/2016 - 31/03/2016,C&YPS-Non Delegated,TV LICENSING,07/03/2016,145.50,Operational Equipment - General,"Management, Consulting and Public Relations Servic",GPC
Statement 19/02/2016 - 31/03/2016,C&YPS-Non Delegated,TVLICENSING.CO.UK,04/03/2016,145.50,Other Transfer Payments - Leaving Care Grants,"Management, Consulting and Public Relations Servic",GPC
Statement 19/02/2016 - 31/03/2016,C&YPS-Non Delegated,TVLICENSING.CO.UK,14/03/2016,145.50,Other Transfer Payments - Leaving Care Grants,"Management, Consulting and Public Relations Servic",GPC
Statement 19/02/2016 - 31/03/2016,C&YPS-Non Delegated,UPT - HIGHCROSS LEICESTE,15/03/2016,7.00,Books - General,Professional Services-Not Elsewhere Classified,GPC
Statement 19/02/2016 - 31/03/2016,C&YPS-Non Delegated,VISITOR MANAGEMENT LTD,14/03/2016,95.10,Publicity/Marketing - General,Commercial Equipment Not Elsewhere Classified,GPC
Statement 19/02/2016 - 31/03/2016,C&YPS-Non Delegated,VISTAPR VistaPrint.uk,03/03/2016,35.98,Printing - General,Miscellaneous Publishing and  Printing,GPC
Statement 19/02/2016 - 31/03/2016,C&YPS-Non Delegated,VISTAPR VISTAPRINT.UK,11/03/2016,37.18,Printing - General,Miscellaneous Publishing and  Printing,GPC
Statement 19/02/2016 - 31/03/2016,C&YPS-Non Delegated,VISTAPR VISTAPRINT.UK,11/03/2016,-37.18,Printing - General,Miscellaneous Publishing and  Printing,GPC
Statement 19/02/2016 - 31/03/2016,C&YPS-Non Delegated,VISTAPR VistaPrint.uk,17/03/2016,-35.98,Printing - General,Miscellaneous Publishing and  Printing,GPC
Statement 19/02/2016 - 31/03/2016,C&YPS-Non Delegated,W M MORRISON,15/03/2016,3.00,Materials - General,"Grocery Stores, Supermarkets",GPC
Statement 19/02/2016 - 31/03/2016,C&YPS-Non Delegated,W M MORRISON,29/02/2016,37.30,Other Expenditure - General,"Grocery Stores, Supermarkets",GPC
Statement 19/02/2016 - 31/03/2016,C&YPS-Non Delegated,W M MORRISONS,29/02/2016,22.11,Other Equipment & Materials - General,"Grocery Stores, Supermarkets",GPC
Statement 19/02/2016 - 31/03/2016,C&YPS-Non Delegated,W M MORRISONS,04/03/2016,9.44,Other Equipment & Materials - General,"Grocery Stores, Supermarkets",GPC
Statement 19/02/2016 - 31/03/2016,C&YPS-Non Delegated,W M MORRISONS,09/03/2016,19.46,Other Equipment & Materials - General,"Grocery Stores, Supermarkets",GPC
Statement 19/02/2016 - 31/03/2016,C&YPS-Non Delegated,W M MORRISONS,23/03/2016,21.67,Other Equipment & Materials - General,"Grocery Stores, Supermarkets",GPC
Statement 19/02/2016 - 31/03/2016,C&YPS-Non Delegated,W M MORRISONS,30/03/2016,7.25,Other Equipment & Materials - General,"Grocery Stores, Supermarkets",GPC
Statement 19/02/2016 - 31/03/2016,C&YPS-Non Delegated,WELCOME BREAK,24/02/2016,350.00,Other Transfer Payments - Sector 17- Other,"Lodging-Hotels, Motels, Resorts",GPC
Statement 19/02/2016 - 31/03/2016,C&YPS-Non Delegated,WELCOME BREAK,29/02/2016,126.00,Other Transfer Payments - Sector 17- Other,"Lodging-Hotels, Motels, Resorts",GPC
Statement 19/02/2016 - 31/03/2016,C&YPS-Non Delegated,WELCOME BREAK,02/03/2016,69.00,Other Transfer Payments - Sector 17- Other,"Lodging-Hotels, Motels, Resorts",GPC
Statement 19/02/2016 - 31/03/2016,C&YPS-Non Delegated,WEST COAST TRAINS,24/02/2016,6.00,Public Transport -  Staff - General,Automobile Parking Lots and Garages,GPC
Statement 19/02/2016 - 31/03/2016,C&YPS-Non Delegated,WEST COAST TRAINS,31/03/2016,12.00,Public Transport -  Staff - General,Automobile Parking Lots and Garages,GPC
Statement 19/02/2016 - 31/03/2016,C&YPS-Non Delegated,WILKO RETAIL LIMIT,18/03/2016,1.67,Catering Equipment - General,Household Appliance Stores,GPC
Statement 19/02/2016 - 31/03/2016,C&YPS-Non Delegated,WILKO RETAIL LIMIT,18/03/2016,24.20,Catering Equipment - General,Household Appliance Stores,GPC
Statement 19/02/2016 - 31/03/2016,C&YPS-Non Delegated,WILKO RETAIL LIMIT,19/02/2016,12.25,Cleaning Materials - General,Household Appliance Stores,GPC
Statement 19/02/2016 - 31/03/2016,C&YPS-Non Delegated,WILKO RETAIL LIMIT,14/03/2016,40.92,General Equipment - General,Household Appliance Stores,GPC
Statement 19/02/2016 - 31/03/2016,C&YPS-Non Delegated,WILKO RETAIL LIMIT,31/03/2016,9.65,Materials - General,Household Appliance Stores,GPC
Statement 19/02/2016 - 31/03/2016,C&YPS-Non Delegated,WILKO RETAIL LIMIT,31/03/2016,54.75,Materials - General,Household Appliance Stores,GPC
Statement 19/02/2016 - 31/03/2016,C&YPS-Non Delegated,WILKO RETAIL LIMIT,14/03/2016,22.50,Operational Equipment - General,Household Appliance Stores,GPC
Statement 19/02/2016 - 31/03/2016,C&YPS-Non Delegated,WILKO RETAIL LIMIT,15/03/2016,7.50,Other Equipment & Materials - General,Household Appliance Stores,GPC
Statement 19/02/2016 - 31/03/2016,C&YPS-Non Delegated,WILKO RETAIL LIMIT,19/02/2016,8.90,R & M of Buildings - General,Household Appliance Stores,GPC
Statement 19/02/2016 - 31/03/2016,C&YPS-Non Delegated,Windmill Day Nurse,03/03/2016,247.25,Training Expenses - General,"Colleges, Universities, Professional Schools, and",GPC
Statement 19/02/2016 - 31/03/2016,C&YPS-Non Delegated,Windmill Day Nurse,03/03/2016,250.00,Training Expenses - General,"Colleges, Universities, Professional Schools, and",GPC
Statement 19/02/2016 - 31/03/2016,C&YPS-Non Delegated,WM MORRISON 054,18/03/2016,10.46,Materials - General,"Grocery Stores, Supermarkets",GPC
Statement 19/02/2016 - 31/03/2016,C&YPS-Non Delegated,WM MORRISON 054,29/03/2016,22.81,Provisions - General,"Grocery Stores, Supermarkets",GPC
Statement 19/02/2016 - 31/03/2016,C&YPS-Non Delegated,WM MORRISONS CAFE,25/02/2016,21.85,Other Transfer Payments - General,"Eating Places, Restaurants",GPC
Statement 19/02/2016 - 31/03/2016,C&YPS-Non Delegated,WM MORRISONS CAFE,01/03/2016,15.80,Subsistence - General,"Eating Places, Restaurants",GPC
Statement 19/02/2016 - 31/03/2016,C&YPS-Non Delegated,WM MORRISONS STORE,25/02/2016,2.38,Other Transfer Payments - General,"Grocery Stores, Supermarkets",GPC
Statement 19/02/2016 - 31/03/2016,C&YPS-Non Delegated,WWW.ANNARBOR.CO.UK,01/03/2016,43.33,General Equipment - General,Catalog Merchants,GPC
Statement 19/02/2016 - 31/03/2016,C&YPS-Non Delegated,WWW.BOUNCEGB.COM,24/02/2016,29.98,Personal Needs of Clients - Holidays & Outings,RECREATION SERVICES--NOT ELSEWHERE CLASSIFIED,GPC
Statement 19/02/2016 - 31/03/2016,C&YPS-Non Delegated,WWW.C2UOFFICE.CO.U,18/03/2016,114.83,Stationery - General,"Stationery, Office, and School Supply Stores",GPC
Statement 19/02/2016 - 31/03/2016,C&YPS-Non Delegated,WWW.CHAMBERLAINMUSIC.C,09/03/2016,70.00,General Equipment - General,"Music Stores-Musical Instruments, Pianos, Sheet Mu",GPC
Statement 19/02/2016 - 31/03/2016,C&YPS-Non Delegated,WWW.CHAMBERLAINMUSIC.C,14/03/2016,33.81,General Equipment - General,"Music Stores-Musical Instruments, Pianos, Sheet Mu",GPC
Statement 19/02/2016 - 31/03/2016,C&YPS-Non Delegated,WWW.CHAMBERLAINMUSIC.C,30/03/2016,-70.00,General Equipment - General,"Music Stores-Musical Instruments, Pianos, Sheet Mu",GPC
Statement 19/02/2016 - 31/03/2016,C&YPS-Non Delegated,WWW.COOPELECTRICAL,24/02/2016,269.98,Materials - General,Household Appliance Stores,GPC
Statement 19/02/2016 - 31/03/2016,C&YPS-Non Delegated,WWW.COOPELECTRICAL,31/03/2016,199.00,Materials - General,Household Appliance Stores,GPC
Statement 19/02/2016 - 31/03/2016,C&YPS-Non Delegated,WWW.CURVEONLINE.CO.UK,09/03/2016,159.00,Other Equipment & Materials - General,Charitable and Social Service Organizations,GPC
Statement 19/02/2016 - 31/03/2016,C&YPS-Non Delegated,WWW.GEAR4MUSIC.COM,08/03/2016,87.50,General Equipment - General,"Music Stores-Musical Instruments, Pianos, Sheet Mu",GPC
Statement 19/02/2016 - 31/03/2016,C&YPS-Non Delegated,WWW.MILKANDMORE.CO.UK,22/02/2016,14.04,Provisions - General,Continuity/Subscription Merchants,GPC
Statement 19/02/2016 - 31/03/2016,C&YPS-Non Delegated,WWW.MILKANDMORE.CO.UK,01/03/2016,9.40,Provisions - General,Continuity/Subscription Merchants,GPC
Statement 19/02/2016 - 31/03/2016,C&YPS-Non Delegated,WWW.MILKANDMORE.CO.UK,01/03/2016,10.92,Provisions - General,Continuity/Subscription Merchants,GPC
Statement 19/02/2016 - 31/03/2016,C&YPS-Non Delegated,WWW.MILKANDMORE.CO.UK,01/03/2016,4.68,Provisions - General,Continuity/Subscription Merchants,GPC
Statement 19/02/2016 - 31/03/2016,C&YPS-Non Delegated,WWW.MILKANDMORE.CO.UK,22/03/2016,12.48,Provisions - General,Continuity/Subscription Merchants,GPC
Statement 19/02/2016 - 31/03/2016,C&YPS-Non Delegated,WWW.PRIMARYTEACHING.CO,03/03/2016,14.55,General Equipment - General,"Stationery, Office, and School Supply Stores",GPC
Statement 19/02/2016 - 31/03/2016,C&YPS-Non Delegated,WWW.ROYALMAIL.COM,24/03/2016,221.00,Postal Services - General,Postage Stamps,GPC
Statement 19/02/2016 - 31/03/2016,C&YPS-Non Delegated,WWW.SCHOLASTIC.CO.UK,16/03/2016,33.98,Books - General,"Books, Periodicals, and Newspapers",GPC
Statement 19/02/2016 - 31/03/2016,C&YPS-Non Delegated,WWW.SWGFL.ORG.UK,18/03/2016,24.00,Training Expenses - General,Schools and Educational Services-Not Elsewhere Cla,GPC
Statement 19/02/2016 - 31/03/2016,C&YPS-Schools,ARGOS LTD,04/03/2016,50.00,Materials - General,Discount Stores,GPC
Statement 19/02/2016 - 31/03/2016,C&YPS-Schools,ARGOS LTD,04/03/2016,5.00,Materials - General,Discount Stores,GPC
Statement 19/02/2016 - 31/03/2016,C&YPS-Schools,ARGOS LTD,23/03/2016,56.99,Materials - General,Discount Stores,GPC
Statement 19/02/2016 - 31/03/2016,C&YPS-Schools,ARGOS RETAIL GROUP,20/02/2016,-6.99,Materials - General,Discount Stores,GPC
Statement 19/02/2016 - 31/03/2016,C&YPS-Schools,B AND Q 1043,02/03/2016,22.45,R & M of Buildings - General,"Building Materials, Lumber Stores",GPC
Statement 19/02/2016 - 31/03/2016,C&YPS-Schools,B AND Q 1043,02/03/2016,2.52,R & M of Buildings - General,"Building Materials, Lumber Stores",GPC
Statement 19/02/2016 - 31/03/2016,C&YPS-Schools,CLINTONS 1091,04/03/2016,15.00,Materials - General,"Gift, Card, Novelty, and Souvenir Shops",GPC
Statement 19/02/2016 - 31/03/2016,C&YPS-Schools,ESPO,19/02/2016,76.00,Other Expenditure - General,Government Services-Not Elsewhere Classified,GPC
Statement 19/02/2016 - 31/03/2016,C&YPS-Schools,ESPO,26/02/2016,105.00,Other Expenditure - General,Government Services-Not Elsewhere Classified,GPC
Statement 19/02/2016 - 31/03/2016,C&YPS-Schools,ESPO,26/02/2016,2.55,Other Expenditure - General,Government Services-Not Elsewhere Classified,GPC
Statement 19/02/2016 - 31/03/2016,C&YPS-Schools,GAME RETAIL LTD LEIC,04/03/2016,12.99,Materials - General,"Hobby, Toy, and Game Shops",GPC
Statement 19/02/2016 - 31/03/2016,C&YPS-Schools,JS ONLINE GROCERY,01/03/2016,69.00,Materials - General,"Grocery Stores, Supermarkets",GPC
Statement 19/02/2016 - 31/03/2016,C&YPS-Schools,JS ONLINE GROCERY,08/03/2016,57.60,Materials - General,"Grocery Stores, Supermarkets",GPC
Statement 19/02/2016 - 31/03/2016,C&YPS-Schools,JS ONLINE GROCERY,15/03/2016,66.86,Materials - General,"Grocery Stores, Supermarkets",GPC
Statement 19/02/2016 - 31/03/2016,C&YPS-Schools,JS ONLINE GROCERY,22/03/2016,79.90,Materials - General,"Grocery Stores, Supermarkets",GPC
Statement 19/02/2016 - 31/03/2016,C&YPS-Schools,PETS AT HOME LTD,23/03/2016,15.50,Materials - General,Pet Shops-Pet Food and Supplies,GPC
Statement 19/02/2016 - 31/03/2016,C&YPS-Schools,TESCO STORES 5182,02/03/2016,32.00,Materials - General,"Grocery Stores, Supermarkets",GPC
Statement 19/02/2016 - 31/03/2016,C&YPS-Schools,TOYS R US,22/03/2016,50.92,Materials - General,Miscellaneous General Merchandise Stores,GPC
Statement 19/02/2016 - 31/03/2016,C&YPS-Schools,TRAINLINE,22/02/2016,58.14,Casual/Essential - General,Passenger Railways,GPC
Statement 19/02/2016 - 31/03/2016,Capital,H & BBC PAYMENT,16/03/2016,199.29,Buildings - Operational - Expenditure,Government Services-Not Elsewhere Classified,GPC
Statement 19/02/2016 - 31/03/2016,Central Items,Amazon UK Marketplace,17/03/2016,16.50,Administration Expenses - Communications,Book Stores,GPC
Statement 19/02/2016 - 31/03/2016,Chief Executive,Amazon UK Marketplace,15/03/2016,13.95,Books - General,Book Stores,GPC
Statement 19/02/2016 - 31/03/2016,Chief Executive,Amazon UK Marketplace,16/03/2016,79.74,Books - General,Book Stores,GPC
Statement 19/02/2016 - 31/03/2016,Chief Executive,Amazon UK Marketplace,28/03/2016,3.99,Books - General,Book Stores,GPC
Statement 19/02/2016 - 31/03/2016,Chief Executive,Amazon UK Marketplace,31/03/2016,3.65,Books - General,Book Stores,GPC
Statement 19/02/2016 - 31/03/2016,Chief Executive,Amazon UK Marketplace,31/03/2016,2.25,Books - General,Book Stores,GPC
Statement 19/02/2016 - 31/03/2016,Chief Executive,Amazon UK Marketplace,28/03/2016,27.38,Materials - General,Miscellaneous and Specialty Retail Stores,GPC
Statement 19/02/2016 - 31/03/2016,Chief Executive,Amazon UK Marketplace,31/03/2016,1.18,Materials - General,Miscellaneous and Specialty Retail Stores,GPC
Statement 19/02/2016 - 31/03/2016,Chief Executive,Amazon UK Retail,25/02/2016,8.33,Operational Equipment - General,Direct Marketers - Other,GPC
Statement 19/02/2016 - 31/03/2016,Chief Executive,Amazon UK Retail,04/03/2016,4.15,Operational Equipment - General,Direct Marketers - Other,GPC
Statement 19/02/2016 - 31/03/2016,Chief Executive,Amazon UK Retail,05/03/2016,229.99,Operational Equipment - General,Direct Marketers - Other,GPC
Statement 19/02/2016 - 31/03/2016,Chief Executive,Amazon UK Retail,25/02/2016,8.95,Stationery - General,Direct Marketers - Other,GPC
Statement 19/02/2016 - 31/03/2016,Chief Executive,Amazon UK Retail,11/03/2016,13.94,Stationery - General,Direct Marketers - Other,GPC
Statement 19/02/2016 - 31/03/2016,Chief Executive,B AND Q 1012,02/03/2016,10.00,Other Expenditure - General,"Building Materials, Lumber Stores",GPC
Statement 19/02/2016 - 31/03/2016,Chief Executive,CARRIER BAG SHOP,02/03/2016,37.00,Conference - General,Business Services-Not Elsewhere Classified,GPC
Statement 19/02/2016 - 31/03/2016,Chief Executive,CARTRIDGE SAVE,03/03/2016,331.67,Stationery - General,"Stationary, Office Supplies, Printing and Writing",GPC
Statement 19/02/2016 - 31/03/2016,Chief Executive,CARTRIDGE SAVE,15/03/2016,123.00,Stationery - General,"Stationary, Office Supplies, Printing and Writing",GPC
Statement 19/02/2016 - 31/03/2016,Chief Executive,CHARNWOOD BOROUGH COUNCI,10/03/2016,3.20,Casual/Essential - General,Automobile Parking Lots and Garages,GPC
Statement 19/02/2016 - 31/03/2016,Chief Executive,COMPANIES HOUSE,01/03/2016,20.00,Other Expenditure - General,Government Services-Not Elsewhere Classified,GPC
Statement 19/02/2016 - 31/03/2016,Chief Executive,COMPANIES HOUSE,03/03/2016,4.00,Other Expenditure - General,Government Services-Not Elsewhere Classified,GPC
Statement 19/02/2016 - 31/03/2016,Chief Executive,EAST MIDLANDS LEICESTER,15/03/2016,13.50,Casual/Essential - General,Automobile Parking Lots and Garages,GPC
Statement 19/02/2016 - 31/03/2016,Chief Executive,EASYJET     000EQ2J7FL,25/02/2016,45.00,Public Transport -  Staff - General,EASYJET AIR,GPC
Statement 19/02/2016 - 31/03/2016,Chief Executive,FOREIGN EXCHANGE FEE,21/03/2016,2.08,IT Equipment - Licences,Misc-Unknown,GPC
Statement 19/02/2016 - 31/03/2016,Chief Executive,IHBC ENTERPRISES,17/03/2016,181.30,Training Expenses - General,Membership Organizations-Not Elsewhere Classified,GPC
Statement 19/02/2016 - 31/03/2016,Chief Executive,KFC - MELTON MOBRAY,11/03/2016,7.98,Subsistence - General,Fast-Food Restaurants (Quick Payment Service Pilot,GPC
Statement 19/02/2016 - 31/03/2016,Chief Executive,LEICESTERSHIRE C COUNC,02/03/2016,1.00,Other Expenditure - General,Government Services-Not Elsewhere Classified,GPC
Statement 19/02/2016 - 31/03/2016,Chief Executive,MAN.AIRPORT REVENUE OF,22/03/2016,63.00,Other Expenditure - General,"Airports, Airport Terminals, Flying Fields",GPC
Statement 19/02/2016 - 31/03/2016,Chief Executive,MCDONALDS,16/03/2016,9.58,Subsistence - General,"Eating Places, Restaurants",GPC
Statement 19/02/2016 - 31/03/2016,Chief Executive,NCP LIMITED,22/02/2016,4.20,Casual/Essential - General,Automobile Parking Lots and Garages,GPC
Statement 19/02/2016 - 31/03/2016,Chief Executive,NCP LIMITED,07/03/2016,7.50,Casual/Essential - General,Automobile Parking Lots and Garages,GPC
Statement 19/02/2016 - 31/03/2016,Chief Executive,NCP LIMITED,17/03/2016,8.50,Casual/Essential - General,Automobile Parking Lots and Garages,GPC
Statement 19/02/2016 - 31/03/2016,Chief Executive,NCP LIMITED,22/03/2016,3.50,Casual/Essential - General,Automobile Parking Lots and Garages,GPC
Statement 19/02/2016 - 31/03/2016,Chief Executive,OPTIMAL WORKSHOP,19/03/2016,75.65,IT Equipment - Licences,Computer Software Stores,GPC
Statement 19/02/2016 - 31/03/2016,Chief Executive,PREMIER INN44530345,16/02/2016,74.49,Training Expenses - General,PREMIER TRAVEL,GPC
Statement 19/02/2016 - 31/03/2016,Chief Executive,SEACREST HOTEL,02/03/2016,204.17,Other Expenditure - General,"Lodging-Hotels, Motels, Resorts",GPC
Statement 19/02/2016 - 31/03/2016,Chief Executive,SPEEDYBOOKER.COM,17/03/2016,9.60,Training Expenses - General,"Lodging-Hotels, Motels, Resorts",GPC
Statement 19/02/2016 - 31/03/2016,Chief Executive,STORE FINANCIAL SERVIC,16/03/2016,1000.00,Personal Accounts - Other - General,Miscellaneous and Specialty Retail Stores,GPC
Statement 19/02/2016 - 31/03/2016,Chief Executive,TESCO-STORES 2846,16/03/2016,30.29,Other Expenditure - General,"Grocery Stores, Supermarkets",GPC
Statement 19/02/2016 - 31/03/2016,Chief Executive,TESCO-STORES 6573,03/03/2016,18.95,Other Expenditure - General,"Grocery Stores, Supermarkets",GPC
Statement 19/02/2016 - 31/03/2016,Chief Executive,THE RANGE,09/03/2016,68.90,Materials - General,Department Stores,GPC
Statement 19/02/2016 - 31/03/2016,Chief Executive,TRAVELODGE WEBSITE,19/02/2016,87.46,Other Expenditure - General,Travelodge,GPC
Statement 19/02/2016 - 31/03/2016,Chief Executive,TVLICENSING.CO.UK,17/02/2016,145.50,Other Expenditure - General,"Management, Consulting and Public Relations Servic",GPC
Statement 19/02/2016 - 31/03/2016,Chief Executive,TVLICENSING.CO.UK,10/03/2016,145.50,Other Expenditure - General,"Management, Consulting and Public Relations Servic",GPC
Statement 19/02/2016 - 31/03/2016,Chief Executive,UPT - EMT NOTTINGHAM RAI,10/03/2016,4.00,Schools Agency staff - Teaching Staff,Professional Services-Not Elsewhere Classified,GPC
Statement 19/02/2016 - 31/03/2016,Chief Executive,WHITEDISLTD,09/03/2016,5.49,Hospitality - General,Miscellaneous and Specialty Retail Stores,GPC
Statement 19/02/2016 - 31/03/2016,Chief Executive,WILKO RETAIL LIMIT,17/02/2016,50.10,Personal Accounts - Other - General,Household Appliance Stores,GPC
Statement 19/02/2016 - 31/03/2016,Chief Executive,WWW.BARPROFESSIONALTRA,09/03/2016,220.00,Other Expenditure - Other Fees/FEFC,"Legal Services, Attorneys",GPC
Statement 19/02/2016 - 31/03/2016,Chief Executive,WWW.CONCORDIATHREATRE.,06/03/2016,16.00,Hospitality - General,"Theatrical Products (Except Motion Pictures), Tick",GPC
Statement 19/02/2016 - 31/03/2016,Chief Executive,WWW.CONCORDIATHREATRE.,06/03/2016,31.00,Other Expenditure - General,"Theatrical Products (Except Motion Pictures), Tick",GPC
Statement 19/02/2016 - 31/03/2016,Chief Executive,WWW.FANEVALLEY.COM,25/02/2016,48.19,Other Expenditure - General,Hardware Stores,GPC
Statement 19/02/2016 - 31/03/2016,Chief Executive,WWW.FANEVALLEY.COM,23/03/2016,55.19,Other Expenditure - General,Hardware Stores,GPC
Statement 19/02/2016 - 31/03/2016,Chief Executive,WWW.FLAGSANDFLAGPOLES.,09/03/2016,45.91,Hospitality - General,Miscellaneous Publishing and  Printing,GPC
Statement 19/02/2016 - 31/03/2016,Chief Executive,WWW.LEICESTERSHIRECC.C,30/03/2016,25.00,Other Expenditure - Legal Expenses,Government Services-Not Elsewhere Classified,GPC
Statement 19/02/2016 - 31/03/2016,Chief Executive,WWW.LONDON-LUTON.CO.UK,14/03/2016,41.24,Public Transport -  Staff - General,"Airports, Airport Terminals, Flying Fields",GPC
Statement 19/02/2016 - 31/03/2016,Chief Executive,WWW.NEOPOST.CO.UK,08/03/2016,618.00,Other Expenditure - General,"Stationary, Office Supplies, Printing and Writing",GPC
Statement 19/02/2016 - 31/03/2016,Corporate Resources,1PP EDUCATION LTD,24/02/2016,30.00,Training Expenses - General,Professional Services-Not Elsewhere Classified,GPC
Statement 19/02/2016 - 31/03/2016,Corporate Resources,A W BEESLEY & SON,27/02/2016,13.98,Materials - General,"Lawn and Garden Supply Stores, Nurseries",GPC
Statement 19/02/2016 - 31/03/2016,Corporate Resources,AA STATIONERS LEICESTER,20/02/2016,40.97,Stationery - General,"Stationery, Office, and School Supply Stores",GPC
Statement 19/02/2016 - 31/03/2016,Corporate Resources,ABBEY COMMUNITY SERVIC,17/03/2016,9.20,Subsistence - General,"Drinking Places (Alcoholic Beverages)-Bars, Tavern",GPC
Statement 19/02/2016 - 31/03/2016,Corporate Resources,AGRO BUSINESS CONSULTS,22/02/2016,80.00,Subscriptions - General,"Books, Periodicals, and Newspapers",GPC
Statement 19/02/2016 - 31/03/2016,Corporate Resources,ALDI,09/03/2016,2.31,Training Expenses - General,"Grocery Stores, Supermarkets",GPC
Statement 19/02/2016 - 31/03/2016,Corporate Resources,Amazon Svcs Europe SAR,31/03/2016,29.95,Books - General,Book Stores,GPC
Statement 19/02/2016 - 31/03/2016,Corporate Resources,Amazon Svcs Europe SAR,17/03/2016,15.96,Training Expenses - General,Book Stores,GPC
Statement 19/02/2016 - 31/03/2016,Corporate Resources,Amazon UK Marketplace,01/03/2016,7.48,Books - General,Book Stores,GPC
Statement 19/02/2016 - 31/03/2016,Corporate Resources,Amazon UK Marketplace,31/03/2016,16.32,Books - General,Book Stores,GPC
Statement 19/02/2016 - 31/03/2016,Corporate Resources,Amazon UK Marketplace,22/03/2016,28.19,IT Equipment - General,Miscellaneous and Specialty Retail Stores,GPC
Statement 19/02/2016 - 31/03/2016,Corporate Resources,Amazon UK Marketplace,26/03/2016,7.06,IT Equipment - General,Miscellaneous and Specialty Retail Stores,GPC
Statement 19/02/2016 - 31/03/2016,Corporate Resources,Amazon UK Marketplace,18/03/2016,169.99,IT Equipment - Purchase - Hardware,Miscellaneous and Specialty Retail Stores,GPC
Statement 19/02/2016 - 31/03/2016,Corporate Resources,Amazon UK Marketplace,22/03/2016,-169.99,IT Equipment - Purchase - Hardware,Miscellaneous and Specialty Retail Stores,GPC
Statement 19/02/2016 - 31/03/2016,Corporate Resources,Amazon UK Marketplace,17/02/2016,31.95,Materials - General,Miscellaneous and Specialty Retail Stores,GPC
Statement 19/02/2016 - 31/03/2016,Corporate Resources,Amazon UK Marketplace,17/02/2016,11.95,Materials - General,Miscellaneous and Specialty Retail Stores,GPC
Statement 19/02/2016 - 31/03/2016,Corporate Resources,Amazon UK Marketplace,23/02/2016,4.16,Materials - General,Miscellaneous and Specialty Retail Stores,GPC
Statement 19/02/2016 - 31/03/2016,Corporate Resources,Amazon UK Marketplace,18/02/2016,13.44,Operational Equipment - General,Miscellaneous and Specialty Retail Stores,GPC
Statement 19/02/2016 - 31/03/2016,Corporate Resources,Amazon UK Marketplace,26/02/2016,8.32,Operational Equipment - General,Miscellaneous and Specialty Retail Stores,GPC
Statement 19/02/2016 - 31/03/2016,Corporate Resources,Amazon UK Marketplace,17/03/2016,21.92,Operational Equipment - General,Book Stores,GPC
Statement 19/02/2016 - 31/03/2016,Corporate Resources,Amazon UK Marketplace,08/03/2016,10.98,Other Expenditure - General,Book Stores,GPC
Statement 19/02/2016 - 31/03/2016,Corporate Resources,Amazon UK Marketplace,10/03/2016,5.99,Other Expenditure - General,Miscellaneous and Specialty Retail Stores,GPC
Statement 19/02/2016 - 31/03/2016,Corporate Resources,Amazon UK Marketplace,08/03/2016,10.98,Stationery - General,Book Stores,GPC
Statement 19/02/2016 - 31/03/2016,Corporate Resources,Amazon UK Marketplace,17/02/2016,4.83,Telephones - Mobile Phones,Book Stores,GPC
Statement 19/02/2016 - 31/03/2016,Corporate Resources,Amazon UK Marketplace,23/02/2016,4.16,Telephones - Mobile Phones,Miscellaneous and Specialty Retail Stores,GPC
Statement 19/02/2016 - 31/03/2016,Corporate Resources,Amazon UK Marketplace,04/03/2016,15.03,Training Expenses - General,Book Stores,GPC
Statement 19/02/2016 - 31/03/2016,Corporate Resources,Amazon UK Marketplace,16/03/2016,33.69,Training Expenses - General,Miscellaneous and Specialty Retail Stores,GPC
Statement 19/02/2016 - 31/03/2016,Corporate Resources,Amazon UK Marketplace,18/03/2016,-7.99,Training Expenses - General,Miscellaneous and Specialty Retail Stores,GPC
Statement 19/02/2016 - 31/03/2016,Corporate Resources,Amazon UK Marketplace,24/03/2016,8.40,Training Expenses - General,Book Stores,GPC
Statement 19/02/2016 - 31/03/2016,Corporate Resources,Amazon UK Retail,01/03/2016,50.89,IT Equipment - General,Direct Marketers - Other,GPC
Statement 19/02/2016 - 31/03/2016,Corporate Resources,Amazon UK Retail,28/03/2016,7.23,IT Equipment - General,Direct Marketers - Other,GPC
Statement 19/02/2016 - 31/03/2016,Corporate Resources,Amazon UK Retail,27/03/2016,202.82,IT Equipment - Purchase - Hardware,Direct Marketers - Other,GPC
Statement 19/02/2016 - 31/03/2016,Corporate Resources,Amazon UK Retail,22/02/2016,22.93,Stationery - General,Direct Marketers - Other,GPC
Statement 19/02/2016 - 31/03/2016,Corporate Resources,Amazon UK Retail,23/03/2016,28.93,Stationery - General,Direct Marketers - Other,GPC
Statement 19/02/2016 - 31/03/2016,Corporate Resources,Amazon UK Retail,02/03/2016,13.60,Training Expenses - General,Direct Marketers - Other,GPC
Statement 19/02/2016 - 31/03/2016,Corporate Resources,Amazon UK Retail,26/03/2016,28.01,Training Expenses - General,Direct Marketers - Other,GPC
Statement 19/02/2016 - 31/03/2016,Corporate Resources,APCOA - NWR MANCHESTER,22/03/2016,17.50,Casual/Essential - General,Automobile Parking Lots and Garages,GPC
Statement 19/02/2016 - 31/03/2016,Corporate Resources,APCOA - NWR MANCHESTER,23/03/2016,12.00,Casual/Essential - General,Automobile Parking Lots and Garages,GPC
Statement 19/02/2016 - 31/03/2016,Corporate Resources,APCOA - NWR MANCHESTER,09/03/2016,17.50,Subsistence - General,Automobile Parking Lots and Garages,GPC
Statement 19/02/2016 - 31/03/2016,Corporate Resources,APCOA - NWR MANCHESTER,14/03/2016,17.50,Subsistence - General,Automobile Parking Lots and Garages,GPC
Statement 19/02/2016 - 31/03/2016,Corporate Resources,ARCO LTD,23/02/2016,99.96,Other Services - General,Industrial Supplies Not Elsewhere Classified,GPC
Statement 19/02/2016 - 31/03/2016,Corporate Resources,ARGOS LTD,26/03/2016,54.99,Other Expenditure - General,Discount Stores,GPC
Statement 19/02/2016 - 31/03/2016,Corporate Resources,ARORA HOTEL MANCHESTER,04/03/2016,10.00,Subsistence - General,"Lodging-Hotels, Motels, Resorts",GPC
Statement 19/02/2016 - 31/03/2016,Corporate Resources,ASDA STORES,08/03/2016,39.50,Provisions - General,"Grocery Stores, Supermarkets",GPC
Statement 19/02/2016 - 31/03/2016,Corporate Resources,ASDA STORES 4477,23/02/2016,7.00,Materials - General,"Grocery Stores, Supermarkets",GPC
Statement 19/02/2016 - 31/03/2016,Corporate Resources,ASDA STORES 4477,02/03/2016,3.62,Materials - General,"Grocery Stores, Supermarkets",GPC
Statement 19/02/2016 - 31/03/2016,Corporate Resources,ASDA STORES 4477,04/03/2016,10.00,Materials - General,"Grocery Stores, Supermarkets",GPC
Statement 19/02/2016 - 31/03/2016,Corporate Resources,ASDA STORES 4477,30/03/2016,13.45,Materials - General,"Grocery Stores, Supermarkets",GPC
Statement 19/02/2016 - 31/03/2016,Corporate Resources,ASDA STORES 4477,17/02/2016,0.89,Other Expenditure - General,"Grocery Stores, Supermarkets",GPC
Statement 19/02/2016 - 31/03/2016,Corporate Resources,ASDA STORES 4477,24/02/2016,0.94,Other Expenditure - General,"Grocery Stores, Supermarkets",GPC
Statement 19/02/2016 - 31/03/2016,Corporate Resources,ASDA STORES 4477,29/02/2016,2.20,Other Expenditure - General,"Grocery Stores, Supermarkets",GPC
Statement 19/02/2016 - 31/03/2016,Corporate Resources,ASDA STORES 4477,02/03/2016,1.88,Other Expenditure - General,"Grocery Stores, Supermarkets",GPC
Statement 19/02/2016 - 31/03/2016,Corporate Resources,ASDA STORES 4477,07/03/2016,3.35,Other Expenditure - General,"Grocery Stores, Supermarkets",GPC
Statement 19/02/2016 - 31/03/2016,Corporate Resources,ASDA STORES 4477,09/03/2016,0.89,Other Expenditure - General,"Grocery Stores, Supermarkets",GPC
Statement 19/02/2016 - 31/03/2016,Corporate Resources,ASDA STORES 4477,16/03/2016,4.39,Other Expenditure - General,"Grocery Stores, Supermarkets",GPC
Statement 19/02/2016 - 31/03/2016,Corporate Resources,ASDA STORES 4477,23/03/2016,5.79,Other Expenditure - General,"Grocery Stores, Supermarkets",GPC
Statement 19/02/2016 - 31/03/2016,Corporate Resources,ASDA STORES 4477,26/03/2016,4.81,Other Expenditure - General,"Grocery Stores, Supermarkets",GPC
Statement 19/02/2016 - 31/03/2016,Corporate Resources,ASDA STORES 4477,30/03/2016,0.89,Other Expenditure - General,"Grocery Stores, Supermarkets",GPC
Statement 19/02/2016 - 31/03/2016,Corporate Resources,ASDA STORES 4533,18/03/2016,1.10,Materials - General,"Grocery Stores, Supermarkets",GPC
Statement 19/02/2016 - 31/03/2016,Corporate Resources,AT BRISTOL- DIGBY TROU,24/02/2016,570.50,Subsistence - General,Caterers,GPC
Statement 19/02/2016 - 31/03/2016,Corporate Resources,AUTOGRILL LEON KINGSCROSS,07/03/2016,11.10,Subsistence - General,"Eating Places, Restaurants",GPC
Statement 19/02/2016 - 31/03/2016,Corporate Resources,B AND Q 1052,03/03/2016,10.33,Other Services - General,"Building Materials, Lumber Stores",GPC
Statement 19/02/2016 - 31/03/2016,Corporate Resources,B AND Q 1052,17/03/2016,8.80,R & M of Buildings - General,"Building Materials, Lumber Stores",GPC
Statement 19/02/2016 - 31/03/2016,Corporate Resources,B AND Q 1052,24/03/2016,14.00,R & M of Buildings - General,"Building Materials, Lumber Stores",GPC
Statement 19/02/2016 - 31/03/2016,Corporate Resources,B&M RETAIL LTD,20/03/2016,6.29,Materials - General,Discount Stores,GPC
Statement 19/02/2016 - 31/03/2016,Corporate Resources,BB TAXI'S & MINI BUSES,07/03/2016,6.39,Public Transport -  Staff - General,Taxicabs and Limousines,GPC
Statement 19/02/2016 - 31/03/2016,Corporate Resources,BILD CHARITY IMPREST A C,22/03/2016,22.00,Other Equipment & Materials - General,Business Services-Not Elsewhere Classified,GPC
Statement 19/02/2016 - 31/03/2016,Corporate Resources,BILD CHARITY IMPREST A C,01/03/2016,88.00,Training Expenses - General,Business Services-Not Elsewhere Classified,GPC
Statement 19/02/2016 - 31/03/2016,Corporate Resources,BLABY DISTRICT COUNCIL,18/02/2016,914.85,Other Expenditure - Recoverable Exp./Stolen Money,Government Services-Not Elsewhere Classified,GPC
Statement 19/02/2016 - 31/03/2016,Corporate Resources,BLABY DISTRICT COUNCIL,18/02/2016,857.52,Other Expenditure - Recoverable Exp./Stolen Money,Government Services-Not Elsewhere Classified,GPC
Statement 19/02/2016 - 31/03/2016,Corporate Resources,BLABY DISTRICT COUNCIL,15/03/2016,3.75,Public Transport -  Staff - General,Automobile Parking Lots and Garages,GPC
Statement 19/02/2016 - 31/03/2016,Corporate Resources,BOSTON TEA PARTY PARK,08/03/2016,18.90,Subsistence - General,"Eating Places, Restaurants",GPC
Statement 19/02/2016 - 31/03/2016,Corporate Resources,BUS/WIFI TICKET,22/02/2016,15.00,Public Transport -  Staff - General,"Bus Lines, Charters, Tour Buses",GPC
Statement 19/02/2016 - 31/03/2016,Corporate Resources,CAMEL VALLEY LTD,29/03/2016,245.22,Materials - General,"Package Stores, Beer, Wine, Liquor",GPC
Statement 19/02/2016 - 31/03/2016,Corporate Resources,CENTRAL ENG COOP,17/03/2016,13.94,Other Expenditure - General,Department Stores,GPC
Statement 19/02/2016 - 31/03/2016,Corporate Resources,CHARGE.PREZI.COM,17/03/2016,112.38,IT Equipment - Software,"Computers, Computer Peripheral Equipment, Software",GPC
Statement 19/02/2016 - 31/03/2016,Corporate Resources,CHUTNEYS,10/03/2016,11.15,Subsistence - General,"Eating Places, Restaurants",GPC
Statement 19/02/2016 - 31/03/2016,Corporate Resources,CIHT CHARTERED INST H&,04/03/2016,158.00,Training Expenses - General,Charitable and Social Service Organizations,GPC
Statement 19/02/2016 - 31/03/2016,Corporate Resources,CIPFA COURSES,15/03/2016,200.00,Training Expenses - General,Miscellaneous and Specialty Retail Stores,GPC
Statement 19/02/2016 - 31/03/2016,Corporate Resources,CITB,11/03/2016,25.00,Training Expenses - General,"Colleges, Universities, Professional Schools, and",GPC
Statement 19/02/2016 - 31/03/2016,Corporate Resources,CITB,11/03/2016,50.00,Training Expenses - General,"Colleges, Universities, Professional Schools, and",GPC
Statement 19/02/2016 - 31/03/2016,Corporate Resources,COOKS FARM SHOP,22/03/2016,71.35,Other Expenditure - Public Enquiry fees,"Lawn and Garden Supply Stores, Nurseries",GPC
Statement 19/02/2016 - 31/03/2016,Corporate Resources,COOKS FARM SHOP,26/03/2016,35.00,Other Expenditure - Public Enquiry fees,"Lawn and Garden Supply Stores, Nurseries",GPC
Statement 19/02/2016 - 31/03/2016,Corporate Resources,COOKS FARM SHOP,27/02/2016,76.50,Other Services - General,"Lawn and Garden Supply Stores, Nurseries",GPC
Statement 19/02/2016 - 31/03/2016,Corporate Resources,CO-OP GROUP 070412,03/03/2016,18.70,Other Expenditure - General,"Grocery Stores, Supermarkets",GPC
Statement 19/02/2016 - 31/03/2016,Corporate Resources,CO-OP GROUP 070412,22/03/2016,24.73,Other Expenditure - General,"Grocery Stores, Supermarkets",GPC
Statement 19/02/2016 - 31/03/2016,Corporate Resources,CO-OP GROUP 070412,23/02/2016,17.83,Other Services - General,"Grocery Stores, Supermarkets",GPC
Statement 19/02/2016 - 31/03/2016,Corporate Resources,CPC,18/02/2016,51.30,Other Equipment & Materials - General,Electrical Parts and Equipment,GPC
Statement 19/02/2016 - 31/03/2016,Corporate Resources,CPL DISTRIBUTION LTD,26/02/2016,195.83,Operational Equipment - General,"Fuel Dealers-Fuel Oil, Wood, Coal, Liquefied Petro",GPC
Statement 19/02/2016 - 31/03/2016,Corporate Resources,CROSS COUNTRY CC,10/03/2016,36.60,Training Expenses - General,Passenger Railways,GPC
Statement 19/02/2016 - 31/03/2016,Corporate Resources,CROSS COUNTRY CC,10/03/2016,321.00,Training Expenses - General,Passenger Railways,GPC
Statement 19/02/2016 - 31/03/2016,Corporate Resources,CURRYS SUPERSTORE,21/03/2016,768.99,Materials - General,"RADIO, TELEVISION, AND STEREO STORES (ELECTRONIC STORES)",GPC
Statement 19/02/2016 - 31/03/2016,Corporate Resources,CURRYS SUPERSTORE,21/03/2016,768.99,Materials - General,"RADIO, TELEVISION, AND STEREO STORES (ELECTRONIC STORES)",GPC
Statement 19/02/2016 - 31/03/2016,Corporate Resources,DAY AND COLES AGRICULTURA,03/03/2016,87.06,Petrol/Oil/Tyres/Spares - General,Miscellaneous Automotive Dealers -  Not Elsewhere,GPC
Statement 19/02/2016 - 31/03/2016,Corporate Resources,DERBY&NOTTS CHAMBER OF,08/03/2016,398.00,Training Expenses - General,Professional Services-Not Elsewhere Classified,GPC
Statement 19/02/2016 - 31/03/2016,Corporate Resources,DESTINET LTD,29/02/2016,174.00,Publicity/Marketing - General,Advertising Services,GPC
Statement 19/02/2016 - 31/03/2016,Corporate Resources,DESTINET LTD,29/03/2016,174.00,Publicity/Marketing - General,Advertising Services,GPC
Statement 19/02/2016 - 31/03/2016,Corporate Resources,DISCLOSURE SCOT,17/02/2016,25.00,IT Equipment - Purchase - Hardware,Government Services-Not Elsewhere Classified,GPC
Statement 19/02/2016 - 31/03/2016,Corporate Resources,DISCLOSURE SCOT,17/02/2016,25.00,IT Equipment - Purchase - Hardware,Government Services-Not Elsewhere Classified,GPC
Statement 19/02/2016 - 31/03/2016,Corporate Resources,DISCLOSURE SCOT,17/02/2016,25.00,IT Equipment - Purchase - Hardware,Government Services-Not Elsewhere Classified,GPC
Statement 19/02/2016 - 31/03/2016,Corporate Resources,DISCLOSURE SCOT,17/02/2016,25.00,IT Equipment - Purchase - Hardware,Government Services-Not Elsewhere Classified,GPC
Statement 19/02/2016 - 31/03/2016,Corporate Resources,DISCLOSURE SCOT,17/02/2016,25.00,IT Equipment - Purchase - Hardware,Government Services-Not Elsewhere Classified,GPC
Statement 19/02/2016 - 31/03/2016,Corporate Resources,DISCLOSURE SCOT,17/02/2016,25.00,IT Equipment - Purchase - Hardware,Government Services-Not Elsewhere Classified,GPC
Statement 19/02/2016 - 31/03/2016,Corporate Resources,DISCLOSURE SCOT,18/02/2016,25.00,IT Equipment - Purchase - Hardware,Government Services-Not Elsewhere Classified,GPC
Statement 19/02/2016 - 31/03/2016,Corporate Resources,DISCLOSURE SCOT,18/02/2016,25.00,IT Equipment - Purchase - Hardware,Government Services-Not Elsewhere Classified,GPC
Statement 19/02/2016 - 31/03/2016,Corporate Resources,DISCLOSURE SCOT,24/02/2016,25.00,IT Equipment - Purchase - Hardware,Government Services-Not Elsewhere Classified,GPC
Statement 19/02/2016 - 31/03/2016,Corporate Resources,DISCLOSURE SCOT,26/02/2016,25.00,IT Equipment - Purchase - Hardware,Government Services-Not Elsewhere Classified,GPC
Statement 19/02/2016 - 31/03/2016,Corporate Resources,DISCLOSURE SCOT,01/03/2016,25.00,IT Equipment - Purchase - Hardware,Government Services-Not Elsewhere Classified,GPC
Statement 19/02/2016 - 31/03/2016,Corporate Resources,DISCLOSURE SCOT,02/03/2016,25.00,IT Equipment - Purchase - Hardware,Government Services-Not Elsewhere Classified,GPC
Statement 19/02/2016 - 31/03/2016,Corporate Resources,DISCLOSURE SCOT,02/03/2016,25.00,IT Equipment - Purchase - Hardware,Government Services-Not Elsewhere Classified,GPC
Statement 19/02/2016 - 31/03/2016,Corporate Resources,DISCLOSURE SCOT,17/03/2016,25.00,IT Equipment - Purchase - Hardware,Government Services-Not Elsewhere Classified,GPC
Statement 19/02/2016 - 31/03/2016,Corporate Resources,DIXONS,03/03/2016,15.82,Stationery - General,"RADIO, TELEVISION, AND STEREO STORES (ELECTRONIC STORES)",GPC
Statement 19/02/2016 - 31/03/2016,Corporate Resources,DVLA VEHICLE TAX,31/03/2016,126.25,Road Licences - General,Government Services-Not Elsewhere Classified,GPC
Statement 19/02/2016 - 31/03/2016,Corporate Resources,EAST MIDLAND TRAINS,09/03/2016,5.00,Public Transport -  Staff - General,Automobile Parking Lots and Garages,GPC
Statement 19/02/2016 - 31/03/2016,Corporate Resources,EAST MIDLANDS LEICESTER,24/03/2016,13.50,Casual/Essential - General,Automobile Parking Lots and Garages,GPC
Statement 19/02/2016 - 31/03/2016,Corporate Resources,EAST MIDLANDS LEICESTER,16/02/2016,13.50,Public Transport -  Staff - General,Automobile Parking Lots and Garages,GPC
Statement 19/02/2016 - 31/03/2016,Corporate Resources,EAST MIDLANDS LEICESTER,26/02/2016,13.50,Public Transport -  Staff - General,Automobile Parking Lots and Garages,GPC
Statement 19/02/2016 - 31/03/2016,Corporate Resources,EAST MIDLANDS LEICESTER,04/03/2016,27.00,Public Transport -  Staff - General,Automobile Parking Lots and Garages,GPC
Statement 19/02/2016 - 31/03/2016,Corporate Resources,EAST MIDLANDS LEICESTER,04/03/2016,27.00,Public Transport -  Staff - General,Automobile Parking Lots and Garages,GPC
Statement 19/02/2016 - 31/03/2016,Corporate Resources,EAST MIDLANDS LEICESTER,08/03/2016,13.50,Public Transport -  Staff - General,Automobile Parking Lots and Garages,GPC
Statement 19/02/2016 - 31/03/2016,Corporate Resources,EAST MIDLANDS LEICESTER,09/03/2016,7.50,Public Transport -  Staff - General,Automobile Parking Lots and Garages,GPC
Statement 19/02/2016 - 31/03/2016,Corporate Resources,EAST MIDLANDS MARKET HAR,16/03/2016,11.00,Casual/Essential - General,Automobile Parking Lots and Garages,GPC
Statement 19/02/2016 - 31/03/2016,Corporate Resources,EAST MIDLANDS MARKET HAR,16/03/2016,11.00,Casual/Essential - General,Automobile Parking Lots and Garages,GPC
Statement 19/02/2016 - 31/03/2016,Corporate Resources,EAST MIDLANDS MARKET HAR,17/03/2016,11.00,Casual/Essential - General,Automobile Parking Lots and Garages,GPC
Statement 19/02/2016 - 31/03/2016,Corporate Resources,EAST MIDLANDS MARKET HAR,21/03/2016,11.00,Casual/Essential - General,Automobile Parking Lots and Garages,GPC
Statement 19/02/2016 - 31/03/2016,Corporate Resources,EAST MIDLANDS MARKET HAR,22/03/2016,11.00,Casual/Essential - General,Automobile Parking Lots and Garages,GPC
Statement 19/02/2016 - 31/03/2016,Corporate Resources,EAST MIDLANDS MARKET HAR,22/03/2016,11.00,Casual/Essential - General,Automobile Parking Lots and Garages,GPC
Statement 19/02/2016 - 31/03/2016,Corporate Resources,EAST MIDLANDS MARKET HAR,22/03/2016,11.00,Casual/Essential - General,Automobile Parking Lots and Garages,GPC
Statement 19/02/2016 - 31/03/2016,Corporate Resources,EAST MIDLANDS MARKET HAR,24/03/2016,11.00,Casual/Essential - General,Automobile Parking Lots and Garages,GPC
Statement 19/02/2016 - 31/03/2016,Corporate Resources,EAST MIDLANDS MARKET HAR,24/03/2016,11.00,Casual/Essential - General,Automobile Parking Lots and Garages,GPC
Statement 19/02/2016 - 31/03/2016,Corporate Resources,EAST MIDLANDS MARKET HAR,24/03/2016,11.00,Casual/Essential - General,Automobile Parking Lots and Garages,GPC
Statement 19/02/2016 - 31/03/2016,Corporate Resources,EAST MIDLANDS MARKET HAR,31/03/2016,11.00,Casual/Essential - General,Automobile Parking Lots and Garages,GPC
Statement 19/02/2016 - 31/03/2016,Corporate Resources,EAST MIDLANDS MARKET HAR,16/02/2016,11.00,Public Transport -  Staff - General,Automobile Parking Lots and Garages,GPC
Statement 19/02/2016 - 31/03/2016,Corporate Resources,EAST MIDLANDS MARKET HAR,19/02/2016,6.50,Public Transport -  Staff - General,Automobile Parking Lots and Garages,GPC
Statement 19/02/2016 - 31/03/2016,Corporate Resources,EAST MIDLANDS MARKET HAR,22/02/2016,11.00,Public Transport -  Staff - General,Automobile Parking Lots and Garages,GPC
Statement 19/02/2016 - 31/03/2016,Corporate Resources,EAST MIDLANDS MARKET HAR,22/02/2016,11.00,Public Transport -  Staff - General,Automobile Parking Lots and Garages,GPC
Statement 19/02/2016 - 31/03/2016,Corporate Resources,EAST MIDLANDS MARKET HAR,23/02/2016,6.50,Public Transport -  Staff - General,Automobile Parking Lots and Garages,GPC
Statement 19/02/2016 - 31/03/2016,Corporate Resources,EAST MIDLANDS MARKET HAR,24/02/2016,11.00,Public Transport -  Staff - General,Automobile Parking Lots and Garages,GPC
Statement 19/02/2016 - 31/03/2016,Corporate Resources,EAST MIDLANDS MARKET HAR,24/02/2016,17.50,Public Transport -  Staff - General,Automobile Parking Lots and Garages,GPC
Statement 19/02/2016 - 31/03/2016,Corporate Resources,EAST MIDLANDS MARKET HAR,29/02/2016,11.00,Public Transport -  Staff - General,Automobile Parking Lots and Garages,GPC
Statement 19/02/2016 - 31/03/2016,Corporate Resources,EAST MIDLANDS MARKET HAR,29/02/2016,11.00,Public Transport -  Staff - General,Automobile Parking Lots and Garages,GPC
Statement 19/02/2016 - 31/03/2016,Corporate Resources,EAST MIDLANDS MARKET HAR,01/03/2016,22.00,Public Transport -  Staff - General,Automobile Parking Lots and Garages,GPC
Statement 19/02/2016 - 31/03/2016,Corporate Resources,EAST MIDLANDS MARKET HAR,02/03/2016,11.00,Public Transport -  Staff - General,Automobile Parking Lots and Garages,GPC
Statement 19/02/2016 - 31/03/2016,Corporate Resources,EAST MIDLANDS MARKET HAR,04/03/2016,22.00,Public Transport -  Staff - General,Automobile Parking Lots and Garages,GPC
Statement 19/02/2016 - 31/03/2016,Corporate Resources,EAST MIDLANDS MARKET HAR,04/03/2016,22.00,Public Transport -  Staff - General,Automobile Parking Lots and Garages,GPC
Statement 19/02/2016 - 31/03/2016,Corporate Resources,EAST MIDLANDS MARKET HAR,08/03/2016,11.00,Public Transport -  Staff - General,Automobile Parking Lots and Garages,GPC
Statement 19/02/2016 - 31/03/2016,Corporate Resources,EAST MIDLANDS MARKET HAR,10/03/2016,22.00,Public Transport -  Staff - General,Automobile Parking Lots and Garages,GPC
Statement 19/02/2016 - 31/03/2016,Corporate Resources,EAST MIDLANDS TRAI,22/03/2016,69.00,Casual/Essential - General,Passenger Railways,GPC
Statement 19/02/2016 - 31/03/2016,Corporate Resources,EAST MIDLANDS TRAI,30/03/2016,11.50,Casual/Essential - General,Passenger Railways,GPC
Statement 19/02/2016 - 31/03/2016,Corporate Resources,EB WORKING TOGETHER P,02/03/2016,13.78,Training Expenses - General,Business Services-Not Elsewhere Classified,GPC
Statement 19/02/2016 - 31/03/2016,Corporate Resources,EBUYER (UK) LTD,22/02/2016,43.95,IT Equipment - General,Household Appliance Stores,GPC
Statement 19/02/2016 - 31/03/2016,Corporate Resources,EUSTON,14/03/2016,11.00,Public Transport -  Staff - General,"Courier Services-Air and Ground, and Freight Forw",GPC
Statement 19/02/2016 - 31/03/2016,Corporate Resources,EVENTBRITE INC,15/03/2016,-13.78,Training Expenses - General,Business Services-Not Elsewhere Classified,GPC
Statement 19/02/2016 - 31/03/2016,Corporate Resources,FACEBOOK 54X6G9NTE2,31/03/2016,60.82,Publicity/Marketing - Information Provision,Advertising Services,GPC
Statement 19/02/2016 - 31/03/2016,Corporate Resources,FACEBOOK 6HMNW82672,29/02/2016,54.85,Advertising - General,Advertising Services,GPC
Statement 19/02/2016 - 31/03/2016,Corporate Resources,FACEBOOK Q32P69J672,31/03/2016,81.20,Publicity/Marketing - Information Provision,Advertising Services,GPC
Statement 19/02/2016 - 31/03/2016,Corporate Resources,FOREIGN EXCHANGE FEE,29/03/2016,2.83,Advertising - General,Misc-Unknown,GPC
Statement 19/02/2016 - 31/03/2016,Corporate Resources,FOREIGN EXCHANGE FEE,18/03/2016,3.09,IT Equipment - Software,Misc-Unknown,GPC
Statement 19/02/2016 - 31/03/2016,Corporate Resources,FOREIGN EXCHANGE FEE,14/03/2016,1.14,Subscriptions - General,Misc-Unknown,GPC
Statement 19/02/2016 - 31/03/2016,Corporate Resources,FRIENDS MEETING HOUSE,17/03/2016,179.70,Other Equipment & Materials - General,Business Services-Not Elsewhere Classified,GPC
Statement 19/02/2016 - 31/03/2016,Corporate Resources,FRIENDS MEETING HOUSE,24/03/2016,179.70,Other Equipment & Materials - General,Business Services-Not Elsewhere Classified,GPC
Statement 19/02/2016 - 31/03/2016,Corporate Resources,GANTTIC LLC,11/03/2016,41.63,Subscriptions - General,Miscellaneous and Specialty Retail Stores,GPC
Statement 19/02/2016 - 31/03/2016,Corporate Resources,GILLIVERS LTD,26/02/2016,37.99,Materials - General,Family Clothing Stores,GPC
Statement 19/02/2016 - 31/03/2016,Corporate Resources,GYNSILLS,17/02/2016,10.58,Subsistence - General,"Drinking Places (Alcoholic Beverages)-Bars, Tavern",GPC
Statement 19/02/2016 - 31/03/2016,Corporate Resources,HALFORDS 0428,21/02/2016,22.00,Materials - General,Bicycle Shops-Sales and Service,GPC
Statement 19/02/2016 - 31/03/2016,Corporate Resources,HALFORDS 0428,17/03/2016,9.98,Materials - General,Bicycle Shops-Sales and Service,GPC
Statement 19/02/2016 - 31/03/2016,Corporate Resources,HARLOW BROS LTD,17/02/2016,24.59,R & M of Buildings - General,"Building Materials, Lumber Stores",GPC
Statement 19/02/2016 - 31/03/2016,Corporate Resources,HARLOW BROS LTD,01/03/2016,36.50,R & M of Buildings - General,"Building Materials, Lumber Stores",GPC
Statement 19/02/2016 - 31/03/2016,Corporate Resources,HARLOW BROS LTD,04/03/2016,-56.28,R & M of Buildings - General,"Building Materials, Lumber Stores",GPC
Statement 19/02/2016 - 31/03/2016,Corporate Resources,HARLOW BROS LTD,04/03/2016,60.96,R & M of Buildings - General,"Building Materials, Lumber Stores",GPC
Statement 19/02/2016 - 31/03/2016,Corporate Resources,HARLOW BROS LTD,04/03/2016,56.28,R & M of Buildings - General,"Building Materials, Lumber Stores",GPC
Statement 19/02/2016 - 31/03/2016,Corporate Resources,HARLOW BROS LTD,07/03/2016,12.48,R & M of Buildings - General,"Building Materials, Lumber Stores",GPC
Statement 19/02/2016 - 31/03/2016,Corporate Resources,HARLOW BROS LTD,07/03/2016,15.35,R & M of Buildings - General,"Building Materials, Lumber Stores",GPC
Statement 19/02/2016 - 31/03/2016,Corporate Resources,HARLOW BROS LTD,10/03/2016,43.77,R & M of Buildings - General,"Building Materials, Lumber Stores",GPC
Statement 19/02/2016 - 31/03/2016,Corporate Resources,HARLOW BROS LTD,17/03/2016,9.28,R & M of Buildings - General,"Building Materials, Lumber Stores",GPC
Statement 19/02/2016 - 31/03/2016,Corporate Resources,HIGGOTTS,25/02/2016,35.83,R & M of Buildings - General,Landscaping and Horticultural Services,GPC
Statement 19/02/2016 - 31/03/2016,Corporate Resources,HMCOURTS-SERVICE.G,22/02/2016,210.00,Other Expenditure - General,Fines,GPC
Statement 19/02/2016 - 31/03/2016,Corporate Resources,HMCOURTS-SERVICE.G,02/03/2016,210.00,Other Expenditure - General,Fines,GPC
Statement 19/02/2016 - 31/03/2016,Corporate Resources,HOOTSUITE MEDIA INC.,24/03/2016,102.90,Advertising - General,Business Services-Not Elsewhere Classified,GPC
Statement 19/02/2016 - 31/03/2016,Corporate Resources,HOUSE OF FRASER,29/03/2016,202.50,Materials - General,Department Stores,GPC
Statement 19/02/2016 - 31/03/2016,Corporate Resources,HTTP://ACE.APPRENTICES,24/02/2016,22.00,Training Expenses - General,"Management, Consulting and Public Relations Servic",GPC
Statement 19/02/2016 - 31/03/2016,Corporate Resources,HTTP://ACE.APPRENTICES,29/03/2016,22.00,Training Expenses - General,"Management, Consulting and Public Relations Servic",GPC
Statement 19/02/2016 - 31/03/2016,Corporate Resources,IBIS MANCHESTER CENTRE,02/03/2016,95.20,Training Expenses - General,"Lodging-Hotels, Motels, Resorts",GPC
Statement 19/02/2016 - 31/03/2016,Corporate Resources,IBIS MANCHESTER CENTRE,02/03/2016,95.20,Training Expenses - General,"Lodging-Hotels, Motels, Resorts",GPC
Statement 19/02/2016 - 31/03/2016,Corporate Resources,INDIGO UK,03/03/2016,15.00,Public Transport -  Staff - General,Automobile Parking Lots and Garages,GPC
Statement 19/02/2016 - 31/03/2016,Corporate Resources,INFIELD,22/02/2016,72.00,R&M of Vehicles-Non Contract - General,Automotive Repair Shops (non-dealer),GPC
Statement 19/02/2016 - 31/03/2016,Corporate Resources,INTO LONDON MDX,25/02/2016,5.00,Subsistence - General,"Colleges, Universities, Professional Schools, and",GPC
Statement 19/02/2016 - 31/03/2016,Corporate Resources,JOHN LEWIS,22/02/2016,17.95,Other Expenditure - General,Department Stores,GPC
Statement 19/02/2016 - 31/03/2016,Corporate Resources,KINGS CROSS TIC,29/02/2016,65.00,Public Transport -  Staff - General,Passenger Railways,GPC
Statement 19/02/2016 - 31/03/2016,Corporate Resources,KOKORO UK LTD,26/02/2016,4.25,Subsistence - General,"Eating Places, Restaurants",GPC
Statement 19/02/2016 - 31/03/2016,Corporate Resources,LAS IGUANAS,24/02/2016,85.00,Subsistence - General,"Eating Places, Restaurants",GPC
Statement 19/02/2016 - 31/03/2016,Corporate Resources,LAS IGUANAS,03/03/2016,204.05,Subsistence - General,"Eating Places, Restaurants",GPC
Statement 19/02/2016 - 31/03/2016,Corporate Resources,LCC CATERING SERVICES,17/03/2016,5.39,Other Expenditure - General,Government Services-Not Elsewhere Classified,GPC
Statement 19/02/2016 - 31/03/2016,Corporate Resources,LCC CATERING SERVICES,17/02/2016,4.80,Subsistence - General,Government Services-Not Elsewhere Classified,GPC
Statement 19/02/2016 - 31/03/2016,Corporate Resources,LCC CATERING SERVICES,29/02/2016,3.50,Subsistence - General,Government Services-Not Elsewhere Classified,GPC
Statement 19/02/2016 - 31/03/2016,Corporate Resources,LCC CATERING SERVICES,10/03/2016,4.50,Subsistence - General,Government Services-Not Elsewhere Classified,GPC
Statement 19/02/2016 - 31/03/2016,Corporate Resources,LE FEVRES STORES,12/03/2016,5.28,Other Expenditure - General,"Grocery Stores, Supermarkets",GPC
Statement 19/02/2016 - 31/03/2016,Corporate Resources,LINKEDIN-257 9986704,17/02/2016,227.94,Other Expenditure - General,Continuity/Subscription Merchants,GPC
Statement 19/02/2016 - 31/03/2016,Corporate Resources,LINKEDIN-258 2442794,18/02/2016,227.94,Other Expenditure - General,Continuity/Subscription Merchants,GPC
Statement 19/02/2016 - 31/03/2016,Corporate Resources,LINKEDIN-259 0803754,23/02/2016,227.94,Other Expenditure - General,Continuity/Subscription Merchants,GPC
Statement 19/02/2016 - 31/03/2016,Corporate Resources,LINKEDIN-266 2116514,31/03/2016,227.94,Other Expenditure - General,Continuity/Subscription Merchants,GPC
Statement 19/02/2016 - 31/03/2016,Corporate Resources,LUL TICKET MACHINE,22/03/2016,50.00,Casual/Essential - General,Passenger Railways,GPC
Statement 19/02/2016 - 31/03/2016,Corporate Resources,LUL TICKET MACHINE,23/02/2016,10.00,Public Transport -  Staff - General,Passenger Railways,GPC
Statement 19/02/2016 - 31/03/2016,Corporate Resources,LUL TICKET MACHINE,25/02/2016,30.00,Public Transport -  Staff - General,Passenger Railways,GPC
Statement 19/02/2016 - 31/03/2016,Corporate Resources,LUL TICKET MACHINE,29/02/2016,4.90,Public Transport -  Staff - General,Passenger Railways,GPC
Statement 19/02/2016 - 31/03/2016,Corporate Resources,LUL TICKET MACHINE,08/03/2016,50.00,Public Transport -  Staff - General,Passenger Railways,GPC
Statement 19/02/2016 - 31/03/2016,Corporate Resources,LUL TICKET MACHINE,09/03/2016,20.00,Public Transport -  Staff - General,Passenger Railways,GPC
Statement 19/02/2016 - 31/03/2016,Corporate Resources,LUL TICKET MACHINE,10/03/2016,30.00,Public Transport -  Staff - General,Passenger Railways,GPC
Statement 19/02/2016 - 31/03/2016,Corporate Resources,M&S SIMPLY FOOD - SSP,11/03/2016,12.25,Subsistence - General,"Miscellaneous Food Stores-Convenience Stores, Mark",GPC
Statement 19/02/2016 - 31/03/2016,Corporate Resources,M&S SIMPLY FOOD - SSP,14/03/2016,8.05,Subsistence - General,"Miscellaneous Food Stores-Convenience Stores, Mark",GPC
Statement 19/02/2016 - 31/03/2016,Corporate Resources,M&S SIMPLY FOOD-SSP,25/02/2016,15.20,Subsistence - General,"Miscellaneous Food Stores-Convenience Stores, Mark",GPC
Statement 19/02/2016 - 31/03/2016,Corporate Resources,M&S SIMPLY FOOD-SSP,10/03/2016,4.20,Subsistence - General,"Miscellaneous Food Stores-Convenience Stores, Mark",GPC
Statement 19/02/2016 - 31/03/2016,Corporate Resources,M&S SIMPLY FOOD-SSP,11/03/2016,1.60,Subsistence - General,"Miscellaneous Food Stores-Convenience Stores, Mark",GPC
Statement 19/02/2016 - 31/03/2016,Corporate Resources,MAKRO SELF SERVICE LEICES,08/03/2016,10.66,Training Expenses - General,Wholesale Clubs,GPC
Statement 19/02/2016 - 31/03/2016,Corporate Resources,MARKS & SPENCER,20/02/2016,11.40,Subsistence - General,"Grocery Stores, Supermarkets",GPC
Statement 19/02/2016 - 31/03/2016,Corporate Resources,MCDONALDS,09/03/2016,4.99,Subsistence - General,Fast-Food Restaurants (Quick Payment Service Pilot,GPC
Statement 19/02/2016 - 31/03/2016,Corporate Resources,METROLINK TVM,17/03/2016,3.10,Casual/Essential - General,"Bus Lines, Charters, Tour Buses",GPC
Statement 19/02/2016 - 31/03/2016,Corporate Resources,METROLINK TVM,17/03/2016,3.60,Casual/Essential - General,"Bus Lines, Charters, Tour Buses",GPC
Statement 19/02/2016 - 31/03/2016,Corporate Resources,METROLINK TVM,18/03/2016,3.60,Casual/Essential - General,"Bus Lines, Charters, Tour Buses",GPC
Statement 19/02/2016 - 31/03/2016,Corporate Resources,METROLINK TVM,24/03/2016,3.10,Casual/Essential - General,"Bus Lines, Charters, Tour Buses",GPC
Statement 19/02/2016 - 31/03/2016,Corporate Resources,METROLINK TVM,30/03/2016,5.70,Casual/Essential - General,"Bus Lines, Charters, Tour Buses",GPC
Statement 19/02/2016 - 31/03/2016,Corporate Resources,METROLINK TVM,17/02/2016,3.60,Public Transport -  Staff - General,"Bus Lines, Charters, Tour Buses",GPC
Statement 19/02/2016 - 31/03/2016,Corporate Resources,METROLINK TVM,18/02/2016,3.60,Public Transport -  Staff - General,"Bus Lines, Charters, Tour Buses",GPC
Statement 19/02/2016 - 31/03/2016,Corporate Resources,METROLINK TVM,19/02/2016,2.80,Public Transport -  Staff - General,"Bus Lines, Charters, Tour Buses",GPC
Statement 19/02/2016 - 31/03/2016,Corporate Resources,METROLINK TVM,23/02/2016,3.10,Public Transport -  Staff - General,"Bus Lines, Charters, Tour Buses",GPC
Statement 19/02/2016 - 31/03/2016,Corporate Resources,METROLINK TVM,23/02/2016,3.90,Public Transport -  Staff - General,"Bus Lines, Charters, Tour Buses",GPC
Statement 19/02/2016 - 31/03/2016,Corporate Resources,METROLINK TVM,24/02/2016,3.90,Public Transport -  Staff - General,"Bus Lines, Charters, Tour Buses",GPC
Statement 19/02/2016 - 31/03/2016,Corporate Resources,METROLINK TVM,25/02/2016,4.00,Public Transport -  Staff - General,"Bus Lines, Charters, Tour Buses",GPC
Statement 19/02/2016 - 31/03/2016,Corporate Resources,METROLINK TVM,25/02/2016,3.60,Public Transport -  Staff - General,"Bus Lines, Charters, Tour Buses",GPC
Statement 19/02/2016 - 31/03/2016,Corporate Resources,METROLINK TVM,26/02/2016,3.60,Public Transport -  Staff - General,"Bus Lines, Charters, Tour Buses",GPC
Statement 19/02/2016 - 31/03/2016,Corporate Resources,METROLINK TVM,29/02/2016,3.60,Public Transport -  Staff - General,"Bus Lines, Charters, Tour Buses",GPC
Statement 19/02/2016 - 31/03/2016,Corporate Resources,METROLINK TVM,01/03/2016,3.60,Public Transport -  Staff - General,"Bus Lines, Charters, Tour Buses",GPC
Statement 19/02/2016 - 31/03/2016,Corporate Resources,METROLINK TVM,01/03/2016,3.90,Public Transport -  Staff - General,"Bus Lines, Charters, Tour Buses",GPC
Statement 19/02/2016 - 31/03/2016,Corporate Resources,METROLINK TVM,03/03/2016,3.10,Public Transport -  Staff - General,"Bus Lines, Charters, Tour Buses",GPC
Statement 19/02/2016 - 31/03/2016,Corporate Resources,METROLINK TVM,04/03/2016,3.90,Public Transport -  Staff - General,"Bus Lines, Charters, Tour Buses",GPC
Statement 19/02/2016 - 31/03/2016,Corporate Resources,METROLINK TVM,07/03/2016,3.60,Public Transport -  Staff - General,"Bus Lines, Charters, Tour Buses",GPC
Statement 19/02/2016 - 31/03/2016,Corporate Resources,METROLINK TVM,11/03/2016,3.60,Public Transport -  Staff - General,"Bus Lines, Charters, Tour Buses",GPC
Statement 19/02/2016 - 31/03/2016,Corporate Resources,METROLINK TVM,14/03/2016,5.70,Public Transport -  Staff - General,"Bus Lines, Charters, Tour Buses",GPC
Statement 19/02/2016 - 31/03/2016,Corporate Resources,MILLENNIUM,14/03/2016,13.45,Subsistence - General,MILLENNIUM BROADWAY HOTEL,GPC
Statement 19/02/2016 - 31/03/2016,Corporate Resources,MORTIMERS WINE BAR,09/03/2016,18.00,Subsistence - General,"Eating Places, Restaurants",GPC
Statement 19/02/2016 - 31/03/2016,Corporate Resources,NEW SOUTHERN RAILW,25/03/2016,50.00,Casual/Essential - General,Passenger Railways,GPC
Statement 19/02/2016 - 31/03/2016,Corporate Resources,NTU FINANCE BRACK,08/03/2016,750.00,Training Expenses - General,"Colleges, Universities, Professional Schools, and",GPC
Statement 19/02/2016 - 31/03/2016,Corporate Resources,NTU FINANCE BRACK,08/03/2016,750.00,Training Expenses - General,"Colleges, Universities, Professional Schools, and",GPC
Statement 19/02/2016 - 31/03/2016,Corporate Resources,NTU FINANCE BRACK,08/03/2016,280.00,Training Expenses - General,"Colleges, Universities, Professional Schools, and",GPC
Statement 19/02/2016 - 31/03/2016,Corporate Resources,OADBY & WIGSTON B.COUN,29/03/2016,199.88,Other Expenditure - General,Government Services-Not Elsewhere Classified,GPC
Statement 19/02/2016 - 31/03/2016,Corporate Resources,OXFORD BROOKES UNI,16/03/2016,190.00,Training Expenses - General,"Colleges, Universities, Professional Schools, and",GPC
Statement 19/02/2016 - 31/03/2016,Corporate Resources,OXFORD BROOKES UNI,31/03/2016,190.00,Training Expenses - General,"Colleges, Universities, Professional Schools, and",GPC
Statement 19/02/2016 - 31/03/2016,Corporate Resources,OYSTER AUTOTOPUP,26/03/2016,20.00,Casual/Essential - General,Passenger Railways,GPC
Statement 19/02/2016 - 31/03/2016,Corporate Resources,OYSTER AUTOTOPUP,26/03/2016,20.00,Casual/Essential - General,Passenger Railways,GPC
Statement 19/02/2016 - 31/03/2016,Corporate Resources,OYSTER AUTOTOPUP,27/02/2016,20.00,Public Transport -  Staff - General,Passenger Railways,GPC
Statement 19/02/2016 - 31/03/2016,Corporate Resources,OYSTER RENEW WEB,24/02/2016,50.00,Public Transport -  Staff - General,Passenger Railways,GPC
Statement 19/02/2016 - 31/03/2016,Corporate Resources,OYSTER RENEW WEB,14/03/2016,50.00,Public Transport -  Staff - General,Passenger Railways,GPC
Statement 19/02/2016 - 31/03/2016,Corporate Resources,PAPUS PLACE,04/03/2016,9.80,Subsistence - General,"Drinking Places (Alcoholic Beverages)-Bars, Tavern",GPC
Statement 19/02/2016 - 31/03/2016,Corporate Resources,PAYPAL  AGROBUSINES,22/02/2016,27.50,Stationery - General,Book Stores,GPC
Statement 19/02/2016 - 31/03/2016,Corporate Resources,PAYPAL  ECHOES,15/03/2016,82.50,Training Expenses - General,"Management, Consulting and Public Relations Servic",GPC
Statement 19/02/2016 - 31/03/2016,Corporate Resources,PAYPAL  NATASSOCSAF,22/03/2016,193.00,Training Expenses - General,"Civic, Social, and Fraternal Associations",GPC
Statement 19/02/2016 - 31/03/2016,Corporate Resources,PC WORLD ONLINE,17/03/2016,768.99,Materials - General,"RADIO, TELEVISION, AND STEREO STORES (ELECTRONIC STORES)",GPC
Statement 19/02/2016 - 31/03/2016,Corporate Resources,PIE MINISTER-CARDIFF,08/03/2016,9.70,Subsistence - General,"Miscellaneous Food Stores-Convenience Stores, Mark",GPC
Statement 19/02/2016 - 31/03/2016,Corporate Resources,PLV First Onboard,09/03/2016,3.95,Subsistence - General,"Miscellaneous Food Stores-Convenience Stores, Mark",GPC
Statement 19/02/2016 - 31/03/2016,Corporate Resources,POST OFFICE COUNTER,24/02/2016,17.42,Stationery - General,Postage Stamps,GPC
Statement 19/02/2016 - 31/03/2016,Corporate Resources,POSTURITE (UK) LTD,03/03/2016,74.76,Stationery - General,Commercial Furniture,GPC
Statement 19/02/2016 - 31/03/2016,Corporate Resources,POUNDSTRETCHER 292,27/02/2016,13.48,Materials - General,"Drapery, Window Coverings, and Upholstery Stores",GPC
Statement 19/02/2016 - 31/03/2016,Corporate Resources,POUNDSTRETCHER 292,20/03/2016,4.99,Materials - General,"Drapery, Window Coverings, and Upholstery Stores",GPC
Statement 19/02/2016 - 31/03/2016,Corporate Resources,PREMIER INN 44536195,30/03/2016,911.88,Subsistence - General,PREMIER TRAVEL,GPC
Statement 19/02/2016 - 31/03/2016,Corporate Resources,PREMIER INN44521250,09/03/2016,82.75,Subsistence - General,PREMIER TRAVEL,GPC
Statement 19/02/2016 - 31/03/2016,Corporate Resources,PREMIER INN44521250,07/03/2016,74.00,Training Expenses - General,PREMIER TRAVEL,GPC
Statement 19/02/2016 - 31/03/2016,Corporate Resources,PREMIER INN44521260,13/03/2016,37.60,Subsistence - General,PREMIER TRAVEL,GPC
Statement 19/02/2016 - 31/03/2016,Corporate Resources,PREMIER INN44521260,13/03/2016,58.40,Subsistence - General,PREMIER TRAVEL,GPC
Statement 19/02/2016 - 31/03/2016,Corporate Resources,PREMIER INN44521260,13/03/2016,58.40,Subsistence - General,PREMIER TRAVEL,GPC
Statement 19/02/2016 - 31/03/2016,Corporate Resources,PREMIER INN44521260,13/03/2016,37.60,Subsistence - General,PREMIER TRAVEL,GPC
Statement 19/02/2016 - 31/03/2016,Corporate Resources,PRET A MANGER,29/02/2016,12.55,Subsistence - General,"Eating Places, Restaurants",GPC
Statement 19/02/2016 - 31/03/2016,Corporate Resources,PRET A MANGER,09/03/2016,5.98,Subsistence - General,"Eating Places, Restaurants",GPC
Statement 19/02/2016 - 31/03/2016,Corporate Resources,PRET A MANGER,22/03/2016,4.49,Subsistence - General,"Eating Places, Restaurants",GPC
Statement 19/02/2016 - 31/03/2016,Corporate Resources,PUMPKIN,26/02/2016,2.70,Subsistence - General,Fast-Food Restaurants (Quick Payment Service Pilot,GPC
Statement 19/02/2016 - 31/03/2016,Corporate Resources,RAIL GOURMET UK,25/02/2016,3.10,Subsistence - General,"Eating Places, Restaurants",GPC
